{"text_format":"1","workbook":"xlsx","n_sheets":35,"sheets":["ALLEGATO 8","Pagina iniziale","Calcolo ammortamenti","I-Dich. sostitutiva","II-Anagrafica azle","III A-Piano invest e finanziab","III B-Piano inv-Quadro riepil","IV A-Beni az-Terreni","IV B-Beni az-Piantagion","IV C-Beni az-Fabbricati","IV D-Beni az-Macchinari","IV E-Beni az-Macc&Attr","IV F-Beni az-Immob immat","V-Forza lavoro","VI A-Coltiv","VI B-Allev","VI C-Costi var COL-ALL","VI D-Trasform","VI E-Quadro riepil. commerc","VI F-Divers","VI G-Costi var TRA-COM-DIV","VII-Strategia di sviluppo azle","VIII-Mercato di sbocco","INDICATORI","Riepilogo affitti-noleggi","CE 2425","CE RIC. 2425","SP 2424","SP RIC. 2424","Riepilogo criteri e indicatori","Elenchi","TAB_COLT_ALLEV_CodAGEA_PS_CREA","Produzioni standard","Codici ed effetti","Categoria investimenti"],"not_rendered":{"charts":0,"images":4,"macros":1,"external_links":0,"defined_names":108,"comments":0,"pivot_tables":0},"unopened":[],"bounds":{"document_bytes":16777216,"sheet_cells":100000,"rows_first":2000,"rows_last":500,"rows_between":2000,"halvings":0,"cell_chars":16384,"cell_head_chars":4096},"cells_cut":0,"cells_raw":0,"read":"whole","date_system":"1900"}

{"sheet":"ALLEGATO 8","index":0,"n_rows":42,"n_cols":40,"rows_kept":42,"cut":false,"hidden":true,"merged":[[1,0,1,10]]}
[null,null,null,null,null,null,null,null,null,null,null,null,"Incentivare il corretto utilizzo della risorsa idrica in funzione di una razionalizzazione dei consumi","Incentivare l'introduzione di innovazioni tecnologiche in campo informatico e nei processi produttivi","Incentivare il miglioramento delle fasi di produzione, lavorazione confezionamento e commercializzazione dei prodotti","Reimpiego materie prime seconde nel processo produttivo","Beni aziendali per costituzione di impianti ex novo",null,"Terreni","Poprietà","Art.32","Grammi","Animali vivi ",null,null,null,"AMBIENTE",null,null,null,null,null,null,null,null,"Tipologia di macchina","Condizioni da rispettare"]
["ALLEGATO 8",null,null,null,null,null,null,null,null,null,null,null,"Incentivare l'agricoltura di precisione legata alla difesa colturale e all'uso razionale degli altri input di processo anche tramite l'introduzione di sistemi di supporto alle decisioni aziendali per garantire un'agricoltura maggiormente sostenibile","Incentivare la razionalizzazione dei processi di raccolta, stoccaggio e condizionamento","Incentivare l'introduzione di sistemi di certificazione di prodotto e di processo","Cogenerazione di energia per finalità aziendali","Opere di trasformazione agraria, piantagione arborea da frutto o prati e pascoli",null,"Miglioramenti fondiari","Affitto","Area A","Chilogrammi","Carni e frattaglie commestibili ",null,null,null,"Incentivare il corretto utilizzo della risorsa idrica in funzione di una razionalizzazione dei consumi",null,null,null,null,null,null,null,null,"Trattrici","12 Kw/ha su SAU totale",{"$f":"YEAR(data_inizio)-1","v":1899},"Dotazione iniziale ante PSA","Situazione di partenza dell'azienda"]
["Priorità settoriale","Carni bovine/suine","Ovi caprini","Avicoli (carni e uova)","Lattiero caseario ","Ortofrutticoli","Olivicolo","Vitivinicolo","Seminativi e foraggere","Florovivaistico","Tartufi, Frutti sottobosco, Api/miele, Zafferano, ",null,"Incentivare la riduzione dell'impatto ambientale mediante l'utilizzo delle risorse idriche, la gestione sostenibile dei reflui e scarti di lavorazione","Progetti per l'innovazione di processo e di prodotto","Incentivare l'adeguamento delle fasi di lavorazione, selezione e essiccazione in funzione di conseguire miglior garanzie sanitarie e caratteristiche di prodotto","Riduzione della dispersione di elementi inquinanti nel suolo, nell'acqua, e nell'aria","Miglioramento efficienza energetica",null,"Impianti Produzione energia","Usi Civici","Area B","Quintali","Pesci, crostacei e molluschi ",null,null,null,"Incentivare l'agricoltura di precisione legata alla difesa colturale e all'uso razionale degli altri input di processo anche tramite l'introduzione di sistemi di supporto alle decisioni aziendali per garantire un'agricoltura maggiormente sostenibile",null,null,null,null,null,null,null,null,"Mietitrebbiatrici fino a 200 KW","100 SAU a seminativo",{"$f":"YEAR(data_inizio)","v":1900},{"$f":"\"Nuovo investimento PSA \"&AL3","v":"Nuovo investimento PSA 1900"},{"$f":"\"Anno \"&AL3","v":"Anno 1900"}]
["AMBIENTE",null,null,null,null,null,null,null,null,null,null,null,"Incentivare progetti di riconversione verso tipologie e tecniche di allevamento maggiormente ecosostenibili",null,null,"Efficientamento energetico del processo produttivo","Produzione di energia per consumo aziendale",null,"Beni Immobili produttivi","< 5000 mq","Area C","Litri","Latte e derivati del latte; uova di volatili; miele naturale ",null,null,null,"Incentivare la riduzione dell'impatto ambientale mediante l'utilizzo delle risorse idriche, la gestione sostenibile dei reflui e scarti di lavorazione",null,null,null,null,null,null,null,null,"Mietitrebbiatrici superiori a 200 KW","150 SAU a seminativo",{"$f":"YEAR(data_inizio)+1","v":1901},{"$f":"\"Nuovo investimento PSA \"&AL4","v":"Nuovo investimento PSA 1901"},{"$f":"\"Anno \"&AL4","v":"Anno 1901"}]
["Incentivare il corretto utilizzo della risorsa idrica in funzione di una razionalizzazione dei consumi",null,null,null,null,"X",null,null,"X","X",null,null,null,null,null,null,"Terreni edificati o non edificati",null,"Investimenti per nuove norme comunitarie",null,"Area D","Ettolitri","Budella, vesciche e stomachi di animali, interi o in pezzi, esclusi quelli di pesci ",null,null,null,"Incentivare progetti di riconversione verso tipologie e tecniche di allevamento maggiormente ecosostenibili",null,null,null,null,null,null,null,null,"Falciatrinciacaricatrici","100 SAU a seminativo",{"$f":"YEAR(data_inizio)+2","v":1902},"Nuovo investimento PSA 1902","Anno 1902"]
["Incentivare l'agricoltura di precisione legata alla difesa colturale e all'uso razionale degli altri input di processo anche tramite l'introduzione di sistemi di supporto alle decisioni aziendali per garantire un'agricoltura maggiormente sostenibile",null,null,null,null,"X","X","X","X",null,null,null,null,null,null,null,"Edilizia rurale di nuova costruzione",null,"Macchine",null,null,"Unità","Prodotti di origine animale, non nominati né compresi altrove; animali morti dei capitoli 1 o 3, non atti all'alimentazione umana ",null,null,null,"INNOVAZIONE",null,null,null,null,null,null,null,null,"Agevolatrici per tabacco","10 SAU a tabacco"]
["Incentivare la riduzione dell'impatto ambientale mediante l'utilizzo delle risorse idriche, la gestione sostenibile dei reflui e scarti di lavorazione","X",null,"X","X","X","X","X","X","X",null,null,null,null,null,null,"Edilizia rurale di ristrutturazione",null,"impianti e attrezzatue",null,null,null,"Piante vive e prodotti della floricoltura ",null,null,null,"Incentivare l'introduzione di innovazioni tecnologiche in campo informatico e nei processi produttivi",null,null,null,null,null,null,null,null,"Agevolatrici per tabacco kentucky","4 SAU a tabacco"]
["Incentivare progetti di riconversione verso tipologie e tecniche di allevamento maggiormente ecosostenibili","X",null,"X","X",null,null,null,null,null,null,null,null,null,null,null,"Macchinari e attrezzatura",null,"Investimenti immateriali",null,null,null,"Legumi, ortaggi, piante, radici e tuberi, mangerecci ",null,null,null,"Incentivare la razionalizzazione dei processi di raccolta, stoccaggio e condizionamento",null,null,null,null,null,null,null,null,"Agevolatrici automatiche per tabacco","30 SAU a tabacco"]
["INNOVAZIONE",null,null,null,null,null,null,null,null,null,null,null,null,null,null,null,"Investimenti immateriali",null,"Spese generali",null,null,null,"Frutta commestibile; scorze di agrumi e di meloni ",null,null,null,"Progetti per l'innovazione di processo e di prodotto",null,null,null,null,null,null,null,null,"Macchine per raccolta olive","6 SAU per oliveti"]
["Incentivare l'introduzione di innovazioni tecnologiche in campo informatico e nei processi produttivi","X","X","X","X","X","X","X","X","X","X",null,null,null,null,null,null,null,"Altre tipologie di attività per lo sviluppo del PSA",null,null,null,"Caffé, té e spezie, escluso il maté (voce n. 09.03) ",null,null,null,"QUALITA'","Primo esercizio primo quadrimestre",null,null,null,null,null,null,null,"Vendemmiatrici semoventi","30 SAU per vigneti"]
["Incentivare la razionalizzazione dei processi di raccolta, stoccaggio e condizionamento","X","X",null,"X","X",null,null,"X",null,"X",null,null,null,null,null,null,null,null,null,null,null,"Cereali ",null,null,null,"Incentivare il miglioramento delle fasi di produzione, lavorazione confezionamento e commercializzazione dei prodotti","Primo esercizio secondo quadrimestre",null,null,null,null,null,null,null,"Vendemmiatrici trainate","10 SAU per vigneti"]
["Progetti per l'innovazione di processo e di prodotto","X","X","X","X","X","X","X","X","X","X",null,null,null,null,null,null,null,null,null,null,null,"Prodotti della macinazione; malto; amidi e fecole; glutine; inulina ",null,null,null,"Incentivare l'introduzione di sistemi di certificazione di prodotto e di processo","Primo esercizio terzo quadrimestre"]
["QUALITA'",null,null,null,null,null,null,null,null,null,null,null,null,null,null,null,null,null,null,null,null,null,"Semi e frutti oleosi; semi, sementi e frutti diversi; piante industriali e medicinali; paglie e foraggi ",null,null,null,"Incentivare l'adeguamento delle fasi di lavorazione, selezione e essiccazione in funzione di conseguire miglior garanzie sanitarie e caratteristiche di prodotto","Secondo esercizio primo quadrimestre",null,null,null,"Area PSR A/B/C"]
["Incentivare il miglioramento delle fasi di produzione, lavorazione confezionamento e commercializzazione dei prodotti","X","X",null,"X","X",null,null,null,null,"X",null,null,null,null,null,null,null,null,null,null,null,"Pectina ",null,null,null,null,"Secondo esercizio secondo quadrimestre",null,null,null,"Area PSR A/B/C + Area svantaggiata"]
["Incentivare l'introduzione di sistemi di certificazione di prodotto e di processo","X","X","X","X","X","X","X","X","X","X",null,null,null,null,null,null,null,null,null,null,null,"Strutto ed altri grassi di maiale pressati o fusi; grasso di volatili pressato o fuso ",null,null,null,null,"Secondo esercizio terzo quadrimestre",null,null,null,"Area PSR A/B/C + Area Natura 2000"]
["Incentivare l'adeguamento delle fasi di lavorazione, selezione e essiccazione in funzione di conseguire miglior garanzie sanitarie e caratteristiche di prodotto",null,null,null,null,null,null,null,"X",null,"X",null,null,null,null,null,null,null,null,null,null,null,"Sevi (della specie bovina, ovina e caprina) greggi o fusi, compresi i sevi detti “primo sugo” ",null,null,null,null,"Terzo esercizio primo quadrimestre",null,null,null,"Area PSR A/B/C + Area con vincoli ambientali"]
[null,null,null,null,null,null,null,null,null,null,null,null,null,null,null,null,null,null,null,null,null,null,"Stearina solare; oleostearina; olio di strutto e oleomargarina non emulsionata, non mescolati né altrimenti preparati ",null,null,null,null,"Terzo esercizio secondo quadrimestre",null,null,null,"Area PSR A/B/C + Area svantaggiata + Area Natura 2000"]
[null,null,null,null,null,null,null,null,null,null,null,null,null,null,null,null,null,null,null,null,null,null,"Grassi e oli di pesci e di mammiferi marini, anche raffinati ",null,null,null,null,"Terzo esercizio terzo quadrimestre",null,null,null,"Area PSR A/B/C + Area svantaggiata + Area con vincoli ambientali"]
[null,null,null,null,null,null,null,null,null,null,null,null,null,null,null,null,null,null,null,null,null,null,"Oli vegetali fissi, fluidi o concreti, greggi, depurati o raffinati ",null,null,null,null,null,null,null,null,"Area PSR A/B/C + Area Natura 2000 + Area con vincoli ambientali"]
[null,null,null,null,null,null,null,null,null,null,null,null,null,null,null,null,null,null,null,null,null,null,"Grassi e oli animali o vegetali idrogenati anche raffinati, ma non preparati ",null,null,null,null,null,null,null,null,"Area PSR A/B/C + Area svantaggiata + Area Natura 2000 + Area con vincoli ambientali"]
[null,null,null,null,null,null,null,null,null,null,null,null,null,null,null,null,null,null,null,null,null,null,"Margarina, imitazioni dello strutto e altri grassi alimentari preparati ",null,null,null,null,null,null,null,null,"Area PSR D"]
[null,null,null,null,null,null,null,null,null,null,null,null,null,null,null,null,null,null,null,null,null,null,"Residui provenienti dalla lavorazione delle sostanze grasse, o delle cere animali o vegetali ",null,null,null,null,null,null,null,null,"Area PSR D + Area svantaggiata"]
[null,null,null,null,null,null,null,null,null,null,null,null,null,null,null,null,null,null,null,null,null,null,"Preparazioni di carni, di pesci, di crostacei e di molluschi ",null,null,null,null,null,null,null,null,"Area PSR D + Area Natura 2000"]
[null,null,null,null,null,null,null,null,null,null,null,null,null,null,null,null,null,null,null,null,null,null,"Zucchero di barbabietola e di canna, allo stato solido ",null,null,null,null,null,null,null,null,"Area PSR D + Area con vincoli ambientali"]
[null,null,null,null,null,null,null,null,null,null,null,null,null,null,null,null,null,null,null,null,null,null,"Altri zuccheri; sciroppi; succedanei del miele, anche misti con miele naturale; zuccheri e melassi, caramellati ",null,null,null,null,null,null,null,null,"Area PSR D + Area svantaggiata + Area Natura 2000"]
[null,null,null,null,null,null,null,null,null,null,null,null,null,null,null,null,null,null,null,null,null,null,"Melassi, anche decolorati ",null,null,null,null,null,null,null,null,"Area PSR D + Area svantaggiata + Area con vincoli ambientali"]
[null,null,null,null,null,null,null,null,null,null,null,null,null,null,null,null,null,null,null,null,null,null,"Zuccheri, sciroppi e melassi aromatizzati o coloriti (compreso lo zucchero vanigliato, alla vaniglia o alla vaniglina), esclusi i succhi di frutta addizionali di zucchero in qualsiasi proporzione ",null,null,null,null,null,null,null,null,"Area PSR D + Area Natura 2000 + Area con vincoli ambientali"]
[null,null,null,null,null,null,null,null,null,null,null,null,null,null,null,null,null,null,null,null,null,null,"Cacao in grani anche infranto, greggio o torrefatto ",null,null,null,null,null,null,null,null,"Area PSR D + Area svantaggiata + Area Natura 2000 + Area con vincoli ambientali"]
[null,null,null,null,null,null,null,null,null,null,null,null,null,null,null,null,null,null,null,null,null,null,"Gusci, bucce, pellicole e cascami di cacao "]
[null,null,null,null,null,null,null,null,null,null,null,null,null,null,null,null,null,null,null,null,null,null,"Preparazioni di ortaggi, di piante mangerecce, di frutti e di altre piante o parti di piante "]
[null,null,null,null,null,null,null,null,null,null,null,null,null,null,null,null,null,null,null,null,null,null,"Mosti di uva parzialmente fermentati anche mutizzati con metodi diversi dall'aggiunta di alcole "]
[null,null,null,null,null,null,null,null,null,null,null,null,null,null,null,null,null,null,null,null,null,null,"Vini di uve fresche; mosti di uve fresche mutizzati con l'alcole (mistelle)"]
[null,null,null,null,null,null,null,null,null,null,null,null,null,null,null,null,null,null,null,null,null,null,"Sidro, sidro di pere, idromele ed altre bevande fermentate "]
[null,null,null,null,null,null,null,null,null,null,null,null,null,null,null,null,null,null,null,null,null,null,"Alcole etilico, denaturato o no, di qualsiasi gradazione, ottenuto a partire da prodotti agricoli compresi nell'allegato I del trattato, ad esclusione di acquaviti, liquori ed altre bevande alcoliche, preparazioni alcoliche composte (dette estratti concentrati) per la fabbricazione di bevande "]
[null,null,null,null,null,null,null,null,null,null,null,null,null,null,null,null,null,null,null,null,null,null,"Aceti commestibili e loro succedanei commestibili "]
[null,null,null,null,null,null,null,null,null,null,null,null,null,null,null,null,null,null,null,null,null,null,"Residui e cascami delle industrie alimentari; alimenti preparati per gli animali "]
[null,null,null,null,null,null,null,null,null,null,null,null,null,null,null,null,null,null,null,null,null,null,"Tabacchi greggi o non lavorati; cascami di tabacco "]
[null,null,null,null,null,null,null,null,null,null,null,null,null,null,null,null,null,null,null,null,null,null,"Sughero naturale greggio e cascami di sughero; sughero frantumato, granulato o polverizzato "]
[null,null,null,null,null,null,null,null,null,null,null,null,null,null,null,null,null,null,null,null,null,null,"Lino greggio, macerato, stigliato, pettinato o altrimenti preparato, ma non filato; stoppa e cascami (compresi gli sfilacciati) "]
[null,null,null,null,null,null,null,null,null,null,null,null,null,null,null,null,null,null,null,null,null,null,"Canapa (Cannabis sativa) greggia, macerata, stigliata, pettinata o altrimenti preparata, ma non filata; stoppa e cascami (compresi gli sfilacciati) "]
[]
[null,null,null,null,null,null,null,null,null,null,null,null,null,null,null,null,null,null,null,null,null,null," "]

{"sheet":"Pagina iniziale","index":1,"n_rows":31,"n_cols":1,"rows_kept":31,"cut":false,"hidden":false,"merged":[]}
["REGIONE ABRUZZO\nDipartimento Agricoltura\nProgramma di Sviluppo Rurale 2014-2022 Reg. (UE) 1305/2013"]
[]
["BANDO PUBBLICO\nPER L’ATTIVAZIONE DELLA MISURA\nM04 – INVESTIMENTI IN IMMOBILIZZAZIONI MATERIALI\nART. 17 Reg. (UE) 1305/2013\nSottomisura 4.1 – “Sostegni agli investimenti nelle aziende agricole”\nTipologia d’intervento 4.1.1 – “Sostegno agli investimenti nelle aziende agricole finalizzati al miglioramento della redditività”"]
["Il Piano di Sviluppo Aziendale deve contenere:\n1.  la situazione iniziale dell'azienda, la strategia di sviluppo perseguita, le tappe di attuazione del piano (compreso il suo cronoprogramma) e lo scenario a regime conseguente alla sua realizzazione;\n2.  il miglioramento della redditività aziendale;\n3.  la coerenza del piano di investimento con la priorità e gli obiettivi specifici settoriali;\n4.  l'individuazione di concreti sbocchi di mercato per le produzioni aziendali, con particolare riferimento a quelle per le quali sono previsti specifici investimenti;\n5.  la fattibilità del Progetto sotto l'aspetto economico, finanziario e tecnico logistico\n6.  la capacità dell'azienda di far fronte all’impegno di cofinanziamento dell’investimento previsto. "]
[]
[]
["Su Windows 11 è necessario abilitare le macro seguendo la procedura seguente:"]
["1- Click destro sul file"]
["2- Seleziono \"Proprietà\""]
["3- Nella voce \"Sicurezza\" in basso, selezionare la casella \"Sblocca\""]
[]
[]
[]
[]
[]
[]
[]
[]
[]
[]
[]
[]
[]
[]
[]
[]
[]
[]
[]
[]
["Aggiornamento del 28/04/2023:\nCorretta la formula della percentuale agevolabile nel foglio \"III A-Piano invest e finanziab\"\nCorretta la formula che calcola il totale dei costi d'affitto della situazione di partenza nel foglio \"IV A-Beni az-Terreni\""]

{"sheet":"Calcolo ammortamenti","index":2,"n_rows":36,"n_cols":4,"rows_kept":36,"cut":false,"hidden":false,"merged":[[0,0,0,3]]}
["Indicazioni sul piano di ammortamento cespiti aziendali"]
[]
["Categoria","Tipologia","Dettaglio","Coeffic. ammort."]
["Impianti e fabbricati","Fabbricati rurali e impianti fissi","Fabbricati destinati all’industria agraria (Edifici,compresi quelli per il ricovero degli animali e silos in cemento, piazzali)",0.03]
[null,null,"Silos in materiale ferroso per il settore zootecnico",0.08]
[null,null,"Silos in materiale plastico per il settore zootecnico",0.1]
[null,null,"Costruzioni leggere (tettoie, baracche)",0.1]
[null,null,"Mobili e macchine d’ufficio",0.12]
[null,"Miglioramenti fondiari","Risistemazione idraulica (fossi, drenaggio ecc.)",0.12]
[null,null,"Muretti a secco",0.03]
[null,null,"Recinzioni",0.12]
[null,null,"Serre",0.1]
[null,null,"Serre tunnel",0.1]
[null,null,"Reti antigrandine",0.1]
[null,null,"Componenti mobili Impianto fotovoltaico",0.09]
[null,null,"Componenti mobili Impianto eolico",0.09]
[null,null,"Componenti immobiliari Impianto fotovoltaico",0.03]
[null,null,"Componenti immobiliari Impianto eolico",0.03]
["Macchine ed attrezzature","Attrezzature ed impianti di lavorazione","Attrezzatura varia e minuta",0.2]
[null,null,"Autoveicoli da trasporto (autoveicoli pesanti, carrelli elevatori, mezzi di trasporto interno ecc.)",0.2]
[null,null,"Autovetture, motoveicoli e simili",0.25]
[null,null,"Impianti mobili di irigazione, carri agricoli e carri botte",0.12]
[null,null,"Macchinari operatori e impianti",0.09]
[null,null,"Macchine agricole compresi i trattori",0.09]
[null,null,"Macchine d’ufficio elettromeccaniche ed elettroniche (pc)",0.2]
[null,null,"Macchine ed attrezzature di stalla altamente automatizzate",0.2]
[null,null,"Macchine per la preparazione degli alimenti macchinari generici attrezzatura di stalla e varia (solo per la zootecnia)",0.12]
["Piantagioni","Piantagioni","Pesco, nettarina, susino, albicocco",0.06]
[null,null,"Kiwi, melo",0.05]
[null,null,"Pero, vite",0.04]
[null,null,"Arancio, limone, fico, ciliegio",0.03]
[null,null,"Nocciolo",0.02]
[null,null,"Noce, olivo, castagno",0.02]
[null,null,"Per le altre colture il periodo di ammortamento da considerare è quello delle colture assimilabili","?"]
["Terreni","Terreni","Terreni",0]
["Immobilizzazioni immateriali","Immobilizzazioni immateriali","Immobilizzazioni immateriali",0.2]

{"sheet":"I-Dich. sostitutiva","index":3,"n_rows":22,"n_cols":4,"rows_kept":22,"cut":false,"hidden":false,"merged":[[15,1,15,2],[17,0,17,2],[18,0,18,2],[0,0,0,3],[1,0,1,3],[2,0,2,3],[13,0,13,3],[3,0,3,2],[10,0,10,2],[8,0,8,2],[7,0,7,2],[6,0,6,2],[5,0,5,2],[4,0,4,2],[12,0,12,3],[9,0,9,2]]}
["BANDO PUBBLICO PER L’ATTIVAZIONE DELLA MISURA, M04 – INVESTIMENTI IN IMMOBILIZZAZIONI MATERIALI ART. 17 (UE) 1305/2013, Sottomisura 4.1 – “Sostegni agli investimenti nelle aziende agricole”\nTipologia d’intervento 4.1.1, “Sostegno agli investimenti nelle aziende agricole finalizzati al miglioramento della redditività”"]
["Allegato 6c) – Articolo 14, comma 5"]
["I- REQUISITI DI AMMISSIBILITÀ DELL’INVESTIMENTO\nOggetto: Dichiarazione sostitutiva di certificazione (art. 46 e 47 D.P.R.28 dicembre 2000 n. 445)."]
["Il sottoscritto (Cognome Nome)"]
["Luogo di nascita (Nazione, Provincia di Nascita, Comune di nascita)"]
["Data di nascita ( gg/mm/aaaa)"]
["Residente a (Nazione, Provincia, Comune, Via, n. civico)"]
["Codice fiscale / Partita IVA"]
["In qualità di (Titolare/Legale rappresentante)"]
["Forma giuridica"]
["Recapiti (PEC e numero di telefono)"]
[]
["Consapevole che chiunque rilascia dichiarazioni mendaci è punito ai sensi del codice penale e delle leggi speciali in materia, ai sensi e per gli effetti dell'art. 46 del D.P.R. n. 445/2000,"]
["DICHIARA CHE  (scrivere SI o NO)[1]"]
["[1] La casella non compilata equivale alla dichiarazione di NON POSSESSO del requisito. "]
[1,"Il sostegno – eventualmente attribuito - sarà INTEGRALMENTE utilizzato per lo sviluppo dell'azienda e al termine del periodo di implementazione del Piano sarà conseguito un aumento della Redditività e Sostenibilità aziendale"]
[]
["Data"]
["Luogo"]
[]
[null,null,null,"IL SOGGETTO RICHIEDENTE"]
[null,null,null,"(Timbro e firma)"]

{"sheet":"II-Anagrafica azle","index":4,"n_rows":26,"n_cols":3,"rows_kept":26,"cut":false,"hidden":false,"merged":[[2,0,2,3],[1,0,1,3],[0,0,0,3],[22,0,22,3],[25,0,25,2],[24,0,24,2],[23,0,23,2]]}
["BANDO PUBBLICO PER L’ATTIVAZIONE DELLA MISURA, M04 – INVESTIMENTI IN IMMOBILIZZAZIONI MATERIALI ART. 17 (UE) 1305/2013, Sottomisura 4.1 – “Sostegni agli investimenti nelle aziende agricole”\nTipologia d’intervento 4.1.1, “Sostegno agli investimenti nelle aziende agricole finalizzati al miglioramento della redditività”"]
["Allegato 6c) – Articolo 14, comma 5"]
["II - ANAGRAFICA DELL'AZIENDA RICHIEDENTE"]
["Ragione sociale o Denominazione",null,"Adesione a Sistema di Certificazione (Se SI Indicare da quale anno)"]
["CUAA",null,"Adesione dell'azienda art 28 (Pagamenti agro-climatico-ambientali) e/o 29 ( Agricoltura biologica) REG. (UE) 1305/2013"]
["CCIAA/Num. REA",null,"Indicare la/le Sottomisura/e a cui l'azienda ha già partecipato"]
["Codice ATECO",null,"Settore di appartenenza"]
["Anno di Iscrizione CCIAA",null,"SAT (ha, aa)"]
["Data primo insediamento",null,"SAU totale (ha, aa)"]
["Indicazione dell’attività prevalente ",null,"SAU in area soggetta a vincolo e/o Area D PSR (art. 32 del Regolamento UE 1305/2013)"]
["Iscrizione INPS (anno, matricola)",null,"SAU tabacchi (ha, aa)"]
["Forma giuridica",null,"SAU vigneti (ha, aa)"]
["Numero soci",null,"SAU oliveti (ha, aa)"]
["Recapito PEC",null,"SAU seminativi (ha, aa)"]
["Sede legale",null,"SAU proprietà (ha, aa)"]
["Sede del centro aziendale principale (sede operativa)",null,"SAF (superficie agricola foraggera, con indicazione della superficie in rotazione e/o in avvicendamento)"]
["Rappresentante legale",{"$f":"IF('I-Dich. sostitutiva'!D4=\"\", \"\", 'I-Dich. sostitutiva'!D4)","v":""},"UBA (Unità Bestiame Adulte)\n(Link indicativo: https://rica.crea.gov.it/APP/glossario/index.php?action=search&keyword=UBA )"]
["Data di nascita",{"$f":"IF('I-Dich. sostitutiva'!D6=\"\", \"\", 'I-Dich. sostitutiva'!D6)","v":""},"Unità Lavorative impiegate- TOTALE MANODOPERA"]
["Luogo di nascita",{"$f":"IF('I-Dich. sostitutiva'!D5=\"\", \"\", 'I-Dich. sostitutiva'!D5)","v":""},"Unità Lavorative Familiari- TOTALE MANODOPERA FAMILIARE"]
["Giovane Agricoltore",{"$f":"IF('II-Anagrafica azle'!B18=\"\",\"Data di nascita non inserita\",IF(AND(\n'II-Anagrafica azle'!B18+365*40>'I-Dich. sostitutiva'!D18,\n'I-Dich. sostitutiva'!D18-5*365<'II-Anagrafica azle'!B9\n),\"SI\",\"NO\"))","v":"Data di nascita non inserita"},"Anno di adesione a Organismi Associativi"]
["Forma di Conduzione",null,"Partecipazione a un Gruppo Operativo PEI e/o progetto di filiera PIF"]
["Organismi associativi ai quali l'azienda aderisce",null,"Se sì, indicare quale/i"]
["TAPPE FONDAMENTALI DEL PIANO DI SVILUPPO AZIENDALE"]
["FASE INIZIALE (Indicare la data di INIZIO operazione (mese anno)-DATA SUCCESSIVA data di presentazione della domanda)"]
["FASE INTERMEDIA (Indicare il mese anno corrispondente all'avanzamento di metà periodo del progetto)"]
["FASE FINALE (Indicare il mese anno corrispondente alla data di fine progetto che non può essere successiva al 30/06/2025)"]

{"sheet":"III A-Piano invest e finanziab","index":5,"n_rows":16,"n_cols":13,"rows_kept":16,"cut":false,"hidden":false,"merged":[[0,0,0,12],[1,0,1,12],[4,8,4,9],[3,8,3,9],[2,6,2,9],[2,10,2,12],[2,2,2,3],[2,0,2,1],[4,0,4,1],[3,0,3,1]]}
["BANDO PUBBLICO PER L’ATTIVAZIONE DELLA MISURA, M04 – INVESTIMENTI IN IMMOBILIZZAZIONI MATERIALI ART. 17 (UE) 1305/2013, Sottomisura 4.1 – “Sostegni agli investimenti nelle aziende agricole”\nTipologia d’intervento 4.1.1, “Sostegno agli investimenti nelle aziende agricole finalizzati al miglioramento della redditività”\nAllegato 6c) – Articolo 14, comma 5"]
["III A - PIANO INVESTIMENTI\nPer investimenti non agevolabili, lasciare vuoti i campi \"c.1) Criterio di selezione\" e \"c.2) Priorità settoriale / Obiettivo\"\n\nArticolo 14 – Costi non ammissibili\n1. In relazione a investimenti per opere edili e per interventi strutturali, non sono ammissibili al sostegno i seguenti costi:\na) costi relativi agli investimenti realizzati prima della presentazione della domanda di sostegno;\nb) costi relativi agli interessi passivi e all’Imposta sul Valore Aggiunto (IVA) tranne nei casi in cui l’IVA non sia recuperabile; \nSe l'IVA non viene computato con la base imponibile del bene/serivizio acquistato, nel caso di indetraibilità va considerato un Onere diverso di gestione, voce...."]
["Specificare il regime IVA di appartenenza:",null,null,null,"Regime contabile",null,"Copertura finanziaria della parte non agevolata",null,null,null,"Onere finanziario annuale\n(Valore assoluto)"]
["Totale agevolazione",null,null,{"$f":"IF(\n   C3 = \"Soggetto IVA\",\n   SUMPRODUCT(L8:L799, H8:H799, B8:B799),\n   IF(\n      C3 = \"Soggetto non IVA\",\n      SUMPRODUCT(L8:L799+M8:M799, H8:H799, B8:B799),\n      0)\n)","v":0},null,null,"Risorse proprie","Aumento del capitale sociale","Prestiti esterni",null,{"$f":"annoprec","v":1899},{"$f":"annoinizio","v":1900},{"$f":"annofine","v":1902}]
["Totale non agevolato",null,null,{"$f":"IF(\n   C3 = \"Soggetto IVA\",\n   SUMPRODUCT(L8:L799, 1-H8:H799, B8:B799),\n   IF(\n      C3 = \"Soggetto non IVA\",\n      SUMPRODUCT(L8:L799+M8:M799, 1-H8:H799, B8:B799),\n      0)\n)","v":0}]
["a) Bene acquistato (descrizione)","b) Quantità","c) Agevolabile","d) Innovatività in coerenza con le indicazioni della S3","e1) Criterio di selezione AMBIENTE\n(Da compilare solo se il bene risponde al criterio di selezione \"Investimenti che sviluppano effetti positivi per l’ambiente\")","e2) Priorità settoriale / Obiettivo","f) T-C","g) % Agevolazione","h) Anno di Acquisto","i) Quadrimestre inizio realizzazione investimento","l) Quadrimestre termine realizzazione investimento","m) Imponibile per singola unità","n) IVA"]
["TOTALE",null,null,null,null,null,null,null,null,null,null,{"$f":"SUMPRODUCT(L8:L799,B8:B799)","v":0},{"$f":"SUM(M8:M799)","v":0}]
[null,null,null,null,null,null,null,{"$f":"IF(OR(C8 = \"NO\", C8 = \"\"), 0%,\nIF(\nAND( OR('II-Anagrafica azle'!$B$20 = \"SI\",\n          'II-Anagrafica azle'!$D$10>'II-Anagrafica azle'!$D$9/2,\n          'II-Anagrafica azle'!$D$5 = \"SI\"),\n      G8=\"\"), 60%, 40%\n))","v":0}]
[null,null,null,null,null,null,null,{"$f":"IF(OR(C9 = \"NO\", C9 = \"\"), 0%,\nIF(\nAND( OR('II-Anagrafica azle'!$B$20 = \"SI\",\n          'II-Anagrafica azle'!$D$10>'II-Anagrafica azle'!$D$9/2,\n          'II-Anagrafica azle'!$D$5 = \"SI\"),\n      G9=\"\"), 60%, 40%\n))","v":0}]
[null,null,null,null,null,null,null,{"$f":"IF(OR(C10 = \"NO\", C10 = \"\"), 0%,\nIF(\nAND( OR('II-Anagrafica azle'!$B$20 = \"SI\",\n          'II-Anagrafica azle'!$D$10>'II-Anagrafica azle'!$D$9/2,\n          'II-Anagrafica azle'!$D$5 = \"SI\"),\n      G10=\"\"), 60%, 40%\n))","v":0}]
[null,null,null,null,null,null,null,{"$f":"IF(OR(C11 = \"NO\", C11 = \"\"), 0%,\nIF(\nAND( OR('II-Anagrafica azle'!$B$20 = \"SI\",\n          'II-Anagrafica azle'!$D$10>'II-Anagrafica azle'!$D$9/2,\n          'II-Anagrafica azle'!$D$5 = \"SI\"),\n      G11=\"\"), 60%, 40%\n))","v":0}]
[null,null,null,null,null,null,null,{"$f":"IF(OR(C12 = \"NO\", C12 = \"\"), 0%,\nIF(\nAND( OR('II-Anagrafica azle'!$B$20 = \"SI\",\n          'II-Anagrafica azle'!$D$10>'II-Anagrafica azle'!$D$9/2,\n          'II-Anagrafica azle'!$D$5 = \"SI\"),\n      G12=\"\"), 60%, 40%\n))","v":0}]
[null,null,null,null,null,null,null,{"$f":"IF(OR(C13 = \"NO\", C13 = \"\"), 0%,\nIF(\nAND( OR('II-Anagrafica azle'!$B$20 = \"SI\",\n          'II-Anagrafica azle'!$D$10>'II-Anagrafica azle'!$D$9/2,\n          'II-Anagrafica azle'!$D$5 = \"SI\"),\n      G13=\"\"), 60%, 40%\n))","v":0}]
[null,null,null,null,null,null,null,{"$f":"IF(OR(C14 = \"NO\", C14 = \"\"), 0%,\nIF(\nAND( OR('II-Anagrafica azle'!$B$20 = \"SI\",\n          'II-Anagrafica azle'!$D$10>'II-Anagrafica azle'!$D$9/2,\n          'II-Anagrafica azle'!$D$5 = \"SI\"),\n      G14=\"\"), 60%, 40%\n))","v":0}]
[null,null,null,null,null,null,null,{"$f":"IF(OR(C15 = \"NO\", C15 = \"\"), 0%,\nIF(\nAND( OR('II-Anagrafica azle'!$B$20 = \"SI\",\n          'II-Anagrafica azle'!$D$10>'II-Anagrafica azle'!$D$9/2,\n          'II-Anagrafica azle'!$D$5 = \"SI\"),\n      G15=\"\"), 60%, 40%\n))","v":0}]
[null,null,null,null,null,null,null,{"$f":"IF(OR(C16 = \"NO\", C16 = \"\"), 0%,\nIF(\nAND( OR('II-Anagrafica azle'!$B$20 = \"SI\",\n          'II-Anagrafica azle'!$D$10>'II-Anagrafica azle'!$D$9/2,\n          'II-Anagrafica azle'!$D$5 = \"SI\"),\n      G16=\"\"), 60%, 40%\n))","v":0}]

{"sheet":"III B-Piano inv-Quadro riepil","index":6,"n_rows":5,"n_cols":10,"rows_kept":5,"cut":false,"hidden":false,"merged":[[1,0,1,5],[0,0,0,5]]}
["BANDO PUBBLICO PER L’ATTIVAZIONE DELLA MISURA, M04 – INVESTIMENTI IN IMMOBILIZZAZIONI MATERIALI ART. 17 (UE) 1305/2013, Sottomisura 4.1 – “Sostegni agli investimenti nelle aziende agricole”\nTipologia d’intervento 4.1.1, “Sostegno agli investimenti nelle aziende agricole finalizzati al miglioramento della redditività”\nAllegato 6c) – Articolo 14, comma 5"]
["III B - QUADRO RIEPILOGATIVO/STIMA DEI COSTI (ART. 10 BANDO)"]
["Investimento","Dettaglio / Caratteristiche tecniche del bene d'investimento","Modalità determinazione della spesa","Tasso forfettario spese tecniche\n(1% / 4% / 8%)","Prezzario di riferimento","Valore da prezzario",null,null,null,"Prez. Agricolo Regionale (DGR 402/2022)"]
[null,null,null,null,null,null,null,null,null,"Calcolatore dei costi di riferimento per macchine agricole"]
[null,null,null,null,null,null,null,null,null,"Prezzi informativi delle opere edili della Regione Abruzzo (DGR 447/2022)"]

{"sheet":"IV A-Beni az-Terreni","index":7,"n_rows":6,"n_cols":11,"rows_kept":6,"cut":false,"hidden":false,"merged":[[1,0,1,10],[0,0,0,10]]}
["BANDO PUBBLICO PER L’ATTIVAZIONE DELLA MISURA, M04 – INVESTIMENTI IN IMMOBILIZZAZIONI MATERIALI ART. 17 (UE) 1305/2013, Sottomisura 4.1 – “Sostegni agli investimenti nelle aziende agricole”\nTipologia d’intervento 4.1.1, “Sostegno agli investimenti nelle aziende agricole finalizzati al miglioramento della redditività”\nAllegato 6c) – Articolo 14, comma 5"]
["IV A - Descrizione dei beni aziendali\nDescrizione iniziale dei beni (deve corrispondere a quanto riportato nel fascicolo aziendale) e integrazione da Piano Investimenti del PSA.\nSono ricompresi in questa tabella le immobilizzazioni materiali di cui alla sezione II – Immobilizzazioni materiali, punto \"1) Terreni e fabbricati\" dello Stato Patrimoniale.\n\nTERRENI"]
[null,{"$f":"annoprec","v":1899},{"$f":"annoinizio","v":1900},{"$f":"annoint","v":1901},{"$f":"annofine","v":1902}]
["Totale costo di affitti terreni",{"$f":"SUMIFS($D$7:$D$998, $C$7:$C$998, \"Dotazione iniziale ante PSA\", $B$7:$B$998, \"Affitto\")","v":0},{"$f":"$B$4+SUMIFS($D$7:$D$998, $C$7:$C$998, \"Nuovo investimento PSA \"&annoinizio, $B$7:$B$998, \"Affitto\")","v":0},{"$f":"$C$4+SUMIFS($D$7:$D$998, $C$7:$C$998, \"Nuovo investimento PSA \"&annoint, $B$7:$B$998, \"Affitto\")","v":0},{"$f":"$D$4+SUMIFS($D$7:$D$998, $C$7:$C$998, \"Nuovo investimento PSA \"&annofine, $B$7:$B$998, \"Affitto\")","v":0}]
["Riepilogo occupazione del suolo","Titolo di Possesso","Periodo di acquisto","Costo di affitto\n(B7 del CE)",{"$f":"\"Valore patrimoniale al \"&annoprec","v":"Valore patrimoniale al 1899"},{"$f":"\"Valore patrimoniale al \"&annoinizio","v":"Valore patrimoniale al 1900"},{"$f":"\"Valore patrimoniale al \"&annofine","v":"Valore patrimoniale al 1902"},"Localizzazione","Coltura ","Ha,aa","di cui in agricoltura biologica"]
["TOTALE",null,null,null,{"$f":"SUMIFS(E7:E861, $C$7:$C861, \"Dotazione iniziale ante PSA\", B7:B861, \"Proprietà\")","v":0},{"$f":"SUMIFS(F7:F861, $C$7:$C861, \"Dotazione iniziale ante PSA\", B7:B861, \"Proprietà\")\n+SUMIFS(F7:F861, $C$7:$C861, \"Nuovo investimento PSA \"&annoinizio, B7:B861, \"Proprietà\")","v":0},{"$f":"SUMIFS(G7:G861, B7:B861, \"Proprietà\")","v":0},null,null,{"$f":"SUM(J7:J861)","v":0},{"$f":"SUM(K7:K861)","v":0}]

{"sheet":"IV B-Beni az-Piantagion","index":8,"n_rows":6,"n_cols":12,"rows_kept":6,"cut":false,"hidden":false,"merged":[[0,0,0,11],[1,0,1,11]]}
["BANDO PUBBLICO PER L’ATTIVAZIONE DELLA MISURA, M04 – INVESTIMENTI IN IMMOBILIZZAZIONI MATERIALI ART. 17 (UE) 1305/2013, Sottomisura 4.1 – “Sostegni agli investimenti nelle aziende agricole”\nTipologia d’intervento 4.1.1, “Sostegno agli investimenti nelle aziende agricole finalizzati al miglioramento della redditività”\nAllegato 6c) – Articolo 14, comma 5"]
["IV B - Descrizione dei beni aziendali\nDotazione iniziale dei beni (deve corrispondere a quanto riportato nel fascicolo aziendale) e integrazione da Piano Investimenti del PSA.\nSono ricompresi in questa tabella le immobilizzazioni materiali di cui alla sezione II – Immobilizzazioni materiali, punto \"1) Terreni e fabbricati\" dello Stato Patrimoniale.\n\nPIANTAGIONI\n(Per ogni piantagione, compilare una riga)"]
[null,{"$f":"annoprec","v":1899},{"$f":"annoinizio","v":1900},{"$f":"annoint","v":1901},{"$f":"annofine","v":1902}]
["Totale costo di affitti piantagioni",{"$f":"SUMIFS($F$7:$F$998, $D$7:$D$998, \"<=\"&B$3, $C$7:$C$998, \"Affitto\")","v":0},{"$f":"SUMIFS($F$7:$F$998, $D$7:$D$998, \"<=\"&C$3, $C$7:$C$998, \"Affitto\")","v":0},0,0]
["Descrizione (Specificare tipologia di impianto)","Localizzazione","Titolo di Possesso","Anno di acquisto / affitto","Superficie\n(ha,aa)","Costo di affitto\n(B7 del CE)",{"$f":"\"Valore residuo al \"&annoprec&\" (Valore nominale)\"","v":"Valore residuo al 1899 (Valore nominale)"},{"$f":"\"Valore residuo al \"&annoinizio&\" (Valore nominale)\"","v":"Valore residuo al 1900 (Valore nominale)"},{"$f":"\"Valore residuo al \"&annofine&\" (Valore nominale)\"","v":"Valore residuo al 1902 (Valore nominale)"},{"$f":"\"Quota annuale di ammortamento del \"&annoprec","v":"Quota annuale di ammortamento del 1899"},{"$f":"\"Quota annuale di ammortamento del \"&annoinizio","v":"Quota annuale di ammortamento del 1900"},{"$f":"\"Quota annuale di ammortamento del \"&annofine","v":"Quota annuale di ammortamento del 1902"}]
["Totale",null,null,null,{"$f":"SUM(E7:E876)","v":0},null,{"$f":"SUMIFS(G7:G876, $D7:$D876, \"<=\"&annoprec)","v":0},{"$f":"SUMIFS(H7:H876, $D7:$D876, \"<=\"&annoinizio)","v":0},{"$f":"SUMIFS(I7:I876, $D7:$D876, \"<=\"&annofine)","v":0},0,0,0]

{"sheet":"IV C-Beni az-Fabbricati","index":9,"n_rows":7,"n_cols":13,"rows_kept":7,"cut":false,"hidden":false,"merged":[[0,0,0,12],[1,0,1,12]]}
["BANDO PUBBLICO PER L’ATTIVAZIONE DELLA MISURA, M04 – INVESTIMENTI IN IMMOBILIZZAZIONI MATERIALI ART. 17 (UE) 1305/2013, Sottomisura 4.1 – “Sostegni agli investimenti nelle aziende agricole”\nTipologia d’intervento 4.1.1, “Sostegno agli investimenti nelle aziende agricole finalizzati al miglioramento della redditività”\nAllegato 6c) – Articolo 14, comma 5"]
["IV C - Descrizione dei beni aziendali\nDotazione iniziale dei beni (deve corrispondere a quanto riportato nel fascicolo aziendale, ad eccezione per quegli immobili che non hanno una funzionalità produttiva, per I quali si compila solo la colonna A indicando \"Fabbricato non produttivo\" e popolando la colonna E \"Dati catastali\") e integrazione da Piano Investimenti del PSA.\nSono ricompresi in questa tabella le immobilizzazioni materiali di cui alla sezione II – Immobilizzazioni materiali, punto \"1) Terreni e fabbricati\" dello Stato Patrimoniale\n\nFABBRICATI"]
[null,{"$f":"annoprec","v":1899},{"$f":"annoinizio","v":1900},{"$f":"annoint","v":1901},{"$f":"annofine","v":1902}]
["Totale costo di affitti fabbricati",{"$f":"SUMIFS($G$7:$G$998, $B$7:$B$998, \"<=\"&B$3, $F$7:$F$998, \"Affitto\")","v":0},{"$f":"SUMIFS($G$7:$G$998, $B$7:$B$998, \"<=\"&C$3, $F$7:$F$998, \"Affitto\")","v":0},0,0]
["Descrizione/Funzionalità Produttiva","Anno di acquisto / costruzione / affitto","Dimensione (mq)","Localizzazione","Comune","Tipo di possesso","Costo di affitto\n(B7 del CE)",{"$f":"\"Valore residuo al \"&annoprec&\" (Valore nominale)\"","v":"Valore residuo al 1899 (Valore nominale)"},{"$f":"\"Valore residuo al \"&annoinizio&\" (Valore nominale)\"","v":"Valore residuo al 1900 (Valore nominale)"},{"$f":"\"Valore residuo al \"&annofine&\" (Valore nominale)\"","v":"Valore residuo al 1902 (Valore nominale)"},{"$f":"\"Quota annuale di ammortamento del \"&annoprec","v":"Quota annuale di ammortamento del 1899"},{"$f":"\"Quota annuale di ammortamento del \"&annoinizio","v":"Quota annuale di ammortamento del 1900"},{"$f":"\"Quota annuale di ammortamento del \"&annofine","v":"Quota annuale di ammortamento del 1902"}]
["Totale",null,null,null,null,null,null,{"$f":"SUMIFS(H7:H889, $B7:$B889, \"<=\"&annoprec, F7:F889, \"Proprietà\")","v":0},{"$f":"SUMIFS(I7:I889, $B7:$B889, \"<=\"&annoinizio, F7:F889, \"Proprietà\")","v":0},{"$f":"SUMIFS(J7:J889, $B7:$B889, \"<=\"&annofine, F7:F889, \"Proprietà\")","v":0},{"$f":"SUMIFS(K7:K889, $F7:$F889, \"Proprietà\")","v":0},{"$f":"SUMIFS(L7:L889, $F7:$F889, \"Proprietà\")","v":0},{"$f":"SUMIFS(M7:M889, $F7:$F889, \"Proprietà\")","v":0}]
["stalla"]

{"sheet":"IV D-Beni az-Macchinari","index":10,"n_rows":12,"n_cols":11,"rows_kept":12,"cut":false,"hidden":false,"merged":[[0,0,0,10],[1,0,1,10],[6,8,6,9]]}
["BANDO PUBBLICO PER L’ATTIVAZIONE DELLA MISURA, M04 – INVESTIMENTI IN IMMOBILIZZAZIONI MATERIALI ART. 17 (UE) 1305/2013, Sottomisura 4.1 – “Sostegni agli investimenti nelle aziende agricole”\nTipologia d’intervento 4.1.1, “Sostegno agli investimenti nelle aziende agricole finalizzati al miglioramento della redditività”\nAllegato 6c) – Articolo 14, comma 5"]
["IV D - Descrizione dei beni aziendali\nDotazione iniziale dei beni  (deve corrispondere a quanto riportato nel fascicolo aziendale) e integrazione da Piano Investimenti del PSA.\nSono ricompresi in questa tabella le immobilizzazioni materiali di cui alla sezione II – Immobilizzazioni materiali, punti \"2) Impianti e macchinario\" dello Stato Patrimoniale.\n\nMACCHINARI DGR 714/2022\n(Le condizioni prendono come riferimento gli ettari dichiarati sul foglio \"3A-Coltiv\")"]
[null,"Totale terreni\n(Trattrici)",null,null,"Seminativi\n(Mietitrebbiatrici e falciatrinciacaricatrici)",null,null,null,"Vigneti\n(Vendemmiatrici)","Oliveti\n(Macchine per la raccolta delle olive)","Tabacchi\n(Agevolatrici per tabacco)"]
["Totale SAU a fine PSA (ha,aa)",{"$f":"SUMIFS('VI A-Coltiv'!$D:$D, 'VI A-Coltiv'!$A:$A, annofine)","v":0},null,null,{"$f":"SUMIFS('VI A-Coltiv'!$D:$D, 'VI A-Coltiv'!$A:$A, annofine, 'VI A-Coltiv'!$B:$B, \"Seminativi\")","v":0},null,null,null,{"$f":"SUMIFS('VI A-Coltiv'!$D:$D, 'VI A-Coltiv'!$A:$A, annofine, 'VI A-Coltiv'!$B:$B, \"Vigneti\")","v":0},{"$f":"SUMIFS('VI A-Coltiv'!$D:$D, 'VI A-Coltiv'!$A:$A, annofine, 'VI A-Coltiv'!$B:$B, \"Oliveti\")","v":0},{"$f":"SUMIFS('VI A-Coltiv'!$D:$D, 'VI A-Coltiv'!$A:$A, annofine, 'VI A-Coltiv'!$B:$B, \"Tabacchi\")","v":0}]
["SAU minimi per giustificare i KW totali",{"$f":"SUMIFS(K13:K903, A13:A903, \"Trattrici\", J13:J903, \">0\") / 12","v":0},null,null,{"$f":" COUNTIFS(A13:A903, \"Mietitrebbiatrici superiori a 200 KW\", J13:J903, \">0\") * 150\n+ COUNTIFS(A13:A903, \"Mietitrebbiatrici fino a 200 KW\", J13:J903, \">0\") * 100\n+ COUNTIFS(A13:A903, \"Falciatrinciacaricatrici\", J13:J903, \">0\") * 100","v":0},null,null,null,{"$f":" COUNTIFS(A13:A903, \"Vendemmiatrici semoventi\", J13:J903, \">0\") * 30\n+ COUNTIFS(A13:A903, \"Vendemmiatrici trainate\", J13:J903, \">0\") * 10","v":0},{"$f":" COUNTIFS(A13:A903, \"Macchine per raccolta olive\", J13:J903, \">0\") * 6","v":0},{"$f":" COUNTIFS(A13:A903, \"Agevolatrici per tabacco\", J13:J903, \">0\") * 10\n+ COUNTIFS(A13:A903, \"Agevolatrici per tabacco kentucky\", J13:J903, \">0\") * 4\n+ COUNTIFS(A13:A903, \"Agevolatrici automatiche per tabacco\", J13:J903, \">0\") * 30","v":0}]
["Esito",{"$f":"IF(B4>=B5, \"Condizione rispettata\", \"Condizione non rispettata\")","v":"Condizione rispettata"},null,null,{"$f":"IF(E4>=E5, \"Condizione rispettata\", \"Condizione non rispettata\")","v":"Condizione rispettata"},null,null,null,"Condizione rispettata","Condizione rispettata","Condizione rispettata"]
["Costo acquisto entro il primo esercizio",null,null,null,{"$f":"SUMIFS(E13:E913, B13:B913, \"<=\"&annoinizio)","v":0},null,null,null,"Costo acquisto entro il terzo esercizio",null,{"$f":"SUMIFS(E13:E913, B13:B913, \"<=\"&annofine)","v":0}]
[null,{"$f":"annoprec","v":1899},{"$f":"annoinizio","v":1900},{"$f":"annoint","v":1901},{"$f":"annofine","v":1902}]
["Totale costo di acquisto macchinari",{"$f":"SUMIFS($E$13:$E$998, $B$13:$B$998, \"<=\"&B$8, $C$13:$C$998, \"Proprietà\")","v":0},{"$f":"SUMIFS($F$13:$F$998, $B$13:$B$998, \"<=\"&C$8, $C$13:$C$998, \"Proprietà\")","v":0},{"$f":"SUMIFS($G$13:$G$998, $B$13:$B$998, \"<=\"&D$8, $C$13:$C$998, \"Proprietà\")","v":0},{"$f":"SUMIFS($G$13:$G$998, $B$13:$B$998, \"<=\"&E$8, $C$13:$C$998, \"Proprietà\")","v":0}]
["Totale costo di leasing macchinari",{"$f":"SUMIFS($D$13:$D$998, $B$13:$B$998, \"<=\"&B$8, $C$13:$C$998, \"Leasing\")","v":0},{"$f":"SUMIFS($D$13:$D$998, $B$13:$B$998, \"<=\"&C$8, $C$13:$C$998, \"Leasing\")","v":0},0,0]
["MACCHINARI & ATTREZZATURE (tipologia, modello) Categoria DGR 714 del 28/11/2022 sezione H punto 2","Anno di acquisto","Tipo di possesso","Canone annuo per leasing",{"$f":"\"Valore residuo al \"&annoprec&\" (Valore nominale)\"","v":"Valore residuo al 1899 (Valore nominale)"},{"$f":"\"Valore residuo al \"&annoinizio&\" (Valore nominale)\"","v":"Valore residuo al 1900 (Valore nominale)"},{"$f":"\"Valore residuo al \"&annofine&\" (Valore nominale)\"","v":"Valore residuo al 1902 (Valore nominale)"},{"$f":"\"Quota annuale di ammortamento del \"&annoprec","v":"Quota annuale di ammortamento del 1899"},{"$f":"\"Quota annuale di ammortamento del \"&annoinizio","v":"Quota annuale di ammortamento del 1900"},{"$f":"\"Quota annuale di ammortamento del \"&annofine","v":"Quota annuale di ammortamento del 1902"},"POTENZA (KW) (ai fini del calcolo del rapporto KW/ha)"]
["TOTALE",null,null,null,{"$f":"SUMIFS(E13:E902, $C13:$C902, \"Proprietà\", $B13:$B902, \"<=\"&annoprec, H$13:H$902, \">\"&0)","v":0},{"$f":"SUMIFS(F13:F902, $C13:$C902, \"Proprietà\", $B13:$B902, \"<=\"&annoprec, I$13:I$902, \">\"&0)","v":0},{"$f":"SUMIFS(G13:G902, $C13:$C902, \"Proprietà\", $B13:$B902, \"<=\"&annoprec, J$13:J$902, \">\"&0)","v":0},{"$f":"SUMIFS(H13:H902, $C13:$C902, \"Proprietà\", $B13:$B902, \"<=\"&annoprec)","v":0},{"$f":"SUMIFS(I13:I902, $C13:$C902, \"Proprietà\", $B13:$B902, \"<=\"&annoinizio)","v":0},{"$f":"SUMIFS(J13:J902, $C13:$C902, \"Proprietà\", $B13:$B902, \"<=\"&annofine)","v":0}]

{"sheet":"IV E-Beni az-Macc&Attr","index":11,"n_rows":7,"n_cols":12,"rows_kept":7,"cut":false,"hidden":false,"merged":[[0,0,0,11],[1,0,1,11]]}
["BANDO PUBBLICO PER L’ATTIVAZIONE DELLA MISURA, M04 – INVESTIMENTI IN IMMOBILIZZAZIONI MATERIALI ART. 17 (UE) 1305/2013, Sottomisura 4.1 – “Sostegni agli investimenti nelle aziende agricole”\nTipologia d’intervento 4.1.1, “Sostegno agli investimenti nelle aziende agricole finalizzati al miglioramento della redditività”\nAllegato 6c) – Articolo 14, comma 5"]
["IV E - Descrizione dei beni aziendali\nDotazione iniziale dei beni  (deve corrispondere a quanto riportato nel fascicolo aziendale) e integrazione da Piano Investimenti del PSA.\nSono ricompresi in questa tabella le immobilizzazioni materiali di cui alla sezione II – Immobilizzazioni materiali,\npunti \"2) Impianti e macchinario\" e \"3) Attrezzature industriali e commerciali\" dello Stato Patrimoniale.\n\nMACCHINARI E ATTREZZATURE"]
[null,"Totale valore Macchinari","Totale valore Attrezzature","Totale leasing Macchinari","Totale noleggio Attrezzature","Totale quote ammortamento Macchinari","Totale quote ammortamento Attrezzature"]
[{"$f":"annoprec","v":1899},{"$f":"SUMIFS($G$8:$G$895, $B$8:$B$895, \"Macchinario\", $D$8:$D$895, \"<=\"&$A4, $J$8:$J$895, \">0\", $E$8:$E$895, \"Proprietà\")","v":0},{"$f":"SUMIFS($G$8:$G$895, $B$8:$B$895, \"Attrezzatura\", $D$8:$D$895, \"<=\"&$A4, $J$8:$J$895, \">0\", $E$8:$E$895, \"Proprietà\")","v":0},{"$f":"SUMIFS($F$8:$F$895, $B$8:$B$895, \"Macchinario\", $D$8:$D$895, \"<=\"&$A4, $E$8:$E$895, \"Leasing/Noleggio\")","v":0},{"$f":"SUMIFS($F$8:$F$895, $B$8:$B$895, \"Attrezzatura\", $D$8:$D$895, \"<=\"&$A4, $E$8:$E$895, \"Leasing/Noleggio\")","v":0},{"$f":"SUMIFS($J$8:$J$895, $B$8:$B$895, \"Macchinario\", $E$8:$E$895, \"Proprietà\")","v":0},{"$f":"SUMIFS($J$8:$J$895, $B$8:$B$895, \"Attrezzatura\", $E$8:$E$895, \"Proprietà\")","v":0}]
[{"$f":"annoinizio","v":1900},{"$f":"SUMIFS($H$8:$H$895, $B$8:$B$895, \"Macchinario\", $D$8:$D$895, \"<=\"&$A5, $K$8:$K$895, \">0\", $E$8:$E$895, \"Proprietà\")","v":0},{"$f":"SUMIFS($H$8:$H$895, $B$8:$B$895, \"Attrezzatura\", $D$8:$D$895, \"<=\"&$A5, $K$8:$K$895, \">0\", $E$8:$E$895, \"Proprietà\")","v":0},{"$f":"SUMIFS($F$8:$F$895, $B$8:$B$895, \"Macchinario\", $D$8:$D$895, \"<=\"&$A5, $E$8:$E$895, \"Leasing/Noleggio\")","v":0},{"$f":"SUMIFS($F$8:$F$895, $B$8:$B$895, \"Attrezzatura\", $D$8:$D$895, \"<=\"&$A5, $E$8:$E$895, \"Leasing/Noleggio\")","v":0},{"$f":"SUMIFS($K$8:$K$895, $B$8:$B$895, \"Macchinario\", $E$8:$E$895, \"Proprietà\")","v":0},{"$f":"SUMIFS($K$8:$K$895, $B$8:$B$895, \"Attrezzatura\", $E$8:$E$895, \"Proprietà\")","v":0}]
[{"$f":"annofine","v":1902},{"$f":"SUMIFS($I$8:$I$895, $B$8:$B$895, \"Macchinario\", $D$8:$D$895, \"<=\"&$A6, $L$8:$L$895, \">0\", $E$8:$E$895, \"Proprietà\")","v":0},{"$f":"SUMIFS($I$8:$I$895, $B$8:$B$895, \"Attrezzatura\", $D$8:$D$895, \"<=\"&$A6, $L$8:$L$895, \">0\", $E$8:$E$895, \"Proprietà\")","v":0},{"$f":"SUMIFS($F$8:$F$895, $B$8:$B$895, \"Macchinario\", $D$8:$D$895, \"<=\"&$A6, $E$8:$E$895, \"Leasing/Noleggio\")","v":0},{"$f":"SUMIFS($F$8:$F$895, $B$8:$B$895, \"Attrezzatura\", $D$8:$D$895, \"<=\"&$A6, $E$8:$E$895, \"Leasing/Noleggio\")","v":0},{"$f":"SUMIFS($L$8:$L$895, $B$8:$B$895, \"Macchinario\", $E$8:$E$895, \"Proprietà\")","v":0},{"$f":"SUMIFS($L$8:$L$895, $B$8:$B$895, \"Attrezzatura\", $E$8:$E$895, \"Proprietà\")","v":0}]
["Macchinari, attrezzature, impianti (tipologia, modello)  che non entrano nel calcolo KW/SAU","Tipo","Potenza (KW)","Anno di acquisto","Tipo di possesso","Canone annuo per leasing/noleggio",{"$f":"\"Valore residuo al \"&annoprec&\" (Valore nominale)\"","v":"Valore residuo al 1899 (Valore nominale)"},{"$f":"\"Valore residuo al \"&annoinizio&\" (Valore nominale)\"","v":"Valore residuo al 1900 (Valore nominale)"},{"$f":"\"Valore residuo al \"&annofine&\" (Valore nominale)\"","v":"Valore residuo al 1902 (Valore nominale)"},{"$f":"\"Quota annuale di ammortamento del \"&annoprec","v":"Quota annuale di ammortamento del 1899"},{"$f":"\"Quota annuale di ammortamento del \"&annoinizio","v":"Quota annuale di ammortamento del 1900"},{"$f":"\"Quota annuale di ammortamento del \"&annofine","v":"Quota annuale di ammortamento del 1902"}]

{"sheet":"IV F-Beni az-Immob immat","index":12,"n_rows":12,"n_cols":10,"rows_kept":12,"cut":false,"hidden":false,"merged":[[0,0,0,9],[1,0,1,9],[2,0,2,2],[2,4,2,8]]}
["BANDO PUBBLICO PER L’ATTIVAZIONE DELLA MISURA, M04 – INVESTIMENTI IN IMMOBILIZZAZIONI MATERIALI ART. 17 (UE) 1305/2013, Sottomisura 4.1 – “Sostegni agli investimenti nelle aziende agricole”\nTipologia d’intervento 4.1.1, “Sostegno agli investimenti nelle aziende agricole finalizzati al miglioramento della redditività”\nAllegato 6c) – Articolo 14, comma 5"]
["IV F - Descrizione dei beni aziendali\nDotazione iniziale dei beni (deve corrispondere a quanto riportato nel fascicolo aziendale) e integrazione da Piano Investimenti del PSA.\nSono ricompresi in questa tabella le immobilizzazioni immateriali di cui alla sezione I – Immobilizzazioni immateriali dello Stato Patrimoniale.\n\nIMMOBILIZZAZIONI IMMATERIALI"]
["Costo di acquisto al primo esercizio",null,null,{"$f":"C5","v":0},"Costo di acquisto al terzo esercizio",null,null,null,null,{"$f":"D5","v":0}]
["Descrizione/Funzionalità Produttiva",{"$f":"\"Costo di Acquisto complessivo al \"&annoprec&_xlfn.UNICHAR(10)&\"(Dotazione iniziale)\"","v":"Costo di Acquisto complessivo al 1899\n(Dotazione iniziale)"},{"$f":"\"Costo di Acquisto complessivo al \"&annoinizio&_xlfn.UNICHAR(10)&\"(Dotazione iniziale + Piano investimento PSA)\"","v":"Costo di Acquisto complessivo al 1900\n(Dotazione iniziale + Piano investimento PSA)"},{"$f":"\"Costo di Acquisto complessivo al \"&annofine&_xlfn.UNICHAR(10)&\"(Dotazione iniziale + Piano investimento PSA)\"","v":"Costo di Acquisto complessivo al 1902\n(Dotazione iniziale + Piano investimento PSA)"},{"$f":"\"Valore nominale residuo al \"&annoprec","v":"Valore nominale residuo al 1899"},{"$f":"\"Valore nominale residuo al \"&annoinizio","v":"Valore nominale residuo al 1900"},{"$f":"\"Valore nominale residuo al \"&annofine","v":"Valore nominale residuo al 1902"},{"$f":"\"Quota annuale di ammortamento del \"&annoprec","v":"Quota annuale di ammortamento del 1899"},{"$f":"\"Quota annuale di ammortamento del \"&annoinizio","v":"Quota annuale di ammortamento del 1900"},{"$f":"\"Quota annuale di ammortamento del \"&annofine","v":"Quota annuale di ammortamento del 1902"}]
["Totale",{"$f":"SUM(B6:B12)","v":0},0,0,{"$f":"SUM(E6:E12)","v":0},0,0,0,0,0]
["1) costi di impianto e di ampliamento"]
["2) costi di sviluppo"]
["3) diritti di brevetto industriale e diritti di utilizzazione delle opere dell’ingegno"]
["4) concessioni, licenze, marchi e diritti simili"]
["5) avviamento"]
["6) immobilizzazioni in corso e acconti"]
["7) altre"]

{"sheet":"V-Forza lavoro","index":13,"n_rows":31,"n_cols":9,"rows_kept":31,"cut":false,"hidden":false,"merged":[[0,0,0,8],[1,0,1,8],[5,0,5,1],[4,0,4,1],[3,0,3,1],[2,0,2,1],[3,7,5,8],[3,5,5,6],[27,0,30,0],[7,0,10,0],[11,0,14,0],[15,0,18,0],[19,0,22,0],[23,0,26,0]]}
["BANDO PUBBLICO PER L’ATTIVAZIONE DELLA MISURA, M04 – INVESTIMENTI IN IMMOBILIZZAZIONI MATERIALI ART. 17 (UE) 1305/2013, Sottomisura 4.1 – “Sostegni agli investimenti nelle aziende agricole”\nTipologia d’intervento 4.1.1, “Sostegno agli investimenti nelle aziende agricole finalizzati al miglioramento della redditività”\nAllegato 6c) – Articolo 14, comma 5"]
["V - Struttura organizzativa: Forza lavoro\nSono ricompresi in questa tabella i costi di cui alla sezione B) COSTI DELLA PRODUZIONE, punto \"9) per il personale\" del Conto Economico\n\nORGANIZZAZIONE AZIENDALE"]
[null,null,{"$f":"annoprec","v":1899},{"$f":"annoinizio","v":1900},{"$f":"annofine","v":1902}]
["a) salari e stipendi ",null,{"$f":"SUMIFS($C$8:$C$874, $G$8:$G$874, \">0\", $B$8:$B$874, annoprec)","v":0},{"$f":"SUMIFS($C$8:$C$874, $G$8:$G$874, \">0\", $B$8:$B$874, annoinizio)","v":0},{"$f":"SUMIFS($C$8:$C$874, $G$8:$G$874, \">0\", $B$8:$B$874, annofine)","v":0},"Forma di conduzione"]
["b) oneri sociali ",null,{"$f":"SUMIFS($D$8:$D$874, $G$8:$G$874, \">0\", $B$8:$B$874, annoprec)","v":0},{"$f":"SUMIFS($D$8:$D$874, $G$8:$G$874, \">0\", $B$8:$B$874, annoinizio)","v":0},{"$f":"SUMIFS($D$8:$D$874, $G$8:$G$874, \">0\", $B$8:$B$874, annofine)","v":0}]
["c) trattamento di fine rapporto ",null,{"$f":"SUMIFS($E$8:$E$874, $G$8:$G$874, \">0\", $B$8:$B$874, annoprec)","v":0},{"$f":"SUMIFS($E$8:$E$874, $G$8:$G$874, \">0\", $B$8:$B$874, annoinizio)","v":0},{"$f":"SUMIFS($E$8:$E$874, $G$8:$G$874, \">0\", $B$8:$B$874, annofine)","v":0}]
["(a) Qualifica","(b) Periodo","(c) Salario e stipendio (annui)","(d) Oneri sociali (compresa INPS titolare d'azienda)","(e) Trattamento di fine rapporto","(f) Costo del personale","(g1) Giornate impiegate","(g2) di cui amministrativo","(h) ULA"]
["Soci",{"$f":"annoprec","v":1899},null,null,null,{"$f":"SUM(C8:E8)","v":0},null,null,{"$f":"(G8-H8)/215","v":0}]
[null,{"$f":"annoinizio","v":1900},null,null,null,{"$f":"SUM(C9:E9)","v":0},null,null,{"$f":"(G9-H9)/215","v":0}]
[null,{"$f":"annoint","v":1901},null,null,null,0,null,null,0]
[null,{"$f":"annofine","v":1902},null,null,null,0,null,null,0]
["Familiari",{"$f":"annoprec","v":1899},null,null,null,0,null,null,0]
[null,{"$f":"annoinizio","v":1900},null,null,null,0,null,null,0]
[null,{"$f":"annoint","v":1901},null,null,null,0,null,null,0]
[null,{"$f":"annofine","v":1902},null,null,null,0,null,null,0]
["Lavoratori dipendenti a tempo determinato",{"$f":"annoprec","v":1899},null,null,null,0,null,null,0]
[null,{"$f":"annoinizio","v":1900},null,null,null,0,null,null,0]
[null,{"$f":"annoint","v":1901},null,null,null,0,null,null,0]
[null,{"$f":"annofine","v":1902},null,null,null,0,null,null,0]
["Lavoratori dipendenti a tempo indeterminato",{"$f":"annoprec","v":1899},null,null,null,0,null,null,0]
[null,{"$f":"annoinizio","v":1900},null,null,null,0,null,null,0]
[null,{"$f":"annoint","v":1901},null,null,null,0,null,null,0]
[null,{"$f":"annofine","v":1902},null,null,null,0,null,null,0]
["Lavoratori autonomi",{"$f":"annoprec","v":1899},null,null,null,0,null,null,0]
[null,{"$f":"annoinizio","v":1900},null,null,null,0,null,null,0]
[null,{"$f":"annoint","v":1901},null,null,null,0,null,null,0]
[null,{"$f":"annofine","v":1902},null,null,null,0,null,null,0]
["Manodopera avventizia",{"$f":"annoprec","v":1899},null,null,null,0,null,null,0]
[null,{"$f":"annoinizio","v":1900},null,null,null,0,null,null,0]
[null,{"$f":"annoint","v":1901},null,null,null,0,null,null,0]
[null,{"$f":"annofine","v":1902},null,null,null,0,null,null,0]

{"sheet":"VI A-Coltiv","index":14,"n_rows":13,"n_cols":23,"rows_kept":13,"cut":false,"hidden":false,"merged":[[9,16,12,16],[0,0,0,10],[9,2,12,2],[1,0,1,10],[2,7,2,10]]}
["BANDO PUBBLICO PER L’ATTIVAZIONE DELLA MISURA, M04 – INVESTIMENTI IN IMMOBILIZZAZIONI MATERIALI ART. 17 (UE) 1305/2013, Sottomisura 4.1 – “Sostegni agli investimenti nelle aziende agricole”\nTipologia d’intervento 4.1.1, “Sostegno agli investimenti nelle aziende agricole finalizzati al miglioramento della redditività”\nAllegato 6c) – Articolo 14, comma 5"]
["VI A - Attività di Coltivazione\n(Nel campo \"a) Coltura\", differenziare agricoltura convenzionale da operazioni art 28 e 29)"]
[null,{"$f":"annoprec","v":1899},{"$f":"annoinizio","v":1900},{"$f":"annoint","v":1901},{"$f":"annofine","v":1902},null,"Sistema di rilevazione Prezzi","(indicare il sistema di riferimento adottato)"]
["Premi"]
["Anno","a) Categoria","b) Coltura*","c) Ha,aa","d) Resa media per ettaro\n(quintale/ha)","e) Percentuale reimpiegata","f) Percentuale da trasformare","g) Prezzo medio unitario\n(€/q)","h) Ricavi delle vendite e delle prestazioni","i) Giornate uomo","f) Costi medi variabili\n(sul totale della superficie, colonna \"b) Ha,aa\")"]
[{"$f":"\"Totale attività \"&annoprec","v":"Totale attività 1899"},null,null,{"$f":"SUMIFS(D$10:D$868,$A$10:$A$868, \"Situazione di partenza\")","v":0},null,null,null,null,{"$f":"SUMIFS(I$10:I$868,$A$10:$A$868, \"Situazione di partenza\")","v":0},{"$f":"SUMIFS(J$10:J$868,$A$10:$A$868, \"Situazione di partenza\")","v":0},{"$f":"SUMIFS(K$10:K$868,$A$10:$A$868, \"Situazione di partenza\")","v":0}]
[{"$f":"\"Totale attività \"&annoinizio","v":"Totale attività 1900"},null,null,{"$f":"SUMIFS(D$10:D$868,$A$10:$A$868, annoinizio)","v":0},null,null,null,null,{"$f":"SUMIFS(I$10:I$868,$A$10:$A$868, annoinizio)","v":0},{"$f":"SUMIFS(J$10:J$868,$A$10:$A$868, annoinizio)","v":0},{"$f":"SUMIFS(K$10:K$868,$A$10:$A$868, annoinizio)","v":0}]
[{"$f":"\"Totale attività \"&annoint","v":"Totale attività 1901"},null,null,{"$f":"SUMIFS(D$10:D$868,$A$10:$A$868, annoint)","v":0},null,null,null,null,{"$f":"SUMIFS(I$10:I$868,$A$10:$A$868, annoint)","v":0},{"$f":"SUMIFS(J$10:J$868,$A$10:$A$868, annoint)","v":0},{"$f":"SUMIFS(K$10:K$868,$A$10:$A$868, annoint)","v":0}]
[{"$f":"\"Totale attività \"&annofine","v":"Totale attività 1902"},null,null,{"$f":"SUMIFS(D$10:D$868,$A$10:$A$868, annofine)","v":0},null,null,null,null,{"$f":"SUMIFS(I$10:I$868,$A$10:$A$868, annofine)","v":0},{"$f":"SUMIFS(J$10:J$868,$A$10:$A$868, annofine)","v":0},{"$f":"SUMIFS(K$10:K$868,$A$10:$A$868, annofine)","v":0}]
["Situazione di partenza",null,null,null,null,null,null,null,{"$f":"E10*D10*(1-F10-G10)*H10","v":0},null,null,null,null,null,"Situazione di partenza",null,null,null,null,null,null,null,{"$f":"S10*R10*(1-T10-U10)*V10","v":0}]
[{"$f":"annoinizio","v":1900},{"$f":"B10","v":"00:00:00"},null,null,null,null,null,null,{"$f":"E11*D11*(1-F11-G11)*H11","v":0},null,null,null,null,null,{"$f":"annoinizio","v":1900},{"$f":"P10","v":"00:00:00"},null,null,null,null,null,null,{"$f":"S11*R11*(1-T11-U11)*V11","v":0}]
[{"$f":"annoint","v":1901},{"$f":"B10","v":"00:00:00"},null,null,null,null,null,null,0,null,null,null,null,null,{"$f":"annoint","v":1901},{"$f":"P10","v":"00:00:00"},null,null,null,null,null,null,0]
[{"$f":"annofine","v":1902},{"$f":"B10","v":"00:00:00"},null,null,null,null,null,null,0,null,null,null,null,null,{"$f":"annofine","v":1902},{"$f":"P10","v":"00:00:00"},null,null,null,null,null,null,0]

{"sheet":"VI B-Allev","index":15,"n_rows":25,"n_cols":35,"rows_kept":25,"cut":false,"hidden":false,"merged":[[20,34,24,34],[20,27,24,27],[20,28,24,28],[20,29,24,29],[20,30,24,30],[20,24,24,24],[20,31,24,31],[20,32,24,32],[20,33,24,33],[15,25,19,25],[20,25,24,25],[10,34,14,34],[15,24,19,24],[15,31,19,31],[15,32,19,32],[15,33,19,33],[15,34,19,34],[15,27,19,27],[15,28,19,28],[10,24,14,24],[10,31,14,31],[10,32,14,32],[10,33,14,33],[15,29,19,29],[15,30,19,30],[10,30,14,30],[10,22,14,22],[10,23,14,23],[10,25,14,25],[10,28,14,28],[10,29,14,29],[10,27,14,27],[9,1,24,1],[10,13,14,13],[10,11,14,11],[10,10,14,10],[10,9,14,9],[20,13,24,13],[15,13,19,13],[15,11,19,11],[20,4,24,4],[15,4,19,4],[20,3,24,3],[15,3,19,3],[20,10,24,10],[15,10,19,10],[2,2,2,3],[9,20,24,20],[15,22,19,22],[15,23,19,23],[20,22,24,22],[20,23,24,23],[20,12,24,12],[15,12,19,12],[10,12,14,12],[10,3,14,3],[10,4,14,4],[20,9,24,9],[20,8,24,8],[15,9,19,9],[15,8,19,8],[20,11,24,11],[1,0,1,15],[0,0,0,15],[10,14,14,14],[15,14,19,14],[20,14,24,14],[10,15,14,15],[15,15,19,15],[20,15,24,15],[20,6,24,6],[15,6,19,6],[10,6,14,6],[10,5,14,5],[15,5,19,5],[20,5,24,5],[10,8,14,8],[3,2,3,3]]}
["BANDO PUBBLICO PER L’ATTIVAZIONE DELLA MISURA, M04 – INVESTIMENTI IN IMMOBILIZZAZIONI MATERIALI ART. 17 (UE) 1305/2013, Sottomisura 4.1 – “Sostegni agli investimenti nelle aziende agricole”\nTipologia d’intervento 4.1.1, “Sostegno agli investimenti nelle aziende agricole finalizzati al miglioramento della redditività”"]
["VI A - Attività di Allevamento\n(Distinguere le unità classificate come fattore della produzione da quelle classificate come prodotto finito.\nIl riscontro della situazione di partenza dei capi viene effettuato con la BDN)"]
[null,{"$f":"annoprec","v":1899},{"$f":"annoinizio","v":1900},null,{"$f":"annoint","v":1901},{"$f":"annofine","v":1902}]
["Premi"]
["Totale attività ex-ante",null,null,null,{"$f":"SUMIFS(E$10:E$1677,$A$10:$A$1677, \"Situazione di partenza\")","v":0},null,null,null,{"$f":"SUMIFS(I$10:I$1677,$A$10:$A$1677, \"Situazione di partenza\")","v":0},0,0,0,0,0,0,0]
[{"$f":"\"Totale attività \"&annoinizio","v":"Totale attività 1900"},null,null,null,{"$f":"SUMIFS(E$10:E$1677,$A$10:$A$1677, annoinizio)","v":0},null,null,null,{"$f":"SUMIFS(I$10:I$1677,$A$10:$A$1677, annoinizio)","v":0},0,0,0,0,0,0,0]
[{"$f":"\"Totale attività \"&annoint","v":"Totale attività 1901"},null,null,null,{"$f":"SUMIFS(E$10:E$1677,$A$10:$A$1677, annoint)","v":0},null,null,null,{"$f":"SUMIFS(I$10:I$1677,$A$10:$A$1677, annoint)","v":0},0,0,0,0,0,0,0]
[{"$f":"\"Totale attività \"&annofine","v":"Totale attività 1902"},null,null,null,{"$f":"SUMIFS(E$10:E$1677,$A$10:$A$1677, annofine)","v":0},null,null,null,{"$f":"SUMIFS(I$10:I$1677,$A$10:$A$1677, annofine)","v":0},0,0,0,0,0,0,0]
["Anno","a) Descrizione","b) N. capi","c) Consistenza media","d) Giornate uomo totali necessarie per l'intera consistenza","e) Fattore della produzione","f) Valore standard del capo","g) Costo capi acquistati / venduti\n(€/capo)","h) UBA","i) Unità foraggere necessarie per l'intera consistenza","l) Valore produzione primaria (es. latte, lana, miele, etc.)","m) Costo acquisto capi","n) Costi medi variabili (escluso costo di acquisto capi)","o) Ricavi delle Vendite e delle prestazioni","p) Valore patrimoniale di stalla","q) Rimanenze"]
["Situazione di partenza",null,null,null,null,null,null,null,null,null,null,null,null,null,null,null,null,null,null,"Situazione di partenza"]
[{"$f":"annoinizio","v":1900},null,null,null,null,null,null,null,null,null,null,{"$f":"H12*C12","v":0},null,{"$f":"C15*H15+K11","v":0},{"$f":"IF(F11=\"SI\", (C10+C12+C13-C14-C15)*G11, 0)","v":0},{"$f":"IF(F11=\"NO\", (C10+C12+C13-C14-C15)*G11, 0)","v":0},null,null,null,{"$f":"annoinizio","v":1900},null,null,null,null,null,null,null,null,null,null,{"$f":"AA12*V12","v":0},null,{"$f":"V15*AA15+AD11","v":0},{"$f":"IF(Y11=\"SI\", (V10+V12+V13-V14-V15)*Z11, 0)","v":0},{"$f":"IF(Y11=\"NO\", (V10+V12+V13-V14-V15)*Z11, 0)","v":0}]
["Capi acquistati",null,null,null,null,null,null,null,null,null,null,null,null,null,null,null,null,null,null,"Capi acquistati"]
["Capi nati (o entrati nella categoria per peso/età)",null,null,null,null,null,null,null,null,null,null,null,null,null,null,null,null,null,null,"Capi nati (o entrati nella categoria per peso/età)"]
["Capi morti (o usciti dalla categoria per peso/età)",null,null,null,null,null,null,null,null,null,null,null,null,null,null,null,null,null,null,"Capi morti (o usciti dalla categoria per peso/età)"]
["Capi venduti",null,null,null,null,null,null,null,null,null,null,null,null,null,null,null,null,null,null,"Capi venduti"]
[{"$f":"annoint","v":1901},null,null,null,null,null,null,null,null,null,null,{"$f":"H17*C17","v":0},null,{"$f":"C20*H20+K16","v":0},{"$f":"IF(F16=\"SI\", (C10+C12+C13-C14-C15+C17+C18-C19-C20)*G16, 0)","v":0},{"$f":"IF(F16=\"NO\", (C10+C12+C13-C14-C15+C17+C18-C19-C20)*G16, 0)","v":0},null,null,null,{"$f":"annoint","v":1901},null,null,null,null,null,null,null,null,null,null,{"$f":"AA17*V17","v":0},null,{"$f":"V20*AA20+AD16","v":0},{"$f":"IF(Y16=\"SI\", (V10+V12+V13-V14-V15+V17+V18-V19-V20)*Z16, 0)","v":0},{"$f":"IF(Y16=\"NO\", (V10+V12+V13-V14-V15+V17+V18-V19-V20)*Z16, 0)","v":0}]
["Capi acquistati",null,null,null,null,null,null,null,null,null,null,null,null,null,null,null,null,null,null,"Capi acquistati"]
["Capi nati (o entrati nella categoria per peso/età)",null,null,null,null,null,null,null,null,null,null,null,null,null,null,null,null,null,null,"Capi nati (o entrati nella categoria per peso/età)"]
["Capi morti (o usciti dalla categoria per peso/età)",null,null,null,null,null,null,null,null,null,null,null,null,null,null,null,null,null,null,"Capi morti (o usciti dalla categoria per peso/età)"]
["Capi venduti",null,null,null,null,null,null,null,null,null,null,null,null,null,null,null,null,null,null,"Capi venduti"]
[{"$f":"annofine","v":1902},null,null,null,null,null,null,null,null,null,null,{"$f":"H22*C22","v":0},null,{"$f":"C25*H25+K21","v":0},{"$f":"IF(F21=\"SI\", (C10+C12+C13-C14-C15+C17+C18-C19-C20+C22+C23-C24-C25)*G21, 0)","v":0},{"$f":"IF(F21=\"NO\", (C10+C12+C13-C14-C15+C17+C18-C19-C20+C22+C23-C24-C25)*G21, 0)","v":0},null,null,null,{"$f":"annofine","v":1902},null,null,null,null,null,null,null,null,null,null,{"$f":"AA22*V22","v":0},null,{"$f":"V25*AA25+AD21","v":0},{"$f":"IF(Y21=\"SI\", (V10+V12+V13-V14-V15+V17+V18-V19-V20+V22+V23-V24-V25)*Z21, 0)","v":0},{"$f":"IF(Y21=\"NO\", (V10+V12+V13-V14-V15+V17+V18-V19-V20+V22+V23-V24-V25)*Z21, 0)","v":0}]
["Capi acquistati",null,null,null,null,null,null,null,null,null,null,null,null,null,null,null,null,null,null,"Capi acquistati"]
["Capi nati (o entrati nella categoria per peso/età)",null,null,null,null,null,null,null,null,null,null,null,null,null,null,null,null,null,null,"Capi nati (o entrati nella categoria per peso/età)"]
["Capi morti (o usciti dalla categoria per peso/età)",null,null,null,null,null,null,null,null,null,null,null,null,null,null,null,null,null,null,"Capi morti (o usciti dalla categoria per peso/età)"]
["Capi venduti",null,null,null,null,null,null,null,null,null,null,null,null,null,null,null,null,null,null,"Capi venduti"]

{"sheet":"VI C-Costi var COL-ALL","index":16,"n_rows":31,"n_cols":10,"rows_kept":31,"cut":false,"hidden":false,"merged":[[17,5,23,5],[28,5,30,5],[24,0,27,0],[24,5,27,5],[16,0,16,4],[17,0,23,0],[28,0,30,0],[6,7,6,9],[2,0,3,1],[5,0,5,4],[0,0,0,9],[16,5,16,9],[2,5,3,6],[5,5,5,9],[6,0,14,0],[6,5,14,5],[4,5,4,9],[4,0,4,4],[6,2,6,4],[1,0,1,9]]}
["BANDO PUBBLICO PER L’ATTIVAZIONE DELLA MISURA, M04 – INVESTIMENTI IN IMMOBILIZZAZIONI MATERIALI ART. 17 (UE) 1305/2013, Sottomisura 4.1 – “Sostegni agli investimenti nelle aziende agricole”\nTipologia d’intervento 4.1.1, “Sostegno agli investimenti nelle aziende agricole finalizzati al miglioramento della redditività”"]
["VI C - Costi variabili delle attività di Coltivazione ed Allevamento\n(Un totale riportato in rosso significa che non corrisponde con il dichiarato nei precedenti fogli)"]
["Costi variabili di COLTIVAZIONE",null,{"$f":"\"Anno \"&annoprec","v":"Anno 1899"},{"$f":"\"Anno \"&annoinizio","v":"Anno 1900"},{"$f":"\"Anno \"&annofine","v":"Anno 1902"},"Totale costi variabili di ALLEVAMENTO",null,{"$f":"\"Anno \"&annoprec","v":"Anno 1899"},{"$f":"\"Anno \"&annoinizio","v":"Anno 1900"},{"$f":"\"Anno \"&annofine","v":"Anno 1902"}]
[null,null,{"$f":"'VI A-Coltiv'!K6","v":0},{"$f":"'VI A-Coltiv'!K7","v":0},{"$f":"'VI A-Coltiv'!K9","v":0},null,null,{"$f":"'VI B-Allev'!L5+'VI B-Allev'!M5","v":0},{"$f":"'VI B-Allev'!L6+'VI B-Allev'!M6","v":0},{"$f":"'VI B-Allev'!L8+'VI B-Allev'!M8","v":0}]
["CE, B) Costi della Produzione Per le voci di costo 6), 7), 8), 9), 11), 14) inserire il dettaglio corrispondente al totale complessivo",null,null,null,null,"CE, B) Costi della Produzione: Per le voci di costo 6), 7), 8), 9), 11), 14) inserire il dettaglio corrispondente al totale complessivo"]
["Specifiche costi variabili di COLTIVAZIONE",null,null,null,null,"Specifiche costi variabili di ALLEVAMENTO"]
["B) COSTI DELLA PRODUZIONE  ",null,"Importi",null,null,"B) COSTI DELLA PRODUZIONE  ",null,"Importi"]
[null,"Descrizione",{"$f":"\"Anno \"&annoprec","v":"Anno 1899"},{"$f":"\"Anno \"&annoinizio","v":"Anno 1900"},{"$f":"\"Anno \"&annofine","v":"Anno 1902"},null,"Descrizione",{"$f":"\"Anno \"&annoprec","v":"Anno 1899"},{"$f":"\"Anno \"&annoinizio","v":"Anno 1900"},{"$f":"\"Anno \"&annofine","v":"Anno 1902"}]
[null,"TOTALE COMPLESSIVO",{"$f":"SUM(C10:C15)","v":0},{"$f":"SUM(D10:D15)","v":0},0,null,"TOTALE COMPLESSIVO",{"$f":"SUM(H10:H15)","v":0},{"$f":"SUM(I10:I15)","v":0},{"$f":"SUM(J10:J15)","v":0}]
[null,"6) per materie prime, sussidiarie, di consumo e di merci",null,null,null,null,"6) per materie prime, sussidiarie, di consumo e di merci"]
[null,"7)  per servizi ",null,null,null,null,"7)  per servizi "]
[null,"8)  per godimento di beni di terzi",null,null,null,null,"8)  per godimento di beni di terzi"]
[null,"9) per il personale\n(il totale dei punti \"9) per il personale\" dei fogli \"VI-Costi var COL-ALL\" e \"VI-Costi var TRA-COM-DIV\" deve essere uguale al totale dei costi del personale riportato nel foglio \"V-Forza lavoro\")",null,null,null,null,"9) per il personale\n(il totale dei punti \"9) per il personale\" dei fogli \"VI-Costi var COL-ALL\" e \"VI-Costi var TRA-COM-DIV\" deve essere uguale al totale dei costi del personale riportato nel foglio \"V-Forza lavoro\")"]
[null,"11) variazioni delle rimanenze di materie prime, sussidiarie, di consumo e merci ",null,null,null,null,"11) variazioni delle rimanenze di materie prime, sussidiarie, di consumo e merci "]
[null,"14) oneri diversi di gestione ",null,null,null,null,"14) oneri diversi di gestione "]
[]
["Rientrano tra i costi variabili di produzione diretti: COLTIVAZIONE",null,null,null,null,"Rientrano tra i costi variabili di produzione diretti: ALLEVAMENTO"]
["6) per materie prime, sussidiarie, di consumo e di merci","Costi per Sementi ",null,null,null,"6) per materie prime, sussidiarie, di consumo e di merci","Coltivazioni reimpiegate"]
[null,"Costi per Piantine",null,null,null,null,"Costo acquisto capi"]
[null,"Costi per Concimi",null,null,null,null,"Costo Mangimi e integratori"]
[null,"Costi per Fertilizzanti",null,null,null,null,"Costi per medicinali"]
[null,"Costi per fitosanitari",null,null,null,null,"Spese veterinarie"]
[null,"Costi per Manutenzioni"]
[null,"Costi per carburanti"]
["7)  per servizi ","Spese per assicurazioni",null,null,null,"7)  per servizi ","Spese per assicurazioni"]
[null,"Spese per consulenze agronomiche",null,null,null,null,"Spese per consulenze veterinarie"]
[null,"Spese di progettazione",null,null,null,null,"Spese di progettazione"]
[null,"Spese per energia elettrica",null,null,null,null,"Spese per energia elettrica"]
["8) Per godimento beni di terzi","Spese di noleggio/leasing macchinari e attrezzature",null,null,null,"8) Per godimento beni di terzi","Spese di noleggio/leasing macchinari e attrezzature"]
[null,"Spese di affitto terreni e piantagioni",null,null,null,null,"Spese di affitto terreni"]
[null,"Spese di affitto fabbricati",null,null,null,null,"Spese di affitto fabbricati"]

{"sheet":"VI D-Trasform","index":17,"n_rows":15,"n_cols":23,"rows_kept":15,"cut":false,"hidden":false,"merged":[[11,1,14,1],[11,2,14,2],[7,14,10,14],[7,15,10,15],[0,0,0,9],[1,0,1,9],[7,2,10,2],[7,1,10,1]]}
["BANDO PUBBLICO PER L’ATTIVAZIONE DELLA MISURA, M04 – INVESTIMENTI IN IMMOBILIZZAZIONI MATERIALI ART. 17 (UE) 1305/2013, Sottomisura 4.1 – “Sostegni agli investimenti nelle aziende agricole”\nTipologia d’intervento 4.1.1, “Sostegno agli investimenti nelle aziende agricole finalizzati al miglioramento della redditività”\nAllegato 6c) – Articolo 14, comma 5"]
["VI D - Attività di Trasformazione (Prodotti Allegato 1 del Trattato CE)"]
["Trasformazione","Prodotto agricolo primario","a) Prodotto agricolo in uscita","b) Materia prima impiegata (%)","c) Resa di trasformazione (%)","d1) Quantità trasformata ottenuta (output)","d2) Unità di misura","e) Prezzo unitario del prodotto trasformato","f) Costi variabili di trasformazione","f) Ricavi delle vendite e delle prestazioni"]
["Totale attività ex-ante",null,null,null,null,null,null,null,{"$f":"SUMIFS(I$8:I$874,$A$8:$A$874, \"Situazione di partenza\")","v":0},{"$f":"SUMIFS(J$8:J$874,$A$8:$A$874, \"Situazione di partenza\")","v":0}]
[{"$f":"\"Totale attività \"&annoinizio","v":"Totale attività 1900"},null,null,null,null,null,null,null,{"$f":"SUMIFS(I$8:I$874,$A$8:$A$874, annoinizio)","v":0},{"$f":"SUMIFS(J$8:J$874,$A$8:$A$874, annoinizio)","v":0}]
[{"$f":"\"Totale attività \"&annoint","v":"Totale attività 1901"},null,null,null,null,null,null,null,{"$f":"SUMIFS(I$8:I$874,$A$8:$A$874, annoint)","v":0},{"$f":"SUMIFS(J$8:J$874,$A$8:$A$874, annoint)","v":0}]
[{"$f":"\"Totale attività \"&annofine","v":"Totale attività 1902"},null,null,null,null,null,null,null,{"$f":"SUMIFS(I$8:I$874,$A$8:$A$874, annofine)","v":0},{"$f":"SUMIFS(J$8:J$874,$A$8:$A$874, annofine)","v":0}]
["Situazione di partenza",null,null,null,null,null,null,null,null,{"$f":"F8*H8","v":0},null,null,null,"Situazione di partenza",null,null,null,null,null,null,null,null,{"$f":"S8*U8","v":0}]
[{"$f":"annoinizio","v":1900},null,null,null,null,null,null,null,null,{"$f":"F9*H9","v":0},null,null,null,{"$f":"annoinizio","v":1900},null,null,null,null,null,null,null,null,{"$f":"S9*U9","v":0}]
[{"$f":"annoint","v":1901},null,null,null,null,null,null,null,null,{"$f":"F10*H10","v":0},null,null,null,{"$f":"annoint","v":1901},null,null,null,null,null,null,null,null,{"$f":"S10*U10","v":0}]
[{"$f":"annofine","v":1902},null,null,null,null,null,null,null,null,0,null,null,null,{"$f":"annofine","v":1902},null,null,null,null,null,null,null,null,0]
["Situazione di partenza",null,null,null,null,null,null,null,null,{"$f":"F12*H12","v":0}]
[{"$f":"annoinizio","v":1900},null,null,null,null,null,null,null,null,{"$f":"F13*H13","v":0}]
[{"$f":"annoint","v":1901},null,null,null,null,null,null,null,null,{"$f":"F14*H14","v":0}]
[{"$f":"annofine","v":1902},null,null,null,null,null,null,null,null,0]

{"sheet":"VI E-Quadro riepil. commerc","index":18,"n_rows":16,"n_cols":23,"rows_kept":16,"cut":false,"hidden":false,"merged":[[8,14,11,14],[12,1,15,1],[0,0,0,9],[1,0,1,9],[8,1,11,1]]}
["BANDO PUBBLICO PER L’ATTIVAZIONE DELLA MISURA\nM04 – INVESTIMENTI IN IMMOBILIZZAZIONI MATERIALI ART. 17 (UE) 1305/2013, Sottomisura 4.1 – “Sostegni agli investimenti nelle aziende agricole”\nTipologia d’intervento 4.1.1, “Sostegno agli investimenti nelle aziende agricole finalizzati al miglioramento della redditività”\nAllegato 6c) – Articolo 14, comma 5"]
["VI E - Attività di Commercializzazione"]
[null,null,null,null,null,null,null,null,"Regime IVA","Regime speciale art.34 del D.P.R. n.633/1972"]
["Commercializzazione","a) Prodotto venduto","b) Prezzo applicato","c1) Quantità venduta","c2) Unità di misura","d1) Rimanenze (Quantità)","d2) Rimanenze (Valore)","d) Costi variabili di commercializzazione","e) IVA","f) Ricavi delle vendite e delle prestazioni (Non viene riportato nei ricavi)"]
["Totale attività ex-ante",null,null,null,null,null,{"$f":"SUMIFS(G$9:G$890, $A$9:$A$890, \"Situazione di partenza\")","v":0},{"$f":"SUMIFS(H$9:H$890, $A$9:$A$890, \"Situazione di partenza\")","v":0},{"$f":"SUMIFS(I$9:I$890, $A$9:$A$890, \"Situazione di partenza\")","v":0},{"$f":"SUMIFS(J$9:J$890, $A$9:$A$890, \"Situazione di partenza\")","v":0}]
[{"$f":"\"Totale attività \"&annoinizio","v":"Totale attività 1900"},null,null,null,null,null,{"$f":"SUMIFS(G$9:G$890, $A$9:$A$890, annoinizio)","v":0},{"$f":"SUMIFS(H$9:H$890, $A$9:$A$890, annoinizio)","v":0},{"$f":"SUMIFS(I$9:I$890, $A$9:$A$890, annoinizio)","v":0},{"$f":"SUMIFS(J$9:J$890, $A$9:$A$890, annoinizio)","v":0}]
[{"$f":"\"Totale attività \"&annoint","v":"Totale attività 1901"},null,null,null,null,null,{"$f":"SUMIFS(G$9:G$890, $A$9:$A$890, annoint)","v":0},{"$f":"SUMIFS(H$9:H$890, $A$9:$A$890, annoint)","v":0},{"$f":"SUMIFS(I$9:I$890, $A$9:$A$890, annoint)","v":0},{"$f":"SUMIFS(J$9:J$890, $A$9:$A$890, annoint)","v":0}]
[{"$f":"\"Totale attività \"&annofine","v":"Totale attività 1902"},null,null,null,null,null,{"$f":"SUMIFS(G$9:G$890, $A$9:$A$890, annofine)","v":0},{"$f":"SUMIFS(H$9:H$890, $A$9:$A$890, annofine)","v":0},{"$f":"SUMIFS(I$9:I$890, $A$9:$A$890, annofine)","v":0},{"$f":"SUMIFS(J$9:J$890, $A$9:$A$890, annofine)","v":0}]
["Situazione di partenza",null,null,null,null,null,{"$f":"C9*F9","v":0},null,null,{"$f":"C9*D9","v":0},null,null,null,"Situazione di partenza",null,null,null,null,null,{"$f":"P9*S9","v":0},null,null,{"$f":"P9*Q9","v":0}]
[{"$f":"annoinizio","v":1900},null,null,null,null,null,0,null,null,{"$f":"C10*D10","v":0},null,null,null,{"$f":"annoinizio","v":1900},null,null,null,null,null,{"$f":"P10*S10","v":0},null,null,{"$f":"P10*Q10","v":0}]
[{"$f":"annoint","v":1901},null,null,null,null,null,0,null,null,0,null,null,null,{"$f":"annoint","v":1901},null,null,null,null,null,{"$f":"P11*S11","v":0},null,null,0]
[{"$f":"annofine","v":1902},null,null,null,null,null,0,null,null,0,null,null,null,{"$f":"annofine","v":1902},null,null,null,null,null,{"$f":"P12*S12","v":0},null,null,0]
["Situazione di partenza",null,null,null,null,null,0,null,null,{"$f":"C13*D13","v":0}]
[{"$f":"annoinizio","v":1900},null,null,null,null,null,0,null,null,{"$f":"C14*D14","v":0}]
[{"$f":"annoint","v":1901},null,null,null,null,null,0,null,null,0]
[{"$f":"annofine","v":1902},null,null,null,null,null,0,null,null,0]

{"sheet":"VI F-Divers","index":19,"n_rows":11,"n_cols":14,"rows_kept":11,"cut":false,"hidden":false,"merged":[[0,0,0,5],[7,1,10,1],[7,14,10,14],[1,0,1,5]]}
["BANDO PUBBLICO PER L’ATTIVAZIONE DELLA MISURA, M04 – INVESTIMENTI IN IMMOBILIZZAZIONI MATERIALI ART. 17 (UE) 1305/2013, Sottomisura 4.1 – “Sostegni agli investimenti nelle aziende agricole”\nTipologia d’intervento 4.1.1, “Sostegno agli investimenti nelle aziende agricole finalizzati al miglioramento della redditività”\nAllegato 6c) – Articolo 14, comma 5"]
["VI F - Attività di diversificazione e attività connesse"]
["Totale attività ex-ante",null,null,{"$f":"SUMIFS(D$8:D$892, $A$8:$A$892, \"Situazione di partenza\")","v":0},null,{"$f":"SUMIFS(F$8:F$892, $A$8:$A$892, \"Situazione di partenza\")","v":0}]
[{"$f":"\"Totale attività \"&annoinizio","v":"Totale attività 1900"},null,null,{"$f":"SUMIFS(D$8:D$892, $A$8:$A$892, annoinizio)","v":0},null,{"$f":"SUMIFS(F$8:F$892, $A$8:$A$892, annoinizio)","v":0}]
[{"$f":"\"Totale attività \"&annoint","v":"Totale attività 1901"},null,null,{"$f":"SUMIFS(D$8:D$892, $A$8:$A$892, annoint)","v":0},null,{"$f":"SUMIFS(F$8:F$892, $A$8:$A$892, annoint)","v":0}]
[{"$f":"\"Totale attività \"&annofine","v":"Totale attività 1902"},null,null,{"$f":"SUMIFS(D$8:D$892, $A$8:$A$892, annofine)","v":0},null,{"$f":"SUMIFS(F$8:F$892, $A$8:$A$892, annofine)","v":0}]
["Diversificazione","Attività Extra-agricola","Macchinari e attrezzature utilizzate","Costi variabili medi","Incidenza sul reddito complessivo (%)","e) Ricavi delle vendite e delle prestazioni"]
["Situazione di partenza",null,null,null,null,null,null,null,null,null,null,null,null,"Situazione di partenza"]
[{"$f":"annoinizio","v":1900},null,null,null,null,null,null,null,null,null,null,null,null,{"$f":"annoinizio","v":1900}]
[{"$f":"annoint","v":1901},null,null,null,null,null,null,null,null,null,null,null,null,{"$f":"annoint","v":1901}]
[{"$f":"annofine","v":1902},null,null,null,null,null,null,null,null,null,null,null,null,{"$f":"annofine","v":1902}]

{"sheet":"VI G-Costi var TRA-COM-DIV","index":20,"n_rows":31,"n_cols":13,"rows_kept":31,"cut":false,"hidden":false,"merged":[[28,0,30,0],[16,0,16,4],[16,5,16,8],[17,0,23,0],[24,0,27,0],[0,0,0,12],[16,9,16,12],[5,9,5,12],[6,10,6,12],[4,0,4,12],[6,0,14,0],[6,2,6,4],[6,6,6,8],[5,0,5,4],[5,5,5,8],[1,0,1,12]]}
["BANDO PUBBLICO PER L’ATTIVAZIONE DELLA MISURA, M04 – INVESTIMENTI IN IMMOBILIZZAZIONI MATERIALI ART. 17 (UE) 1305/2013, Sottomisura 4.1 – “Sostegni agli investimenti nelle aziende agricole”\nTipologia d’intervento 4.1.1, “Sostegno agli investimenti nelle aziende agricole finalizzati al miglioramento della redditività”\nAllegato 6c) – Articolo 14, comma 5"]
["VI G - Costi variabili delle attività di Trasformazione, Commercializzazione e Diversificazione\n(Un totale riportato in rosso significa che non corrisponde con il dichiarato nei precedenti fogli)"]
[null,null,{"$f":"\"Anno \"&annoprec","v":"Anno 1899"},{"$f":"\"Anno \"&annoinizio","v":"Anno 1900"},{"$f":"\"Anno \"&annofine","v":"Anno 1902"},null,{"$f":"\"Anno \"&annoprec","v":"Anno 1899"},{"$f":"\"Anno \"&annoinizio","v":"Anno 1900"},{"$f":"\"Anno \"&annofine","v":"Anno 1902"},null,{"$f":"\"Anno \"&annoprec","v":"Anno 1899"},{"$f":"\"Anno \"&annoinizio","v":"Anno 1900"},{"$f":"\"Anno \"&annofine","v":"Anno 1902"}]
[null,"Totale costi variabili di TRASFORMAZIONE",{"$f":"'VI D-Trasform'!I4","v":0},{"$f":"'VI D-Trasform'!I5","v":0},{"$f":"'VI D-Trasform'!I7","v":0},"Totale costi variabili di COMMERCIALIZZAZIONE",{"$f":"'VI E-Quadro riepil. commerc'!H5","v":0},{"$f":"'VI E-Quadro riepil. commerc'!H6","v":0},{"$f":"'VI E-Quadro riepil. commerc'!H8","v":0},"Totale costi variabili per ATTIVITA' EXTRA-AGRICOLA",{"$f":"'VI F-Divers'!D3","v":0},{"$f":"'VI F-Divers'!D4","v":0},{"$f":"'VI F-Divers'!D6","v":0}]
["CE, B) Costi della Produzione Per le voci di costo 6), 7), 8), 9), 11), 14) inserire il dettaglio corrispondente al totale complessivo"]
["Specifiche costi variabili di TRASFORMAZIONE",null,null,null,null,"Specifiche costi variabili di COMMERCIALIZZAZIONE",null,null,null,"Specifiche costi variabili di DIVERSIFICAZIONE"]
["CATEGORIA DI COSTO",null,"Importi",null,null,null,"Importi",null,null,null,"Importi"]
[null,"Descrizione",{"$f":"\"Anno \"&annoprec","v":"Anno 1899"},{"$f":"\"Anno \"&annoinizio","v":"Anno 1900"},{"$f":"\"Anno \"&annofine","v":"Anno 1902"},"Descrizione",{"$f":"\"Anno \"&annoprec","v":"Anno 1899"},{"$f":"\"Anno \"&annoinizio","v":"Anno 1900"},{"$f":"\"Anno \"&annofine","v":"Anno 1902"},"Descrizione",{"$f":"\"Anno \"&annoprec","v":"Anno 1899"},{"$f":"\"Anno \"&annoinizio","v":"Anno 1900"},{"$f":"\"Anno \"&annofine","v":"Anno 1902"}]
[null,"TOTALE COMPLESSIVO",{"$f":"SUM(C10:C15)","v":0},{"$f":"SUM(D10:D15)","v":0},0,"TOTALE COMPLESSIVO",{"$f":"SUM(G10:G15)","v":0},{"$f":"SUM(H10:H15)","v":0},{"$f":"SUM(I10:I15)","v":0},"TOTALE COMPLESSIVO",{"$f":"SUM(K10:K15)","v":0},{"$f":"SUM(L10:L15)","v":0},{"$f":"SUM(M10:M15)","v":0}]
[null,"6) per materie prime, sussidiarie, di consumo e di merci",null,null,null,"6) per materie prime, sussidiarie, di consumo e di merci",null,null,null,"6) per materie prime, sussidiarie, di consumo e di merci"]
[null,"7)  per servizi ",null,null,null,"7)  per servizi ",null,null,null,"7)  per servizi "]
[null,"8)  per godimento di beni di terzi",null,null,null,"8)  per godimento di beni di terzi",null,null,null,"8)  per godimento di beni di terzi"]
[null,"9) per il personale\n(il totale dei punti \"9) per il personale\" dei fogli \"VI-Costi var COL-ALL\" e \"VI-Costi var TRA-COM-DIV\" deve essere uguale al totale dei costi del personale riportato nel foglio \"V-Forza lavoro\")",null,null,null,"9) per il personale\n(il totale dei punti \"9) per il personale\" dei fogli \"VI-Costi var COL-ALL\" e \"VI-Costi var TRA-COM-DIV\" deve essere uguale al totale dei costi del personale riportato nel foglio \"V-Forza lavoro\")",null,null,null,"9) per il personale\n(il totale dei punti \"9) per il personale\" dei fogli \"VI-Costi var COL-ALL\" e \"VI-Costi var TRA-COM-DIV\" deve essere uguale al totale dei costi del personale riportato nel foglio \"V-Forza lavoro\")"]
[null,"11) variazioni delle rimanenze di materie prime, sussidiarie, di consumo e merci ",null,null,null,"11) variazioni delle rimanenze di materie prime, sussidiarie, di consumo e merci ",null,null,null,"11) variazioni delle rimanenze di materie prime, sussidiarie, di consumo e merci "]
[null,"14) oneri diversi di gestione ",null,null,null,"14) oneri diversi di gestione ",null,null,null,"14) oneri diversi di gestione "]
[]
["Rientrano tra i costi variabili di produzione diretti: TRASFORMAZIONE",null,null,null,null,"Rientrano tra i costi variabili di produzione diretti: COMMERCIALIZZAZIONE",null,null,null,"Rientrano tra i costi variabili di produzione diretti: DIVERSIFICAZIONE"]
["6) per materie prime, sussidiarie, di consumo e di merci","Costi per selezione ",null,null,null,"Costi per immagazzinamento"]
[null,"Costi per lavorazione",null,null,null,"Costi per stoccaggio"]
[null,"Costi per trasformazione",null,null,null,"Cosit per esposizione"]
[null,"Costi per condizionamento",null,null,null,"Costi per vendita"]
[null,"Costi per confezionamento",null,null,null,"Costi per la distribuzione"]
[null,"Costi per immagazzinamento"]
[null,"Costi per stoccaggio"]
["7)  per servizi ","Spese per Servizi di Selezione e Lavorazione e trasformazione",null,null,null,"Spese promozionali"]
[null,"Spese per Servizi di Confezionamento",null,null,null,"Spese per consulenze commerciali"]
[null,"Spese per Servizi di Condizionamento, Immagazzinamento e Stoccaggio",null,null,null,"Spese di progettazione"]
[null,"Spese di progettazione",null,null,null,"Spese per servizi di vendita"]
["8) Per godimento beni di terzi","Spese di noleggio/leasing macchinari e attrezzature",null,null,null,"Spese di noleggio/leasing macchinari e attrezzature",null,null,null,"Spese di noleggio/leasing macchinari e attrezzature"]
[null,"Spese di affitto fabbricati (magazzino, laboratorio, etc.)",null,null,null,"Spese di affitto fabbricati (punto vendita)",null,null,null,"Spese di affitto terreni"]
[null,null,null,null,null,null,null,null,null,"Spese di affitto fabbricati"]

{"sheet":"VII-Strategia di sviluppo azle","index":21,"n_rows":8,"n_cols":1,"rows_kept":8,"cut":false,"hidden":false,"merged":[[1,0,1,1],[0,0,0,1]]}
["BANDO PUBBLICO PER L’ATTIVAZIONE DELLA MISURA, M04 – INVESTIMENTI IN IMMOBILIZZAZIONI MATERIALI ART. 17 (UE) 1305/2013, Sottomisura 4.1 – “Sostegni agli investimenti nelle aziende agricole”\nTipologia d’intervento 4.1.1, “Sostegno agli investimenti nelle aziende agricole finalizzati al miglioramento della redditività”\nAllegato 6c) – Articolo 14, comma 5"]
["VII - Strategia di sviluppo aziendale"]
["Sviluppo del prodotto (coltivazione) (Indicare quale/i)"]
["Sviluppo del prodotto (allevamento) (Indicare quale/i)"]
["Diversificazione del prodotto (Indicare quale/i)"]
["Sviluppo di processo (Indicare quale/i)"]
["Introduzione della fase di commercializzazione / trasformazione"]
["Sviluppo del mercato (Indicare quale/i)"]

{"sheet":"VIII-Mercato di sbocco","index":22,"n_rows":7,"n_cols":10,"rows_kept":7,"cut":false,"hidden":false,"merged":[[5,7,5,9],[2,0,2,9],[0,0,0,9],[1,0,1,9],[4,0,4,1],[3,0,3,1],[3,7,3,8],[5,0,5,5],[4,7,4,8],[4,3,4,5],[3,3,3,5]]}
["BANDO PUBBLICO PER L’ATTIVAZIONE DELLA MISURA, M04 – INVESTIMENTI IN IMMOBILIZZAZIONI MATERIALI ART. 17 (UE) 1305/2013, Sottomisura 4.1 – “Sostegni agli investimenti nelle aziende agricole”\nTipologia d’intervento 4.1.1, “Sostegno agli investimenti nelle aziende agricole finalizzati al miglioramento della redditività”\nAllegato 6c) – Articolo 14, comma 5"]
["VIII - MERCATO DI SBOCCO"]
["Descrizione della strategia commerciale (OBBLIGATORIO)"]
["Nuovi prodotti commerciali a fine PSA (inserire numero)",null,null,"Prodotto di punta",null,null,null,"Possesso di un marchio"]
["Nuovi clienti acquisiti a fine PSA (inserire numero)",null,null,"Introduzione nuovi servizi di commercializzazione",null,null,null,"Possesso di Certificazione di Prodotto"]
["A- Attività di Commercializzazione e mercati di sbocco:\nBreve descrizione dei principali canali di comercializzazione adottati e dei principali clienti.  ",null,null,null,null,null,"B- Clientela Potenziale","C- Utilizzo dei servizi di consulenza: SE si Specificare tipo e costo. "]
["Prodotto","Mercato","Unità di misura","Prezzo applicato al prodotto","Sistema di rilevazione Prezzi (ISMEA, CC, ISTAT, Borsa Merci, Agriprezzi, etc.) (opzionale)","Prezzo di riferimento (opzionale)","Tipologia di distribuzione","Servizio","Fornitore","Costo"]

{"sheet":"INDICATORI","index":23,"n_rows":9,"n_cols":10,"rows_kept":9,"cut":false,"hidden":true,"merged":[[3,2,3,9]]}
[]
[]
[]
[null,null,"REDDITO COMPLESSIVO DELL'ATTIVITA' AGRICOLA"]
[null,null,null,"Totale Costi (Euro)",null,"Spese di Investimento",null,"Totale RAA"]
[null,null,"Reddito da Attivià Agricola (R.A.A.)",100,"meno",20,"più","x","Indice di redditività del capitale proprio (return on equity)","Re/Cp1 x 100"]
[null,null,null,null,null,null,null,null,"Indice di redditività del capitale investito (return on investment) Ebit","Ro/TI x 100"]
[null,null,null,null,null,null,null,null,"Indice di redditività delle vendite (return on sales)","Ro/Rv x 100"]
[null,null,null,null,null,null,null,null,"Indice di indebitamento (leverage)","TI/Cp1"]

{"sheet":"Riepilogo affitti-noleggi","index":24,"n_rows":6,"n_cols":7,"rows_kept":6,"cut":false,"hidden":false,"merged":[[0,1,0,3],[0,4,0,6]]}
[null,"Riportato su quadro \"Costi var\"",null,null,"Riportato sui quadri \"Beni az\""]
[null,{"$f":"annoprec","v":1899},{"$f":"annoinizio","v":1900},{"$f":"annofine","v":1902},{"$f":"annoprec","v":1899},{"$f":"annoinizio","v":1900},{"$f":"annofine","v":1902}]
["Spese di affitto terreni e piantagioni",null,null,null,{"$f":"'IV A-Beni az-Terreni'!B4+'IV B-Beni az-Piantagion'!B4","v":0},{"$f":"'IV A-Beni az-Terreni'!C4+'IV B-Beni az-Piantagion'!C4","v":0},{"$f":"'IV A-Beni az-Terreni'!E4+'IV B-Beni az-Piantagion'!E4","v":0}]
["Spese di affitto fabbricati",null,null,null,{"$f":"'IV C-Beni az-Fabbricati'!B4","v":0},{"$f":"'IV C-Beni az-Fabbricati'!C4","v":0},{"$f":"'IV C-Beni az-Fabbricati'!E4","v":0}]
["Spese di noleggio/leasing macchinari e attrezzature",null,null,null,{"$f":"'IV D-Beni az-Macchinari'!B10+'IV E-Beni az-Macc&Attr'!D4+'IV E-Beni az-Macc&Attr'!E4","v":0},{"$f":"'IV E-Beni az-Macc&Attr'!D5+'IV E-Beni az-Macc&Attr'!E5+'IV D-Beni az-Macchinari'!C10","v":0},{"$f":"'IV E-Beni az-Macc&Attr'!D6+'IV E-Beni az-Macc&Attr'!E6+'IV D-Beni az-Macchinari'!E10","v":0}]
["Totale",{"$f":"'VI G-Costi var TRA-COM-DIV'!C12+'VI G-Costi var TRA-COM-DIV'!G12+'VI G-Costi var TRA-COM-DIV'!K12+'VI C-Costi var COL-ALL'!C12+'VI C-Costi var COL-ALL'!H12","v":0},{"$f":"'VI G-Costi var TRA-COM-DIV'!D12+'VI G-Costi var TRA-COM-DIV'!H12+'VI G-Costi var TRA-COM-DIV'!L12+'VI C-Costi var COL-ALL'!D12+'VI C-Costi var COL-ALL'!I12","v":0},{"$f":"'VI G-Costi var TRA-COM-DIV'!E12+'VI G-Costi var TRA-COM-DIV'!I12+'VI G-Costi var TRA-COM-DIV'!M12+'VI C-Costi var COL-ALL'!E12+'VI C-Costi var COL-ALL'!J12","v":0},{"$f":"SUM(E3:E5)","v":0},{"$f":"SUM(F3:F5)","v":0},{"$f":"SUM(G3:G5)","v":0}]

{"sheet":"CE 2425","index":25,"n_rows":41,"n_cols":5,"rows_kept":41,"cut":false,"hidden":false,"merged":[[31,0,31,4],[0,0,0,4],[1,0,1,4],[10,0,10,4],[3,0,3,4]]}
["BANDO PUBBLICO PER L’ATTIVAZIONE DELLA MISURA, M04 – INVESTIMENTI IN IMMOBILIZZAZIONI MATERIALI ART. 17 (UE) 1305/2013, Sottomisura 4.1 – “Sostegni agli investimenti nelle aziende agricole”\nTipologia d’intervento 4.1.1, “Sostegno agli investimenti nelle aziende agricole finalizzati al miglioramento della redditività”\nAllegato 6c) – Articolo 14, comma 5"]
["CONTO ECONOMICO art. 2425 c.c."]
["  ",{"$f":"\"Anno \"&annoprec","v":"Anno 1899"},{"$f":"\"Anno \"&annoinizio","v":"Anno 1900"},{"$f":"\"Anno \"&annofine","v":"Anno 1902"},{"$f":"\"Previsionale al \"&annoinizio+3","v":"Previsionale al 1903"}]
["A) VALORE DELLA PRODUZIONE "]
["1) ricavi delle vendite e delle prestazioni ",{"$f":"'VI A-Coltiv'!I6+'VI B-Allev'!N5+'VI D-Trasform'!J4+'VI F-Divers'!F3","v":0},{"$f":"'VI A-Coltiv'!I7+'VI B-Allev'!N6+'VI D-Trasform'!J5+'VI F-Divers'!F4","v":0},{"$f":"'VI A-Coltiv'!I9+'VI B-Allev'!N8+'VI D-Trasform'!J7+'VI F-Divers'!F6","v":0}]
["2) variazioni delle rimanenze di prodotti in corso di lavorazione, semilavorati e finiti"]
["3) incrementi di immobilizzazioni per lavori interni "]
["4) incrementi di immobilizzazioni per lavori esterni"]
["5) altri ricavi e proventi, con separata indicazione dei contributi in conto esercizio\n*(Inserire Premi)"]
["TOTALE ",{"$f":"SUM(B5:B9)","v":0},{"$f":"SUM(C5:C9)","v":0},{"$f":"SUM(D5:D9)","v":0},{"$f":"SUM(E5:E9)","v":0}]
["B) COSTI DELLA PRODUZIONE  "]
["6) per materie prime, sussidiarie, di consumo e di merci",{"$f":"'VI C-Costi var COL-ALL'!C10+'VI C-Costi var COL-ALL'!H10+'VI G-Costi var TRA-COM-DIV'!C10+'VI G-Costi var TRA-COM-DIV'!G10+'VI G-Costi var TRA-COM-DIV'!K10","v":0},{"$f":"'VI C-Costi var COL-ALL'!D10+'VI C-Costi var COL-ALL'!I10+'VI G-Costi var TRA-COM-DIV'!D10+'VI G-Costi var TRA-COM-DIV'!H10+'VI G-Costi var TRA-COM-DIV'!L10","v":0},{"$f":"'VI C-Costi var COL-ALL'!E10+'VI C-Costi var COL-ALL'!J10+'VI G-Costi var TRA-COM-DIV'!E10+'VI G-Costi var TRA-COM-DIV'!I10+'VI G-Costi var TRA-COM-DIV'!M10","v":0}]
["7)  per servizi ",{"$f":"'VI C-Costi var COL-ALL'!C11+'VI C-Costi var COL-ALL'!H11+'VI G-Costi var TRA-COM-DIV'!C11+'VI G-Costi var TRA-COM-DIV'!G11+'VI G-Costi var TRA-COM-DIV'!K11","v":0},{"$f":"'VI C-Costi var COL-ALL'!D11+'VI C-Costi var COL-ALL'!I11+'VI G-Costi var TRA-COM-DIV'!D11+'VI G-Costi var TRA-COM-DIV'!H11+'VI G-Costi var TRA-COM-DIV'!L11","v":0},{"$f":"'VI C-Costi var COL-ALL'!E11+'VI C-Costi var COL-ALL'!J11+'VI G-Costi var TRA-COM-DIV'!E11+'VI G-Costi var TRA-COM-DIV'!I11+'VI G-Costi var TRA-COM-DIV'!M11","v":0}]
["8)  per godimento di beni di terzi",{"$f":"'VI C-Costi var COL-ALL'!C12+'VI C-Costi var COL-ALL'!H12+'VI G-Costi var TRA-COM-DIV'!C12+'VI G-Costi var TRA-COM-DIV'!G12+'VI G-Costi var TRA-COM-DIV'!K12","v":0},{"$f":"'VI C-Costi var COL-ALL'!D12+'VI C-Costi var COL-ALL'!I12+'VI G-Costi var TRA-COM-DIV'!D12+'VI G-Costi var TRA-COM-DIV'!H12+'VI G-Costi var TRA-COM-DIV'!L12","v":0},{"$f":"'VI C-Costi var COL-ALL'!E12+'VI C-Costi var COL-ALL'!J12+'VI G-Costi var TRA-COM-DIV'!E12+'VI G-Costi var TRA-COM-DIV'!I12+'VI G-Costi var TRA-COM-DIV'!M12","v":0}]
["9) per il personale",{"$f":"SUM(B16:B20)","v":0},{"$f":"SUM(C16:C20)","v":0},{"$f":"SUM(D16:D20)","v":0}]
["a) salari e stipendi ",{"$f":"'V-Forza lavoro'!C4","v":0},{"$f":"'V-Forza lavoro'!D4","v":0},{"$f":"'V-Forza lavoro'!E4","v":0}]
["b) oneri sociali ",{"$f":"'V-Forza lavoro'!C5","v":0},{"$f":"'V-Forza lavoro'!D5","v":0},{"$f":"'V-Forza lavoro'!E5","v":0}]
["c) trattamento di fine rapporto ",{"$f":"'V-Forza lavoro'!C6","v":0},{"$f":"'V-Forza lavoro'!D6","v":0},{"$f":"'V-Forza lavoro'!E6","v":0}]
["d) trattamento di quiescenza e simili"]
["e) altri costi"]
["10) ammortamenti e svalutazioni",{"$f":"B22+B23+B25+B24","v":0},{"$f":"C22+C23+C25+C24","v":0},{"$f":"D22+D23+D25+D24","v":0}]
["a) ammortamento delle immobilizzazioni immateriali ",{"$f":"'IV F-Beni az-Immob immat'!H5","v":0},{"$f":"'IV F-Beni az-Immob immat'!I5","v":0},{"$f":"'IV F-Beni az-Immob immat'!J5","v":0}]
["b) ammortamento delle immobilizzazioni materiali ",{"$f":"'IV D-Beni az-Macchinari'!H12\n+'IV E-Beni az-Macc&Attr'!F4\n+'IV E-Beni az-Macc&Attr'!G4\n+'IV C-Beni az-Fabbricati'!K6\n+'IV B-Beni az-Piantagion'!J6","v":0},{"$f":"'IV D-Beni az-Macchinari'!I12\n+'IV E-Beni az-Macc&Attr'!F5\n+'IV E-Beni az-Macc&Attr'!G5\n+'IV C-Beni az-Fabbricati'!L6\n+'IV B-Beni az-Piantagion'!K6","v":0},{"$f":"'IV D-Beni az-Macchinari'!J12\n+'IV E-Beni az-Macc&Attr'!F6\n+'IV E-Beni az-Macc&Attr'!G6\n+'IV C-Beni az-Fabbricati'!M6\n+'IV B-Beni az-Piantagion'!L6","v":0}]
["c) altre svalutazioni delle immobilizzazioni"]
["d) svalutazioni dei crediti compresi nell’attivo circolante e delle disponibilità liquide "]
["11) variazioni delle rimanenze di materie prime, sussidiarie, di consumo e merci ",{"$f":"'VI C-Costi var COL-ALL'!C14\n+'VI C-Costi var COL-ALL'!H14\n+'VI G-Costi var TRA-COM-DIV'!C14\n+'VI G-Costi var TRA-COM-DIV'!G14\n+'VI G-Costi var TRA-COM-DIV'!K14","v":0},{"$f":"'VI C-Costi var COL-ALL'!D14\n+'VI C-Costi var COL-ALL'!I14\n+'VI G-Costi var TRA-COM-DIV'!D14\n+'VI G-Costi var TRA-COM-DIV'!H14\n+'VI G-Costi var TRA-COM-DIV'!L14","v":0},{"$f":"'VI C-Costi var COL-ALL'!E14\n+'VI C-Costi var COL-ALL'!J14\n+'VI G-Costi var TRA-COM-DIV'!E14\n+'VI G-Costi var TRA-COM-DIV'!I14\n+'VI G-Costi var TRA-COM-DIV'!M14","v":0}]
["12) accantonamenti per rischi "]
["13) altri accantonamenti "]
["14) oneri diversi di gestione "]
["TOTALE ",{"$f":"B12+B13+B14+B15+B21+B26+B29+B27+B28","v":0},{"$f":"C12+C13+C14+C15+C21+C26+C29+C27+C28","v":0},{"$f":"D12+D13+D14+D15+D21+D26+D29+D27+D28","v":0},{"$f":"SUM(E12:E29)","v":0}]
["DIFFERENZA TRA VALORE E COSTI DELLA PRODUZIONE (A - B) ",{"$f":"B10-B30","v":0},{"$f":"C10-C30","v":0},{"$f":"D10-D30","v":0},{"$f":"E10-E30","v":0}]
["C) PROVENTI E ONERI FINANZIARI "]
["16) altri proventi finanziari ",{"$f":"B34+B35","v":0},{"$f":"C34+C35","v":0},{"$f":"D34+D35","v":0}]
["c)  da titoli iscritti nell’attivo circolante che non costituiscono partecipazioni "]
["d)  proventi diversi dai precedenti, con separata indicazione di quelli da imprese controllate e collegate e di quelli da controllanti e da imprese sottoposte al controllo di queste ultime"]
["17) interessi e altri oneri finanziari, con separata indicazione di quelli verso imprese  controllate e collegate e verso controllanti ",{"$f":"'III A-Piano invest e finanziab'!K5","v":0},{"$f":"'III A-Piano invest e finanziab'!L5","v":0},{"$f":"'III A-Piano invest e finanziab'!M5","v":0}]
["TOTALE (16 - 17) ",{"$f":"B33-B36","v":0},0,0,{"$f":"E33-E36","v":0}]
["RISULTATO PRIMA DELLE IMPOSTE (A - B +/- C) ",{"$f":"B31+B37","v":0},0,0,{"$f":"E31+E37","v":0}]
["20) imposte sul reddito dell’esercizio, correnti, differite e anticipate "]
["21) utile (perdita) dell’esercizio          ",{"$f":"B38","v":0},{"$f":"C38","v":0},{"$f":"D38","v":0},0]
["RISULTATO DOPO LE IMPOSTE (RISULTATO PRIMA DELLE IMPOSTE - lettera 20) ",{"$f":"B40-B39","v":0},{"$f":"C40-C39","v":0},{"$f":"D40-D39","v":0},0]

{"sheet":"CE RIC. 2425","index":26,"n_rows":36,"n_cols":5,"rows_kept":36,"cut":false,"hidden":false,"merged":[[1,0,1,4],[0,0,0,4]]}
["BANDO PUBBLICO PER L’ATTIVAZIONE DELLA MISURA, M04 – INVESTIMENTI IN IMMOBILIZZAZIONI MATERIALI ART. 17 (UE) 1305/2013, Sottomisura 4.1 – “Sostegni agli investimenti nelle aziende agricole”\nTipologia d’intervento 4.1.1, “Sostegno agli investimenti nelle aziende agricole finalizzati al miglioramento della redditività”\nAllegato 6c) – Articolo 14, comma 5"]
["CONTO ECONOMICO RICLASSIFICATO"]
[]
["  ",{"$f":"\"Anno \"&annoprec","v":"Anno 1899"},{"$f":"\"Anno \"&annoinizio","v":"Anno 1900"},{"$f":"\"Anno \"&annofine","v":"Anno 1902"},{"$f":"\"Previsionale al \"&annoinizio+3","v":"Previsionale al 1903"}]
["A) VALORE DELLA PRODUZIONE "]
["1) ricavi delle vendite e delle prestazioni ",{"$f":"'CE 2425'!B5","v":0},{"$f":"'CE 2425'!C5","v":0},{"$f":"'CE 2425'!D5","v":0},{"$f":"'CE 2425'!E5","v":0}]
["2) variazioni delle rimanenze di prodotti in corso di lavorazione, semilavorati e finiti ",{"$f":"'CE 2425'!B6","v":0},{"$f":"'CE 2425'!C6","v":0},{"$f":"'CE 2425'!D6","v":0},{"$f":"'CE 2425'!E6","v":0}]
["3) incrementi di immobilizzazioni per lavori interni ",{"$f":"'CE 2425'!B7","v":0},{"$f":"'CE 2425'!C7","v":0},{"$f":"'CE 2425'!D7","v":0},{"$f":"'CE 2425'!E7","v":0}]
["5) altri ricavi e proventi, con separata indicazione dei contributi in conto esercizio  ",{"$f":"'CE 2425'!B9","v":0},{"$f":"'CE 2425'!C9","v":0},{"$f":"'CE 2425'!D9","v":0},{"$f":"'CE 2425'!E9","v":0}]
["TOTALE (componenti 1, 2, 3, 5 del valore della produzione)",{"$f":"SUM(B6:B9)","v":0},{"$f":"SUM(C6:C9)","v":0},{"$f":"SUM(D6:D9)","v":0},{"$f":"SUM(E6:E9)","v":0}]
["B) COSTI DELLA PRODUZIONE  "]
["6) per materie prime, sussidiarie, di consumo e di merci",{"$f":"'CE 2425'!B12","v":0},{"$f":"'CE 2425'!C12","v":0},{"$f":"'CE 2425'!D12","v":0},{"$f":"'CE 2425'!E12","v":0}]
["7)  per servizi ",{"$f":"'CE 2425'!B13","v":0},{"$f":"'CE 2425'!C13","v":0},{"$f":"'CE 2425'!D13","v":0},{"$f":"'CE 2425'!E13","v":0}]
["8)  per godimento di beni di terzi",{"$f":"'CE 2425'!B14","v":0},{"$f":"'CE 2425'!C14","v":0},{"$f":"'CE 2425'!D14","v":0},{"$f":"'CE 2425'!E14","v":0}]
["11) variazioni delle rimanenze di materie prime, sussidiarie, di consumo e merci ",{"$f":"'CE 2425'!B26","v":0},{"$f":"'CE 2425'!C26","v":0},{"$f":"'CE 2425'!D26","v":0},{"$f":"'CE 2425'!E26","v":0}]
["14) oneri diversi di gestione ",{"$f":"'CE 2425'!B29","v":0},{"$f":"'CE 2425'!C29","v":0},{"$f":"'CE 2425'!D29","v":0},{"$f":"'CE 2425'!E29","v":0}]
["TOTALE (componenti 6, 7, 8, 11, 14 dei costi della produzione)",{"$f":"SUM(B12:B16)","v":0},{"$f":"SUM(C12:C16)","v":0},{"$f":"SUM(D12:D16)","v":0},{"$f":"SUM(E12:E16)","v":0}]
["VALORE AGGIUNTO (componenti 1, 2, 3, 5 del valore della produzione - componenti 6, 7, 8, 11, 14 dei costi della produzione)",{"$f":"B10-B17","v":0},{"$f":"C10-C17","v":0},{"$f":"D10-D17","v":0},{"$f":"E10-E17","v":0}]
["9) per il personale",{"$f":"'CE 2425'!B15","v":0},{"$f":"'CE 2425'!C15","v":0},{"$f":"'CE 2425'!D15","v":0},{"$f":"'CE 2425'!E15","v":0}]
["a)  salari e stipendi ",{"$f":"'CE 2425'!B16","v":0},{"$f":"'CE 2425'!C16","v":0},{"$f":"'CE 2425'!D16","v":0},{"$f":"'CE 2425'!E16","v":0}]
["b)  oneri sociali ",{"$f":"'CE 2425'!B17","v":0},{"$f":"'CE 2425'!C17","v":0},{"$f":"'CE 2425'!D17","v":0},{"$f":"'CE 2425'!E17","v":0}]
["c) trattamento di fine rapporto ",{"$f":"'CE 2425'!B18","v":0},{"$f":"'CE 2425'!C18","v":0},{"$f":"'CE 2425'!D18","v":0},{"$f":"'CE 2425'!E18","v":0}]
["MARGINE OPERATIVO LORDO (valore aggiuntivo - componente 9 dei costi della produzione)",{"$f":"B18-B19","v":0},{"$f":"C18-C19","v":0},{"$f":"D18-D19","v":0},{"$f":"E18-E19","v":0}]
["10) ammortamenti e svalutazioni",{"$f":"'CE 2425'!B21","v":0},{"$f":"'CE 2425'!C21","v":0},{"$f":"'CE 2425'!D21","v":0},{"$f":"'CE 2425'!E21","v":0}]
["a) ammortamento delle immobilizzazioni immateriali ",{"$f":"'CE 2425'!B22","v":0},{"$f":"'CE 2425'!C22","v":0},{"$f":"'CE 2425'!D22","v":0},{"$f":"'CE 2425'!E22","v":0}]
["b) ammortamento delle immobilizzazioni materiali ",{"$f":"'CE 2425'!B23","v":0},{"$f":"'CE 2425'!C23","v":0},{"$f":"'CE 2425'!D23","v":0},{"$f":"'CE 2425'!E23","v":0}]
["d) svalutazioni dei crediti compresi nell’attivo circolante e delle disponibilità liquide ",{"$f":"'CE 2425'!B25","v":0},{"$f":"'CE 2425'!C25","v":0},{"$f":"'CE 2425'!D25","v":0},{"$f":"'CE 2425'!E25","v":0}]
["12) accantonamenti per rischi ",{"$f":"'CE 2425'!B27","v":0},{"$f":"'CE 2425'!C27","v":0},{"$f":"'CE 2425'!D27","v":0},{"$f":"'CE 2425'!E27","v":0}]
["13) altri accantonamenti ",{"$f":"'CE 2425'!B28","v":0},{"$f":"'CE 2425'!C28","v":0},{"$f":"'CE 2425'!D28","v":0},{"$f":"'CE 2425'!E28","v":0}]
["TOTALE (componenti 10, 12, 13 dei costi della produzione)",{"$f":"B24+B28+B29","v":0},{"$f":"C24+C28+C29","v":0},0,0]
["REDDITO OPERATIVO (margine operativo lordo - componenti 10, 12, 13 dei costi della produzione)",{"$f":"B23-B30","v":0},{"$f":"C23-C30","v":0},{"$f":"D23-D30","v":0},{"$f":"E23-E30","v":0}]
["Totale proventi e oneri finanziari",{"$f":"'CE 2425'!B37","v":0},{"$f":"'CE 2425'!C37","v":0},{"$f":"'CE 2425'!D37","v":0},{"$f":"'CE 2425'!E37","v":0}]
["Totale rettifiche di valore di attività e passività finanziarie"]
["Risultato prima delle imposte",{"$f":"B31+B32+B33","v":0},{"$f":"C31+C32+C33","v":0},{"$f":"D31+D32+D33","v":0},{"$f":"E31+E32+E33","v":0}]
["Imposte sul reddito dell'esercizio"]
["Utile (perdita) dell'esercizio",{"$f":"B34-B35","v":0},{"$f":"C34-C35","v":0},{"$f":"D34-D35","v":0},{"$f":"E34-E35","v":0}]

{"sheet":"SP 2424","index":27,"n_rows":103,"n_cols":9,"rows_kept":103,"cut":false,"hidden":false,"merged":[[37,1,37,2],[37,7,37,8],[37,5,37,6],[37,3,37,4],[102,7,102,8],[102,5,102,6],[102,3,102,4],[102,1,102,2],[83,7,83,8],[83,5,83,6],[83,3,83,4],[83,1,83,2],[79,7,79,8],[78,7,78,8],[70,5,70,6],[69,5,69,6],[68,5,68,6],[67,5,67,6],[66,5,66,6],[75,5,75,6],[74,5,74,6],[73,5,73,6],[72,5,72,6],[71,5,71,6],[36,3,36,4],[35,3,35,4],[34,3,34,4],[33,3,33,4],[32,3,32,4],[36,1,36,2],[35,1,35,2],[34,1,34,2],[33,1,33,2],[32,1,32,2],[35,7,35,8],[34,7,34,8],[33,7,33,8],[32,7,32,8],[36,5,36,6],[35,5,35,6],[34,5,34,6],[33,5,33,6],[32,5,32,6],[36,7,36,8],[1,0,1,8],[0,0,0,8],[76,7,76,8],[76,5,76,6],[76,3,76,4],[76,1,76,2],[82,1,82,2],[81,1,81,2],[79,1,79,2],[80,1,80,2],[78,1,78,2],[82,3,82,4],[81,3,81,4],[80,3,80,4],[79,3,79,4],[78,3,78,4],[82,5,82,6],[81,5,81,6],[80,5,80,6],[79,5,79,6],[78,5,78,6],[82,7,82,8],[81,7,81,8],[80,7,80,8],[70,7,70,8],[69,7,69,8],[68,7,68,8],[67,7,67,8],[66,7,66,8],[75,7,75,8],[74,7,74,8],[73,7,73,8],[72,7,72,8],[71,7,71,8],[70,1,70,2],[69,1,69,2],[68,1,68,2],[67,1,67,2],[66,1,66,2],[75,1,75,2],[74,1,74,2],[73,1,73,2],[72,1,72,2],[71,1,71,2],[70,3,70,4],[69,3,69,4],[68,3,68,4],[67,3,67,4],[66,3,66,4],[75,3,75,4],[74,3,74,4],[73,3,73,4],[72,3,72,4],[71,3,71,4],[58,7,58,8],[63,5,63,6],[62,5,62,6],[61,5,61,6],[60,5,60,6],[59,5,59,6],[58,5,58,6],[63,7,63,8],[62,7,62,8],[61,7,61,8],[60,7,60,8],[59,7,59,8],[63,1,63,2],[62,1,62,2],[61,1,61,2],[60,1,60,2],[59,1,59,2],[58,1,58,2],[63,3,63,4],[62,3,62,4],[61,3,61,4],[60,3,60,4],[59,3,59,4],[50,1,50,2],[56,3,56,4],[55,3,55,4],[54,3,54,4],[53,3,53,4],[52,3,52,4],[51,3,51,4],[50,3,50,4],[58,3,58,4],[29,7,29,8],[29,5,29,6],[29,3,29,4],[29,1,29,2],[56,5,56,6],[55,5,55,6],[54,5,54,6],[53,5,53,6],[52,5,52,6],[51,5,51,6],[50,5,50,6],[56,7,56,8],[55,7,55,8],[54,7,54,8],[53,7,53,8],[52,7,52,8],[51,7,51,8],[50,7,50,8],[56,1,56,2],[55,1,55,2],[54,1,54,2],[53,1,53,2],[52,1,52,2],[51,1,51,2],[16,7,16,8],[14,1,14,2],[14,3,14,4],[14,5,14,6],[14,7,14,8],[22,7,22,8],[21,7,21,8],[19,7,19,8],[18,7,18,8],[17,7,17,8],[18,3,18,4],[17,3,17,4],[16,3,16,4],[16,5,16,6],[17,5,17,6],[18,5,18,6],[20,3,20,4],[20,5,20,6],[20,7,20,8],[19,5,19,6],[21,5,21,6],[22,5,22,6],[22,3,22,4],[21,3,21,4],[8,5,8,6],[7,5,7,6],[13,3,13,4],[12,3,12,4],[19,1,19,2],[18,1,18,2],[17,1,17,2],[20,1,20,2],[22,1,22,2],[21,1,21,2],[19,3,19,4],[8,3,8,4],[7,3,7,4],[13,1,13,2],[12,1,12,2],[11,1,11,2],[10,1,10,2],[9,1,9,2],[8,1,8,2],[7,1,7,2],[13,7,13,8],[12,7,12,8],[16,1,16,2],[2,7,2,8],[4,5,4,6],[4,3,4,4],[4,1,4,2],[4,7,4,8],[2,5,2,6],[11,3,11,4],[10,3,10,4],[8,7,8,8],[7,7,7,8],[11,5,11,6],[10,5,10,6],[9,5,9,6],[2,3,2,4],[2,1,2,2],[11,7,11,8],[10,7,10,8],[9,7,9,8],[13,5,13,6],[12,5,12,6],[9,3,9,4]]}
["BANDO PUBBLICO PER L’ATTIVAZIONE DELLA MISURA, M04 – INVESTIMENTI IN IMMOBILIZZAZIONI MATERIALI ART. 17 (UE) 1305/2013, Sottomisura 4.1 – “Sostegni agli investimenti nelle aziende agricole”\nTipologia d’intervento 4.1.1, “Sostegno agli investimenti nelle aziende agricole finalizzati al miglioramento della redditività”\nAllegato 6c) – Articolo 14, comma 5"]
["STATO PATRIMONIALE art. 2424 c.c."]
["  ",{"$f":"\"Anno \"&annoprec","v":"Anno 1899"},null,{"$f":"\"Anno \"&annoinizio","v":"Anno 1900"},null,{"$f":"\"Anno \"&annofine","v":"Anno 1902"},null,{"$f":"\"Anno \"&annoinizio+3","v":"Anno 1903"}]
["ATTIVO "]
["A) Crediti verso soci per versamenti ancora dovuti, con separata indicazione della parte già richiamata"]
["B) Immobilizzazioni, con separata indicazione di quelle concesse in locazione finanziaria"]
["I – Immobilizzazioni immateriali"]
["1) costi di impianto e di ampliamento",{"$f":"'IV F-Beni az-Immob immat'!E6","v":0},null,{"$f":"'IV F-Beni az-Immob immat'!F6","v":0},null,{"$f":"'IV F-Beni az-Immob immat'!G6","v":0}]
["2) costi di sviluppo",{"$f":"'IV F-Beni az-Immob immat'!E7","v":0},null,{"$f":"'IV F-Beni az-Immob immat'!F7","v":0},null,{"$f":"'IV F-Beni az-Immob immat'!G7","v":0}]
["3) diritti di brevetto industriale e diritti di utilizzazione delle opere dell’ingegno",{"$f":"'IV F-Beni az-Immob immat'!E8","v":0},null,{"$f":"'IV F-Beni az-Immob immat'!F8","v":0},null,{"$f":"'IV F-Beni az-Immob immat'!G8","v":0}]
["4) concessioni, licenze, marchi e diritti simili",{"$f":"'IV F-Beni az-Immob immat'!E9","v":0},null,{"$f":"'IV F-Beni az-Immob immat'!F9","v":0},null,{"$f":"'IV F-Beni az-Immob immat'!G9","v":0}]
["5) avviamento",{"$f":"'IV F-Beni az-Immob immat'!E10","v":0},null,{"$f":"'IV F-Beni az-Immob immat'!F10","v":0},null,{"$f":"'IV F-Beni az-Immob immat'!G10","v":0}]
["6) immobilizzazioni in corso e acconti",{"$f":"'IV F-Beni az-Immob immat'!E11","v":0},null,{"$f":"'IV F-Beni az-Immob immat'!F11","v":0},null,{"$f":"'IV F-Beni az-Immob immat'!G11","v":0}]
["7) altre",{"$f":"'IV F-Beni az-Immob immat'!E12","v":0},null,{"$f":"'IV F-Beni az-Immob immat'!F12","v":0},null,{"$f":"'IV F-Beni az-Immob immat'!G12","v":0}]
["Totale",{"$f":"SUM(B8:B14)","v":0},null,{"$f":"SUM(D8:D14)","v":0},null,{"$f":"SUM(F8:F14)","v":0},null,{"$f":"SUM(H8:H14)","v":0}]
["II – Immobilizzazioni materiali"]
["1) terreni e fabbricati\n*(Le piantagioni sono ricomprese in questa voce)",{"$f":"'IV B-Beni az-Piantagion'!G6 + 'IV A-Beni az-Terreni'!E6 + 'IV C-Beni az-Fabbricati'!H6","v":0},null,{"$f":"'IV B-Beni az-Piantagion'!H6 + 'IV A-Beni az-Terreni'!F6 + 'IV C-Beni az-Fabbricati'!I6","v":0},null,{"$f":"'IV B-Beni az-Piantagion'!I6 + 'IV A-Beni az-Terreni'!G6 + 'IV C-Beni az-Fabbricati'!J6","v":0}]
["2) impianti e macchinario",{"$f":"'IV E-Beni az-Macc&Attr'!B4 + 'IV D-Beni az-Macchinari'!B9","v":0},null,{"$f":"'IV E-Beni az-Macc&Attr'!B5 + 'IV D-Beni az-Macchinari'!C9","v":0},null,{"$f":"'IV E-Beni az-Macc&Attr'!B6 + 'IV D-Beni az-Macchinari'!E9","v":0}]
["3) attrezzature industriali e commerciali",{"$f":"'IV E-Beni az-Macc&Attr'!C4","v":0},null,{"$f":"'IV E-Beni az-Macc&Attr'!C5","v":0},null,{"$f":"'IV E-Beni az-Macc&Attr'!C6","v":0}]
["4) altri beni\n*(escluso il bestiame)"]
["4) altri beni\n*(solo bestiame)",{"$f":"'VI B-Allev'!O5","v":0},null,{"$f":"'VI B-Allev'!O6","v":0},null,{"$f":"'VI B-Allev'!O8","v":0}]
["5) immobilizzazioni in corso e acconti"]
["Totale",{"$f":"SUM(B17:B22)","v":0},null,{"$f":"SUM(D17:D22)","v":0},null,{"$f":"SUM(F17:F22)","v":0},null,{"$f":"SUM(H17:H22)","v":0}]
["III – Immobilizzazioni finanziarie, con separata indicazione, per ciascuna voce dei crediti, degli importi esigibili entro l’esercizio successivo","ENTRO 12 MESI","OLTRE 12 MESI","ENTRO 12 MESI","OLTRE 12 MESI","ENTRO 12 MESI","OLTRE 12 MESI","ENTRO 12 MESI","OLTRE 12 MESI"]
["1) partecipazioni"]
["2) crediti"]
["3) altri titoli"]
["4) strumenti finanziari derivati attivi"]
["Totale",{"$f":"SUM(B25:B28)","v":0},0,0,0,0,0,0,0]
["Totale immobilizzazioni (B).",{"$f":"B15+B23+B29+C29","v":0},null,{"$f":"D15+D23+D29+E29","v":0},null,{"$f":"F15+F23+F29+G29","v":0},null,{"$f":"H15+H23+H29+I29","v":0}]
["C) Attivo circolante "]
["I – Rimanenze"]
["1) materie prime, sussidiarie e di consumo"]
["2) prodotti in corso di lavorazione e semilavorati (SONO RICOMPRESE IN QUESTA VOCE LE ANTICIPAZIONI COLTURALI )"]
["3) lavori in corso su ordinazione"]
["4) prodotti finiti e merci"]
["5) acconti"]
["Totale",{"$f":"SUM(B33:B37)","v":0},null,{"$f":"SUM(D33:D37)","v":0},null,{"$f":"SUM(F33:F37)","v":0},null,{"$f":"SUM(H33:H37)","v":0}]
["II – Crediti, con separata indicazione, per ciascuna voce, degli importi esigibili oltre l’esercizio successivo e delle imposte anticipate","ENTRO 12 MESI","OLTRE 12 MESI","ENTRO 12 MESI","OLTRE 12 MESI","ENTRO 12 MESI","OLTRE 12 MESI","ENTRO 12 MESI","OLTRE 12 MESI"]
["1) verso clienti"]
["2) verso imprese controllate"]
["3) verso imprese collegate"]
["4) verso controllanti"]
["5) verso imprese sottoposte al controllo delle controllanti"]
["5-bis) crediti tributari\n*(Esclusa IVA a credito degli investimenti del PSA)"]
["5-bis) crediti tributari\n*(Solo IVA a credito degli investimenti del PSA)"]
["5-ter) imposte anticipate"]
["5 quater) verso altri"]
["Totale",{"$f":"SUM(B40:B48)","v":0},0,0,0,0,0,0,0]
["III – Attività finanziarie che non costituiscono immobilizzazioni"]
["1) partecipazioni in imprese controllate"]
["2) partecipazioni in imprese collegate"]
["3) partecipazioni in imprese controllanti"]
["3 bis) partecipazioni in imprese sottoposte al controllo delle controllanti"]
["4) altre partecipazioni"]
["5) strumenti finanziari derivati attivi e 6) altri titoli"]
["Totale",{"$f":"SUM(B51:B56)","v":0},null,{"$f":"SUM(D51:D56)","v":0},null,{"$f":"SUM(F51:F56)","v":0},null,{"$f":"SUM(H51:H56)","v":0}]
["IV – Disponibilità liquide"]
["1) depositi bancari e postali"]
["2) assegni"]
["3) danaro e valori in cassa"]
["Totale",{"$f":"SUM(B59:B61)","v":0},null,{"$f":"SUM(D59:D61)","v":0},null,{"$f":"SUM(F59:F61)","v":0},null,{"$f":"SUM(H59:H61)","v":0}]
["Totale attivo circolante (C)",{"$f":"B38+B49+B57+B62+C38+C49","v":0},null,{"$f":"D38+D49+D57+D62+E38+E49","v":0},null,{"$f":"F38+F49+F57+F62+G38+G49","v":0},null,{"$f":"H38+H49+H57+H62+I38+I49","v":0}]
["D) Ratei e risconti "]
["PASSIVO "]
["A) Patrimonio netto"]
["I - Capitale "]
["II - Riserva da sopraprezzo delle azioni "]
["III - Riserve di rivalutazione "]
["IV - Riserva legale "]
["V - Riserve statutarie "]
["VI - Altre riserve, distintamente indicate "]
["VII – Riserva per operazioni di copertura dei flussi finanziari attesi "]
["VIII - Utili (perdite) portati a nuovo"]
["IX - Utile (perdita) dell’esercizio"]
["X – Riserva negativa per azioni proprie in portafoglio"]
["Totale",{"$f":"SUM(B67:C76)","v":0},null,{"$f":"SUM(D67:E76)","v":0},null,{"$f":"SUM(F67:G76)","v":0},null,{"$f":"SUM(H67:I76)","v":0}]
["B) Fondi per rischi e oneri"]
["1) per trattamento di quiescenza e obblighi simili"]
["2) per imposte, anche differite"]
["3) strumenti finanziari derivati passivi"]
["4) altri"]
["Totale",{"$f":"SUM(B79:C82)","v":0},null,{"$f":"SUM(D79:E82)","v":0},null,{"$f":"SUM(F79:G82)","v":0},null,{"$f":"SUM(H79:I82)","v":0}]
["C) Trattamento di fine rapporto di lavoro subordinato"]
["D) Debiti, con separata indicazione, per ciascuna voce, degli importi esigibili oltre l’esercizio successivo","ENTRO 12 MESI","OLTRE 12 MESI","ENTRO 12 MESI","OLTRE 12 MESI","ENTRO 12 MESI","OLTRE 12 MESI","ENTRO 12 MESI","OLTRE 12 MESI"]
["1) obbligazioni"]
["2) obbligazioni convertibili"]
["3) debiti verso soci per finanziamenti"]
["4) debiti verso banche"]
["5) debiti verso altri finanziatori"]
["6) acconti"]
["7) debiti verso fornitori"]
["8) debiti rappresentati da titoli di credito"]
["9) debiti verso imprese controllate"]
["10) debiti verso imprese collegate"]
["11) debiti verso controllanti"]
["11 bis) debiti verso imprese sottoposte al controllo delle controllanti"]
["12) debiti tributari\n*(Esclusa IVA a debito)"]
["12) debiti tributari\n*(Solo IVA a debito)"]
["13) debiti verso istituti di previdenza e di sicurezza sociale"]
["14) altri debiti"]
["Totale",{"$f":"SUM(B86:B101)","v":0},{"$f":"SUM(C86:C101)","v":0},{"$f":"SUM(D86:D101)","v":0},{"$f":"SUM(E86:E101)","v":0},0,0,{"$f":"SUM(H86:H101)","v":0},{"$f":"SUM(I86:I101)","v":0}]
["E) Ratei e risconti "]

{"sheet":"SP RIC. 2424","index":28,"n_rows":24,"n_cols":5,"rows_kept":24,"cut":false,"hidden":false,"merged":[[13,0,13,4],[2,0,2,4],[1,0,1,4],[0,0,0,4]]}
["BANDO PUBBLICO PER L’ATTIVAZIONE DELLA MISURA, M04 – INVESTIMENTI IN IMMOBILIZZAZIONI MATERIALI ART. 17 (UE) 1305/2013, Sottomisura 4.1 – “Sostegni agli investimenti nelle aziende agricole”\nTipologia d’intervento 4.1.1, “Sostegno agli investimenti nelle aziende agricole finalizzati al miglioramento della redditività”\nAllegato 6c) – Articolo 14, comma 5"]
["STATO PATRIMONIALE art. 2424 c.c."]
["ATTIVITÀ"]
["DESCRIZIONE",{"$f":"annoprec","v":1899},{"$f":"annoinizio","v":1900},{"$f":"annofine","v":1902},{"$f":"annoinizio+3","v":1903}]
["ATTIVITÀ CORRENTI",{"$f":"B6+B7+B8","v":0},{"$f":"C6+C7+C8","v":0},{"$f":"D6+D7+D8","v":0},{"$f":"E6+E7+E8","v":0}]
["LIQUIDITÀ IMMEDIATE ",{"$f":"'SP 2424'!B49+'SP 2424'!B62","v":0},{"$f":"'SP 2424'!D49+'SP 2424'!D62","v":0},{"$f":"'SP 2424'!F49+'SP 2424'!F62","v":0},{"$f":"'SP 2424'!H49+'SP 2424'!H62","v":0}]
["LIQUIDITÀ DIFFERITE",{"$f":"'SP 2424'!C49+'SP 2424'!B57+'SP 2424'!B64+'SP 2424'!B29","v":0},{"$f":"'SP 2424'!E49+'SP 2424'!D57+'SP 2424'!D64+'SP 2424'!D29","v":0},{"$f":"'SP 2424'!G49+'SP 2424'!F57+'SP 2424'!F64+'SP 2424'!F29","v":0},{"$f":"'SP 2424'!I49+'SP 2424'!H57+'SP 2424'!H64+'SP 2424'!H29","v":0}]
["DISPONIBILITÀ (RIMANENZE)",{"$f":"'SP 2424'!B38","v":0},{"$f":"'SP 2424'!D38","v":0},{"$f":"'SP 2424'!F38","v":0},{"$f":"'SP 2424'!H38","v":0}]
["ATTIVITÀ IMMOBILIZZATE",{"$f":"B10+B11+B12","v":0},{"$f":"C10+C11+C12","v":0},{"$f":"D10+D11+D12","v":0},{"$f":"E10+E11+E12","v":0}]
["IMMOBILIZZAZIONE IMMATERIALI",{"$f":"'SP 2424'!B15","v":0},{"$f":"'SP 2424'!D15","v":0},{"$f":"'SP 2424'!F15","v":0},{"$f":"'SP 2424'!H15","v":0}]
["IMMOBILIZZAZIONE MATERIALI",{"$f":"'SP 2424'!B23","v":0},{"$f":"'SP 2424'!D23","v":0},{"$f":"'SP 2424'!F23","v":0},{"$f":"'SP 2424'!H23","v":0}]
["IMMOBILIZZAZIONE FINANZIARIE",{"$f":"'SP 2424'!C29+'SP 2424'!B29","v":0},{"$f":"'SP 2424'!E29+'SP 2424'!D29","v":0},{"$f":"'SP 2424'!G29+'SP 2424'!F29","v":0},{"$f":"'SP 2424'!I29+'SP 2424'!H29","v":0}]
["TOTALE IMPIEGHI",{"$f":"B5+B9","v":0},{"$f":"C5+C9","v":0},{"$f":"D5+D9","v":0},{"$f":"E5+E9","v":0}]
["PASSIVITÀ"]
["DESCRIZIONE",{"$f":"annoprec","v":1899},{"$f":"annoinizio","v":1900},{"$f":"annofine","v":1902},{"$f":"annoinizio+3","v":1903}]
["PASSIVITÀ CORRENTI",{"$f":"'SP 2424'!B102+'SP 2424'!B103+'SP 2424'!C102","v":0},{"$f":"'SP 2424'!D102+'SP 2424'!D103+'SP 2424'!E102","v":0},{"$f":"'SP 2424'!F102+'SP 2424'!F103+'SP 2424'!G102","v":0},{"$f":"'SP 2424'!H102+'SP 2424'!H103+'SP 2424'!I102","v":0}]
["PASSIVITÀ CONSOLIDATE",{"$f":"'SP 2424'!B84+'SP 2424'!C102","v":0},{"$f":"'SP 2424'!D84+'SP 2424'!E102","v":0},{"$f":"'SP 2424'!F84+'SP 2424'!G102","v":0},{"$f":"'SP 2424'!H84+'SP 2424'!I102","v":0}]
["PATRIMONIO NETTO",{"$f":"B19+B20+B21+B22","v":0},{"$f":"C19+C20+C21+C22","v":0},{"$f":"D19+D20+D21+D22","v":0},{"$f":"E19+E20+E21+E22","v":0}]
["CAPITALE SOCIALE",{"$f":"'SP 2424'!B67","v":0},{"$f":"'SP 2424'!D67","v":0},{"$f":"'SP 2424'!F67","v":0},{"$f":"'SP 2424'!H67","v":0}]
["RISERVE",{"$f":"'SP 2424'!B68+'SP 2424'!B69+'SP 2424'!B70+'SP 2424'!B71+'SP 2424'!B72+'SP 2424'!B73","v":0},{"$f":"'SP 2424'!D68+'SP 2424'!D69+'SP 2424'!D70+'SP 2424'!D71+'SP 2424'!D72+'SP 2424'!D73","v":0},{"$f":"'SP 2424'!F68+'SP 2424'!F69+'SP 2424'!F70+'SP 2424'!F71+'SP 2424'!F72+'SP 2424'!F73","v":0},{"$f":"'SP 2424'!H68+'SP 2424'!H69+'SP 2424'!H70+'SP 2424'!H71+'SP 2424'!H72+'SP 2424'!H73","v":0}]
["UTILI (PERDITE) A NUOVO",{"$f":"'SP 2424'!B74","v":0},{"$f":"'SP 2424'!D74","v":0},{"$f":"'SP 2424'!F74","v":0},{"$f":"'SP 2424'!H74","v":0}]
["UTILI (PERDITE) DELL'ESERCIZIO",{"$f":"'SP 2424'!B75","v":0},{"$f":"'SP 2424'!D75","v":0},{"$f":"'SP 2424'!F75","v":0},{"$f":"'SP 2424'!H75","v":0}]
["FONDO PER RISCHI E ONERI",{"$f":"'SP 2424'!B83","v":0},{"$f":"'SP 2424'!D83","v":0},{"$f":"'SP 2424'!F83","v":0},{"$f":"'SP 2424'!H83","v":0}]
["TOTALE FONTI",{"$f":"B16+B17+B18+B23","v":0},{"$f":"C16+C17+C18+C23","v":0},{"$f":"D16+D17+D18+D23","v":0},{"$f":"E16+E17+E18+E23","v":0}]

{"sheet":"Riepilogo criteri e indicatori","index":29,"n_rows":37,"n_cols":6,"rows_kept":37,"cut":false,"hidden":false,"merged":[[21,0,21,5],[0,0,0,5],[36,2,36,4],[34,0,34,4],[4,1,4,4],[3,1,3,4],[2,1,2,4],[14,1,14,4],[13,1,13,4],[19,1,19,4],[18,1,18,4],[17,1,17,4],[16,1,16,4],[15,1,15,4],[28,0,28,5]]}
["RIEPILOGO CRIETERI DI SELEZIONE"]
[null,{"$f":"\"Anno \"&annoprec","v":"Anno 1899"},{"$f":"\"Anno \"&annoinizio","v":"Anno 1900"},{"$f":"\"Anno \"&annofine","v":"Anno 1902"},{"$f":"\"Previsionale al \"&annoinizio+3","v":"Previsionale al 1903"},"Progressivo del punteggio attribuito"]
["Ragione sociale o Denominazione sociale",{"$f":"'II-Anagrafica azle'!B4","v":0}]
["CUAA",{"$f":"'II-Anagrafica azle'!B5","v":0}]
["CODICE ATECO",{"$f":"'II-Anagrafica azle'!B7","v":0}]
["Totale UBA",{"$f":"SUMIFS('VI B-Allev'!$I$10:$I$1690, 'VI B-Allev'!$A$10:$A$1690, \"Situazione di partenza\")","v":0},{"$f":"SUMIFS('VI B-Allev'!$I$10:$I$1690, 'VI B-Allev'!$A$10:$A$1690, annoinizio)","v":0},{"$f":"SUMIFS('VI B-Allev'!$I$10:$I$1690, 'VI B-Allev'!$A$10:$A$1690, annofine)","v":0}]
["Totale SAU",{"$f":"SUMIFS('VI A-Coltiv'!D:D, 'VI A-Coltiv'!A:A, \"Situazione di partenza\")","v":0},{"$f":"SUMIFS('VI A-Coltiv'!D:D, 'VI A-Coltiv'!A:A, annoinizio)","v":0},{"$f":"SUMIFS('VI A-Coltiv'!D:D, 'VI A-Coltiv'!A:A, annofine)","v":0}]
["Totale KW",{"$f":"SUMIFS('IV D-Beni az-Macchinari'!K:K, 'IV D-Beni az-Macchinari'!B:B,\"<=\"&annoprec)\n+SUMIFS('IV E-Beni az-Macc&Attr'!C:C, 'IV E-Beni az-Macc&Attr'!B:B, \"Macchinario\", 'IV E-Beni az-Macc&Attr'!D:D, \"<=\"&annoprec)","v":0},{"$f":"SUMIFS('IV D-Beni az-Macchinari'!K:K, 'IV D-Beni az-Macchinari'!B:B,\"<=\"&annoinizio)\n+SUMIFS('IV E-Beni az-Macc&Attr'!C:C, 'IV E-Beni az-Macc&Attr'!B:B, \"Macchinario\", 'IV E-Beni az-Macc&Attr'!D:D, \"<=\"&annoinizio)","v":0},{"$f":"SUMIFS('IV D-Beni az-Macchinari'!K:K, 'IV D-Beni az-Macchinari'!B:B,\"<=\"&annofine)\n+SUMIFS('IV E-Beni az-Macc&Attr'!C:C, 'IV E-Beni az-Macc&Attr'!B:B, \"Macchinario\", 'IV E-Beni az-Macc&Attr'!D:D, \"<=\"&annofine)","v":0}]
["ULA",{"$f":"SUMIFS('V-Forza lavoro'!G8:G31, 'V-Forza lavoro'!B8:B31, annoprec)/215","v":0},{"$f":"SUMIFS('V-Forza lavoro'!G8:G31, 'V-Forza lavoro'!B8:B31, annoinizio)/215","v":0},{"$f":"SUMIFS('V-Forza lavoro'!G8:G31, 'V-Forza lavoro'!B8:B31, annofine)/215","v":0}]
["Importo investito per trasformazione",{"$f":"SUMIFS('III A-Piano invest e finanziab'!L:L, 'III A-Piano invest e finanziab'!G:G, \"Trasformazione\", 'III A-Piano invest e finanziab'!I:I, \"<=\"&annoprec)\n+SUMIFS('III A-Piano invest e finanziab'!L:L, 'III A-Piano invest e finanziab'!G:G, \"Trasformazione e commercializzazione.\", 'III A-Piano invest e finanziab'!I:I, \"<=\"&annoprec)/2","v":0},{"$f":"SUMIFS('III A-Piano invest e finanziab'!L:L, 'III A-Piano invest e finanziab'!G:G, \"Trasformazione\", 'III A-Piano invest e finanziab'!I:I, \"<=\"&annoinizio)\n+SUMIFS('III A-Piano invest e finanziab'!L:L, 'III A-Piano invest e finanziab'!G:G, \"Trasformazione e commercializzazione.\", 'III A-Piano invest e finanziab'!I:I, \"<=\"&annoinizio)/2","v":0},{"$f":"SUMIFS('III A-Piano invest e finanziab'!L:L, 'III A-Piano invest e finanziab'!G:G, \"Trasformazione\", 'III A-Piano invest e finanziab'!I:I, \"<=\"&annofine)\n+SUMIFS('III A-Piano invest e finanziab'!L:L, 'III A-Piano invest e finanziab'!G:G, \"Trasformazione e commercializzazione.\", 'III A-Piano invest e finanziab'!I:I, \"<=\"&annofine)/2","v":0}]
["Totale prodotti trasformati",{"$f":"SUMIFS('VI D-Trasform'!F:F, 'VI D-Trasform'!A:A, \"Situazione di partenza\")","v":0},{"$f":"SUMIFS('VI D-Trasform'!F:F, 'VI D-Trasform'!A:A, annoinizio)","v":0},{"$f":"SUMIFS('VI D-Trasform'!F:F, 'VI D-Trasform'!A:A, annofine)","v":0}]
["Importo investito per commercializzazione",{"$f":"SUMIFS('III A-Piano invest e finanziab'!L:L, 'III A-Piano invest e finanziab'!G:G, \"Commercializzazione\", 'III A-Piano invest e finanziab'!I:I, \"<=\"&annoprec)\n+SUMIFS('III A-Piano invest e finanziab'!L:L, 'III A-Piano invest e finanziab'!G:G, \"Trasformazione e commercializzazione.\", 'III A-Piano invest e finanziab'!I:I, \"<=\"&annoprec)/2","v":0},{"$f":"SUMIFS('III A-Piano invest e finanziab'!L:L, 'III A-Piano invest e finanziab'!G:G, \"Commercializzazione\", 'III A-Piano invest e finanziab'!I:I, \"<=\"&annoinizio)\n+SUMIFS('III A-Piano invest e finanziab'!L:L, 'III A-Piano invest e finanziab'!G:G, \"Trasformazione e commercializzazione.\", 'III A-Piano invest e finanziab'!I:I, \"<=\"&annoinizio)/2","v":0},{"$f":"SUMIFS('III A-Piano invest e finanziab'!L:L, 'III A-Piano invest e finanziab'!G:G, \"Commercializzazione\", 'III A-Piano invest e finanziab'!I:I, \"<=\"&annofine)\n+SUMIFS('III A-Piano invest e finanziab'!L:L, 'III A-Piano invest e finanziab'!G:G, \"Trasformazione e commercializzazione.\", 'III A-Piano invest e finanziab'!I:I, \"<=\"&annofine)/2","v":0}]
["Totale prodotti commercializzati",{"$f":"SUMIFS('VI E-Quadro riepil. commerc'!J:J, 'VI E-Quadro riepil. commerc'!A:A, \"Situazione di partenza\")","v":0},{"$f":"SUMIFS('VI E-Quadro riepil. commerc'!J:J, 'VI E-Quadro riepil. commerc'!A:A, annoinizio)","v":0},{"$f":"SUMIFS('VI E-Quadro riepil. commerc'!J:J, 'VI E-Quadro riepil. commerc'!A:A, annofine)","v":0}]
["Obiettivo relativo alla Priorità Settoriale (100-50-0)",{"$f":"IF(\nIF(\nIF( COUNTIFS('III A-Piano invest e finanziab'!$F$8:$F$900, \"*\"&'ALLEGATO 8'!$M1&\"*\") > 0, 1, 0)\n+IF( COUNTIFS('III A-Piano invest e finanziab'!$F$8:$F$900, \"*\"&'ALLEGATO 8'!$M2&\"*\") > 0, 1, 0)\n+IF( COUNTIFS('III A-Piano invest e finanziab'!$F$8:$F$900, \"*\"&'ALLEGATO 8'!$M3&\"*\") > 0, 1, 0)\n+IF( COUNTIFS('III A-Piano invest e finanziab'!$F$8:$F$900, \"*\"&'ALLEGATO 8'!$M4&\"*\") > 0, 1, 0)\n>= 1, 1, 0)+\nIF(\nIF( COUNTIFS('III A-Piano invest e finanziab'!$F$8:$F$900, \"*\"&'ALLEGATO 8'!$N1&\"*\") > 0, 1, 0)\n+IF( COUNTIFS('III A-Piano invest e finanziab'!$F$8:$F$900, \"*\"&'ALLEGATO 8'!$N2&\"*\") > 0, 1, 0)\n+IF( COUNTIFS('III A-Piano invest e finanziab'!$F$8:$F$900, \"*\"&'ALLEGATO 8'!$N3&\"*\") > 0, 1, 0)\n>= 1, 1, 0)+\nIF(\nIF( COUNTIFS('III A-Piano invest e finanziab'!$F$8:$F$900, \"*\"&'ALLEGATO 8'!$O1&\"*\") > 0, 1, 0)\n+IF( COUNTIFS('III A-Piano invest e finanziab'!$F$8:$F$900, \"*\"&'ALLEGATO 8'!$O2&\"*\") > 0, 1, 0)\n+IF( COUNTIFS('III A-Piano invest e finanziab'!$F$8:$F$900, \"*\"&'ALLEGATO 8'!$O3&\"*\") > 0, 1, 0)\n>= 1, 1, 0) = 3, 15,\nIF(IF(\nIF( COUNTIFS('III A-Piano invest e finanziab'!$F$8:$F$900, \"*\"&'ALLEGATO 8'!$M1&\"*\") > 0, 1, 0)\n+IF( COUNTIFS('III A-Piano invest e finanziab'!$F$8:$F$900, \"*\"&'ALLEGATO 8'!$M2&\"*\") > 0, 1, 0)\n+IF( COUNTIFS('III A-Piano invest e finanziab'!$F$8:$F$900, \"*\"&'ALLEGATO 8'!$M3&\"*\") > 0, 1, 0)\n+IF( COUNTIFS('III A-Piano invest e finanziab'!$F$8:$F$900, \"*\"&'ALLEGATO 8'!$M4&\"*\") > 0, 1, 0)\n>= 1, 1, 0)+\nIF(\nIF( COUNTIFS('III A-Piano invest e finanziab'!$F$8:$F$900, \"*\"&'ALLEGATO 8'!$N1&\"*\") > 0, 1, 0)\n+IF( COUNTIFS('III A-Piano invest e finanziab'!$F$8:$F$900, \"*\"&'ALLEGATO 8'!$N2&\"*\") > 0, 1, 0)\n+IF( COUNTIFS('III A-Piano invest e finanziab'!$F$8:$F$900, \"*\"&'ALLEGATO 8'!$N3&\"*\") > 0, 1, 0)\n>= 1, 1, 0)+\nIF(\nIF( COUNTIFS('III A-Piano invest e finanziab'!$F$8:$F$900, \"*\"&'ALLEGATO 8'!$O1&\"*\") > 0, 1, 0)\n+IF( COUNTIFS('III A-Piano invest e finanziab'!$F$8:$F$900, \"*\"&'ALLEGATO 8'!$O2&\"*\") > 0, 1, 0)\n+IF( COUNTIFS('III A-Piano invest e finanziab'!$F$8:$F$900, \"*\"&'ALLEGATO 8'!$O3&\"*\") > 0, 1, 0)\n>= 1, 1, 0) = 2, 7.5, 0))","v":0},null,null,null,{"$f":"B14","v":0}]
["Investimento Connesso a un progetto filiera/Partecipazione Gruppo Operativo PEI",{"$f":"IF('II-Anagrafica azle'!D21=\"SI\", 15, 0)","v":0},null,null,null,{"$f":"B15+F14","v":0}]
["Investimenti realizzati da aziende localizzate prevalentemente in zone soggette ai vincoli di cui all'art. 32 del Reg. 1305/2013 e in Aree natura 2000",{"$f":"IF(\n   'II-Anagrafica azle'!D10 >= 'II-Anagrafica azle'!D9/2,   10,\n    IF(\n        OR('II-Anagrafica azle'!D10 = \"\", 'II-Anagrafica azle'!D10 = 0),    0,\n        IF(\n           AND('II-Anagrafica azle'!D10<'II-Anagrafica azle'!D9/2, 'II-Anagrafica azle'!D10>0), 5)))","v":10},null,null,null,{"$f":"B16+F15","v":10}]
["Redditività (100-50-0)",{"$f":"IF( COUNTIFS(F31:F33, \"DATI MANCANTI\") > 0, \"DATI MANCANTI\", MIN(F31:F33))","v":"DATI MANCANTI"},null,null,null,{"$f":"IF(B17=\"DATI MANCANTI\", F16, B17+F16)","v":10}]
["Investimenti che denotano Innovatività con le indicazioni S3 (3-2-1)",{"$f":"IF(COUNTIFS('III A-Piano invest e finanziab'!D8:D799, \"SI\")>=3, 20,\nIF(COUNTIFS('III A-Piano invest e finanziab'!D8:D799, \"SI\")=2, 15,\nIF(COUNTIFS('III A-Piano invest e finanziab'!D8:D799, \"SI\")=1, 10, 0)))","v":0},null,null,null,10]
["Investimenti che sviluppano effetti positivi per l'Ambiente",{"$f":"IF(\nIF( COUNTIFS('III A-Piano invest e finanziab'!$E$8:$E$900, \"*\"&'ALLEGATO 8'!$P1&\"*\") > 0, 1, 0)\n+IF( COUNTIFS('III A-Piano invest e finanziab'!$E$8:$E$900, \"*\"&'ALLEGATO 8'!$P2&\"*\") > 0, 1, 0)\n+IF( COUNTIFS('III A-Piano invest e finanziab'!$E$8:$E$900, \"*\"&'ALLEGATO 8'!$P3&\"*\") > 0, 1, 0)\n+IF( COUNTIFS('III A-Piano invest e finanziab'!$E$8:$E$900, \"*\"&'ALLEGATO 8'!$P4&\"*\") > 0, 1, 0)\n= 2, 10,\nIF(\nIF( COUNTIFS('III A-Piano invest e finanziab'!$E$8:$E$900, \"*\"&'ALLEGATO 8'!$P1&\"*\") > 0, 1, 0)\n+IF( COUNTIFS('III A-Piano invest e finanziab'!$E$8:$E$900, \"*\"&'ALLEGATO 8'!$P2&\"*\") > 0, 1, 0)\n+IF( COUNTIFS('III A-Piano invest e finanziab'!$E$8:$E$900, \"*\"&'ALLEGATO 8'!$P3&\"*\") > 0, 1, 0)\n+IF( COUNTIFS('III A-Piano invest e finanziab'!$E$8:$E$900, \"*\"&'ALLEGATO 8'!$P4&\"*\") > 0, 1, 0)\n>= 3, 20, 0))","v":0},null,null,null,10]
["Imprese condotte da giovani agricoltori che presentano la domanda di sostegno entro i 5 anni dal primo insediamento",{"$f":"IF('II-Anagrafica azle'!B18=\"\",\"Data di nascita non inserita\",IF(AND(\n'II-Anagrafica azle'!B18+365*40>'I-Dich. sostitutiva'!D18,\n'I-Dich. sostitutiva'!D18-5*365<'II-Anagrafica azle'!B9\n),10,0))","v":"Data di nascita non inserita"},null,null,null,{"$f":"IF(B20=\"Data di nascita non inserita\", F19, B20+F19)","v":10}]
[]
["INDICATORI DI SOSTENIBILITÀ DEL PSA"]
[null,{"$f":"\"Anno \"&annoprec","v":"Anno 1899"},{"$f":"\"Anno \"&annoinizio","v":"Anno 1900"},{"$f":"\"Anno \"&annofine","v":"Anno 1902"},{"$f":"\"Previsionale al \"&annoinizio+3","v":"Previsionale al 1903"},"Verifica sostenibilità"]
["Sostenibilità finanziaria (margine di tesoreria)",{"$f":"IFERROR('SP RIC. 2424'!B5-'SP RIC. 2424'!B8-'SP RIC. 2424'!B16, \"DATI MANCANTI\")","v":0},{"$f":"IFERROR('SP RIC. 2424'!C5-'SP RIC. 2424'!C8-'SP RIC. 2424'!C16, \"DATI MANCANTI\")","v":0},{"$f":"IFERROR('SP RIC. 2424'!D5-'SP RIC. 2424'!D8-'SP RIC. 2424'!D16, \"DATI MANCANTI\")","v":0},{"$f":"IFERROR('SP RIC. 2424'!E5-'SP RIC. 2424'!E8-'SP RIC. 2424'!E16, \"DATI MANCANTI\")","v":0},{"$f":"AND(\nOR(\nE24>B24,\nAND(E24<>\"DATI MANCANTI\",B24=\"DATI MANCANTI\")\n),\nE24>0)","v":false}]
["Sostenibilità economica",{"$f":"AND(B31>0, B32>0, B33>0, B31<>\"DATI MANCANTI\", B32<>\"DATI MANCANTI\", B33<>\"DATI MANCANTI\" )","v":false},{"$f":"AND(C31>0, C32>0, C33>0, C31<>\"DATI MANCANTI\", C32<>\"DATI MANCANTI\", C33<>\"DATI MANCANTI\" )","v":false},{"$f":"AND(D31>0, D32>0, D33>0, D31<>\"DATI MANCANTI\", D32<>\"DATI MANCANTI\", D33<>\"DATI MANCANTI\" )","v":false},false,{"$f":"OR(\nAND(E31>B31, E32>B32, E33>B33),\nAND(B31=\"DATI MANCANTI\", B32=\"DATI MANCANTI\", B33=\"DATI MANCANTI\", E31<>\"DATI MANCANTI\", E32<>\"DATI MANCANTI\", E33<>\"DATI MANCANTI\")\n)","v":false}]
["Sostenibilità logistica (da elaborati progettuali) - Coltivazione (SAU/ULA)",{"$f":"IFERROR(B7/B9, 0)","v":0},{"$f":"IFERROR(C7/C9, 0)","v":0},{"$f":"IFERROR(D7/D9, 0)","v":0},{"$f":"IFERROR(E7/E9, 0)","v":0},{"$f":"E26>B26","v":false}]
["Sostenibilità logistica (da elaborati progettuali) - Allevamento (UBA/ULA)",{"$f":"IFERROR(B6/B9, 0)","v":0},{"$f":"IFERROR(C6/C9, 0)","v":0},{"$f":"IFERROR(D6/D9, 0)","v":0},{"$f":"IFERROR(E6/E9, 0)","v":0},false]
[]
["INDICATORI DI REDDITIVITÀ DEL PSA"]
[null,{"$f":"\"Anno \"&annoprec","v":"Anno 1899"},{"$f":"\"Anno \"&annoinizio","v":"Anno 1900"},{"$f":"\"Anno \"&annofine","v":"Anno 1902"},{"$f":"\"Previsionale al \"&annoinizio+3","v":"Previsionale al 1903"},"Punteggio per singolo indicatore"]
["ROI: Indice di redditività del capitale investito (return on investment) Ebit ",{"$f":"IFERROR('CE RIC. 2425'!B31/'SP RIC. 2424'!B13, \"DATI MANCANTI\")","v":"DATI MANCANTI"},{"$f":"IFERROR('CE RIC. 2425'!C31/'SP RIC. 2424'!C13, \"DATI MANCANTI\")","v":"DATI MANCANTI"},{"$f":"IFERROR('CE RIC. 2425'!D31/'SP RIC. 2424'!D13, \"DATI MANCANTI\")","v":"DATI MANCANTI"},{"$f":"IFERROR('CE RIC. 2425'!E31/'SP RIC. 2424'!E13, \"DATI MANCANTI\")","v":"DATI MANCANTI"},{"$f":"IF(AND(B31=\"DATI MANCANTI\",E31=\"DATI MANCANTI\"),\"DATI MANCANTI\",\nIF(AND(B31=\"DATI MANCANTI\",E31<>\"\"),10,\nIF(E31<B31,0,\nIF(E31>=B31+ABS(B31*0.1),10,\nIF(E31>=B31+ABS(B31*0.05),5,0)))))","v":"DATI MANCANTI"}]
["ROS: Indice di redditività delle vendite (return on sales)",{"$f":"IFERROR('CE RIC. 2425'!B31/'CE RIC. 2425'!B6, \"DATI MANCANTI\")","v":"DATI MANCANTI"},{"$f":"IFERROR('CE RIC. 2425'!C31/'CE RIC. 2425'!C6, \"DATI MANCANTI\")","v":"DATI MANCANTI"},{"$f":"IFERROR('CE RIC. 2425'!D31/'CE RIC. 2425'!D6, \"DATI MANCANTI\")","v":"DATI MANCANTI"},{"$f":"IFERROR('CE RIC. 2425'!E31/'CE RIC. 2425'!E6, \"DATI MANCANTI\")","v":"DATI MANCANTI"},{"$f":"IF(AND(B32=\"DATI MANCANTI\",E32=\"DATI MANCANTI\"),\"DATI MANCANTI\",\nIF(AND(B32=\"DATI MANCANTI\",E32<>\"\"),10,\nIF(E32<B32,0,\nIF(E32>=B32+ABS(B32*0.1),10,\nIF(E32>=B32+ABS(B32*0.05),5,0)))))","v":"DATI MANCANTI"}]
["ROE: Indice di redditività del capitale proprio (return on equity)",{"$f":"IFERROR('CE 2425'!B41/'SP RIC. 2424'!B18, \"DATI MANCANTI\")","v":"DATI MANCANTI"},{"$f":"IFERROR('CE 2425'!C41/'SP RIC. 2424'!C18, \"DATI MANCANTI\")","v":"DATI MANCANTI"},{"$f":"IFERROR('CE 2425'!D41/'SP RIC. 2424'!D18, \"DATI MANCANTI\")","v":"DATI MANCANTI"},{"$f":"IFERROR('CE 2425'!E41/'SP RIC. 2424'!E18, \"DATI MANCANTI\")","v":"DATI MANCANTI"},"DATI MANCANTI"]
[]
["CALCOLO DEGLI INDICI ECONOMICI E VERIFICA DELLA REMUNERATIVITA’ DEL RISULTATO ECONOMICO DATI SP: Capitale proprio economico (Cp1); Capitale di debito economico (Cd1); Totale impieghi CE Vendite  Reddito operativo; Interessi e altri oneri finanziari; Risultato prima delle imposte; Imposte sul reddito dell’esercizio ; Utile dell’esercizio. "]
[]
[null,null,"IL TECNICO COMPILATORE"]

{"sheet":"Elenchi","index":30,"n_rows":14,"n_cols":2,"rows_kept":14,"cut":false,"hidden":true,"merged":[]}
["AGRITURISMO",0.1]
["FATTORIE DIDATTICHE/FATTORIE SOCIALI",0.1]
["AGRICOLTURA SOCIALE",0.1]
["ACQUACOLTURA",0.1]
["TURISMO RURALE E ATTIVITA' RICREATIVE",0.05]
["CONTOTERZISMO ATTIVO ",0.05]
["SERVIZI AMBIENTALI",0.05]
["ATTIVITA' SPORTIVE E RICREATIVE",0.05]
["AGRI-CAMPEGGIO",0.05]
["SERVIZI PER L'INFANZIA",0.05]
[]
[]
["SI"]
["NO"]

{"sheet":"TAB_COLT_ALLEV_CodAGEA_PS_CREA","index":31,"n_rows":837,"n_cols":13,"rows_kept":837,"cut":false,"hidden":true,"merged":[]}
["COLT_ALLEV","RUB_PS_2010","DESCRIZIONE_PS","COD_MACROUSO","MACROUSO/SPECIE","COD_PRODOTTO","PRODOTTO/CATEGORIA","COD_USO","USO ","PS_euro","GG_ettaro",null,"FONTE: https://rica.crea.gov.it/redditi-lordi-standard-rls-e-produzioni-standard-ps-210.php"]
[1,"D01","Frumento tenero","040","Superfici seminabili","587","GRANO (FRUMENTO) TENERO","000","",977.1300502522821,12]
[1,"D02","Frumento duro","040","Superfici seminabili","002","GRANO (FRUMENTO) DURO","000","",1248.6161714601358,12]
[1,"D03","Segale","040","Superfici seminabili","681","SEGALA","000","",556.22830531303225,12]
[1,"D04","Orzo","040","Superfici seminabili","870","ORZO","000","",782.90383463309945,12]
[1,"D05","Avena","040","Superfici seminabili","533","AVENA - DA GRANELLA","000","",586.75856066548477,12]
[1,"D06","Mais","040","Superfici seminabili","001","GRANTURCO (MAIS) DA GRANELLA","000",null,1398.7931231907762,20]
[1,"D07","Riso","070","Risaia","019","RISONE","099","ALTRO",1618.5063911126956,20]
[1,"D07","Riso","070","Risaia","094","RISONE TONDO","000","",1618.5063911126956,20]
[1,"D07","Riso","070","Risaia","095","RISONE MEDIO","000","",1618.5063911126956,20]
[1,"D07","Riso","070","Risaia","097","RISONE LUNGO A","000","",1618.5063911126956,20]
[1,"D07","Riso","070","Risaia","098","RISONE LUNGO B","000","",1618.5063911126956,20]
[1,"D07","Riso","070","Risaia","104","RISONE TONDO, MEDIO, LUNGO A PER LA PRODUZIONE DI SEME (ORYZA SATIVA L.)","000","",1618.5063911126956,20]
[1,"D07","Riso","070","Risaia","105","RISONE LUNGO B PER LA PRODUZIONE DI SEME (ORYZA SATIVA L.)","000","",1618.5063911126956,20]
[1,"D08","Altri cereali da granella (sorgo, miglio, panico, farro, ecc.)","040","Superfici seminabili","009","FARRO","000","",1099.7955059634087,12]
[1,"D08","Altri cereali da granella (sorgo, miglio, panico, farro, ecc.)","040","Superfici seminabili","109","PANICO","000","",1099.7955059634087,12]
[1,"D08","Altri cereali da granella (sorgo, miglio, panico, farro, ecc.)","040","Superfici seminabili","154","TRITICALE","000","",1099.7955059634087,12]
[1,"D08","Altri cereali da granella (sorgo, miglio, panico, farro, ecc.)","040","Superfici seminabili","346","GRANO TURANICUM O FRUMENTO ORIENTALE O GRANO KHORASAN DA SEME","000",null,1099.7955059634087,12]
[1,"D08","Altri cereali da granella (sorgo, miglio, panico, farro, ecc.)","040","Superfici seminabili","347","GRANO TURANICUM O FRUMENTO ORIENTALE O GRANO KHORASAN","000","",1099.7955059634087,12]
[1,"D08","Altri cereali da granella (sorgo, miglio, panico, farro, ecc.)","040","Superfici seminabili","443","TRITORDEUM","000","",1099.7955059634087,12]
[1,"D08","Altri cereali da granella (sorgo, miglio, panico, farro, ecc.)","040","Superfici seminabili","545","CHENOPODIUM QUINOA","000","",1099.7955059634087,12]
[1,"D08","Altri cereali da granella (sorgo, miglio, panico, farro, ecc.)","040","Superfici seminabili","597","GRANO SARACENO","000","",1099.7955059634087,12]
[1,"D08","Altri cereali da granella (sorgo, miglio, panico, farro, ecc.)","040","Superfici seminabili","624","MIGLIO","000","",1099.7955059634087,12]
[1,"D08","Altri cereali da granella (sorgo, miglio, panico, farro, ecc.)","040","Superfici seminabili","675","SCAGLIOLA","000","",1099.7955059634087,12]
[1,"D08","Altri cereali da granella (sorgo, miglio, panico, farro, ecc.)","040","Superfici seminabili","694","SORGO DA GRANELLA","000","",1099.7955059634087,12]
[1,"D08","Altri cereali da granella (sorgo, miglio, panico, farro, ecc.)","040","Superfici seminabili","698","SPELTA","000","",1099.7955059634087,12]
[1,"D09","Legumi secchi (fava, favette, cece, fagiolo, lenticchia, ecc.)","040","Superfici seminabili","016","LENTICCHIE","000","",1655.1344386427509,16]
[1,"D09","Legumi secchi (fava, favette, cece, fagiolo, lenticchia, ecc.)","040","Superfici seminabili","122","FAGIOLO","000","",1655.1344386427509,16]
[1,"D09","Legumi secchi (fava, favette, cece, fagiolo, lenticchia, ecc.)","040","Superfici seminabili","159","VECCE","000","",1655.1344386427509,16]
[1,"D09","Legumi secchi (fava, favette, cece, fagiolo, lenticchia, ecc.)","040","Superfici seminabili","217","FAGIOLO D'EGITTO (Dolichos lablab)","000","",1655.1344386427509,16]
[1,"D09","Legumi secchi (fava, favette, cece, fagiolo, lenticchia, ecc.)","040","Superfici seminabili","259","FAGIOLO DI SPAGNA","000",null,1655.1344386427509,16]
[1,"D09","Legumi secchi (fava, favette, cece, fagiolo, lenticchia, ecc.)","040","Superfici seminabili","453","FAGIOLO DALL'OCCHIO","000","",1655.1344386427509,16]
[1,"D09","Legumi secchi (fava, favette, cece, fagiolo, lenticchia, ecc.)","040","Superfici seminabili","454","FAGIOLO DI LIMA","000","",1655.1344386427509,16]
[1,"D09","Legumi secchi (fava, favette, cece, fagiolo, lenticchia, ecc.)","040","Superfici seminabili","544","CECE","000","",1655.1344386427509,16]
[1,"D09","Legumi secchi (fava, favette, cece, fagiolo, lenticchia, ecc.)","040","Superfici seminabili","607","LEGUMINOSE DA GRANELLA","000","",1655.1344386427509,16]
[1,"D10","Patate (comprese le patate primaticce e da semina)","040","Superfici seminabili","070","PATATA, DESTINATA ALLA FABBRICAZIONE DELLA FECOLA","000","",13125,60]
[1,"D10","Patate (comprese le patate primaticce e da semina)","040","Superfici seminabili","132","PATATA DA SEME","000","",13125,60]
[1,"D10","Patate (comprese le patate primaticce e da semina)","040","Superfici seminabili","710","PATATA","000","",13125,60]
[1,"D11","Barbabietola da zucchero (escluse le sementi)","040","Superfici seminabili","240","BARBABIETOLA DA ZUCCHERO","000","",2257.5198908028942,21]
[1,"D12","Sarchiate da foraggio (bietola da foraggio, ecc.)   ","040","Superfici seminabili","024","BIETOLA (Compresa  la CHELTENHAM BEET, BARBABIETOLA ROSSA/BIETOLA DA COSTA) DA FORAGGIO","000",null,2366.9988659502051,18]
[1,"D12","Sarchiate da foraggio (bietola da foraggio, ecc.)   ","040","Superfici seminabili","027","CAROTA - DA FORAGGIO","000",null,2366.9988659502051,18]
[1,"D12","Sarchiate da foraggio (bietola da foraggio, ecc.)   ","040","Superfici seminabili","028","CAVOLO - DA FORAGGIO","000",null,2366.9988659502051,18]
[1,"D12","Sarchiate da foraggio (bietola da foraggio, ecc.)   ","040","Superfici seminabili","089","PATATA AMERICANA (BATATA)","000","",2366.9988659502051,18]
[1,"D12","Sarchiate da foraggio (bietola da foraggio, ecc.)   ","040","Superfici seminabili","091","NAVONI RUTABAGA - DA FORAGGIO","000",null,2366.9988659502051,18]
[1,"D12","Sarchiate da foraggio (bietola da foraggio, ecc.)   ","040","Superfici seminabili","108","GRANTURCO (MAIS) - INSILATO","000","",2366.9988659502051,18]
[1,"D12","Sarchiate da foraggio (bietola da foraggio, ecc.)   ","040","Superfici seminabili","395","PASTINACA","000","",2366.9988659502051,18]
[1,"D12","Sarchiate da foraggio (bietola da foraggio, ecc.)   ","040","Superfici seminabili","586","GIRASOLE - DA FORAGGIO","000",null,2366.9988659502051,18]
[1,"D12","Sarchiate da foraggio (bietola da foraggio, ecc.)   ","040","Superfici seminabili","954","CAVOLO RAPA - DA FORAGGIO","000","",2366.9988659502051,18]
[1,"D12","Sarchiate da foraggio (bietola da foraggio, ecc.)   ","040","Superfici seminabili","955","NAVONI RUTABAGA","000","",2366.9988659502051,18]
[1,"D14A","Ortaggi freschi in pieno campo","040","Superfici seminabili","114","AGRETTO","000","",14035.695188495309,120]
[1,"D14A","Ortaggi freschi in pieno campo","040","Superfici seminabili","115","BARBABIETOLA DA ORTO","000","",14035.695188495309,120]
[1,"D14A","Ortaggi freschi in pieno campo","040","Superfici seminabili","117","BROCCOLETTO DI RAPA","000","",14035.695188495309,120]
[1,"D14A","Ortaggi freschi in pieno campo","040","Superfici seminabili","118","CAVOLFIORE","000","",14035.695188495309,120]
[1,"D14A","Ortaggi freschi in pieno campo","040","Superfici seminabili","124","FAGIUOLO FRESCO","000","",14035.695188495309,120]
[1,"D14A","Ortaggi freschi in pieno campo","040","Superfici seminabili","125","FAVA FRESCA","000","",14035.695188495309,120]
[1,"D14A","Ortaggi freschi in pieno campo","040","Superfici seminabili","127","LATTUGA LATTUGHINO","000","",14035.695188495309,120]
[1,"D14A","Ortaggi freschi in pieno campo","040","Superfici seminabili","131","ORTIVE A PIENO CAMPO","000",null,14035.695188495309,120]
[1,"D14A","Ortaggi freschi in pieno campo","040","Superfici seminabili","135","PORRO","000","",14035.695188495309,120]
[1,"D14A","Ortaggi freschi in pieno campo","040","Superfici seminabili","151","PEPERONCINO PEPERETTA","005","DA MENSA",14035.695188495309,120]
[1,"D14A","Ortaggi freschi in pieno campo","040","Superfici seminabili","162","INDIVIA O SCAROLA  ","000","",14035.695188495309,120]
[1,"D14A","Ortaggi freschi in pieno campo","040","Superfici seminabili","167","RUCOLA","000","",14035.695188495309,120]
[1,"D14A","Ortaggi freschi in pieno campo","040","Superfici seminabili","169","DOLCETTA (GALLINELLA, SONCINO, VALERIANELLA)","000","",14035.695188495309,120]
[1,"D14A","Ortaggi freschi in pieno campo","040","Superfici seminabili","219","CIPOLLETTA  CIPOLLA D'INVERNO DA ORTO","000","",14035.695188495309,120]
[1,"D14A","Ortaggi freschi in pieno campo","040","Superfici seminabili","250","CARVI - CUMINO DEI PRATI","000",null,14035.695188495309,120]
[1,"D14A","Ortaggi freschi in pieno campo","040","Superfici seminabili","252","CUMINO - CUMINO ROMANO","000",null,14035.695188495309,120]
[1,"D14A","Ortaggi freschi in pieno campo","040","Superfici seminabili","268","GRANTURCO (MAIS)DA POPCORN","000","",14035.695188495309,120]
[1,"D14A","Ortaggi freschi in pieno campo","040","Superfici seminabili","275","CAVOLO CINESE","000",null,14035.695188495309,120]
[1,"D14A","Ortaggi freschi in pieno campo","040","Superfici seminabili","277","CAVOLO RAPA","000","",14035.695188495309,120]
[1,"D14A","Ortaggi freschi in pieno campo","040","Superfici seminabili","279","MENTA DOLCE","000","",14035.695188495309,120]
[1,"D14A","Ortaggi freschi in pieno campo","040","Superfici seminabili","280","MENTA PIPERITA ","000","",14035.695188495309,120]
[1,"D14A","Ortaggi freschi in pieno campo","040","Superfici seminabili","281","MENTUCCIA ","000","",14035.695188495309,120]
[1,"D14A","Ortaggi freschi in pieno campo","040","Superfici seminabili","285","PISELLI DA ORTO","000","",14035.695188495309,120]
[1,"D14A","Ortaggi freschi in pieno campo","040","Superfici seminabili","306","BORRAGINE","000","",14035.695188495309,120]
[1,"D14A","Ortaggi freschi in pieno campo","040","Superfici seminabili","392","ORTICA","000","",14035.695188495309,120]
[1,"D14A","Ortaggi freschi in pieno campo","040","Superfici seminabili","412","ROVEJA PISELLO SELVATICO","000","",14035.695188495309,120]
[1,"D14A","Ortaggi freschi in pieno campo","040","Superfici seminabili","414","SCORZONERA","000","",14035.695188495309,120]
[1,"D14A","Ortaggi freschi in pieno campo","040","Superfici seminabili","415","TARASSACO ","000","",14035.695188495309,120]
[1,"D14A","Ortaggi freschi in pieno campo","040","Superfici seminabili","429","RAFANO","000",null,14035.695188495309,120]
[1,"D14A","Ortaggi freschi in pieno campo","040","Superfici seminabili","482","OKRA o OCRA o GOMBO  DA ORTO","000","",14035.695188495309,120]
[1,"D14A","Ortaggi freschi in pieno campo","040","Superfici seminabili","484","CRESCIONE DEI GIARDINI O CRESCIONE INGLESE","000","",14035.695188495309,120]
[1,"D14A","Ortaggi freschi in pieno campo","040","Superfici seminabili","548","CICORIA - RADICI DI CICORIA","000","",14035.695188495309,120]
[1,"D14A","Ortaggi freschi in pieno campo","040","Superfici seminabili","603","GRANTURCO (MAIS) DOLCE","000","",14035.695188495309,120]
[1,"D14A","Ortaggi freschi in pieno campo","040","Superfici seminabili","652","PISELLI ALLO STATO FRESCO","000","",14035.695188495309,120]
[1,"D14A","Ortaggi freschi in pieno campo","040","Superfici seminabili","655","CRAMBE","000","",14035.695188495309,120]
[1,"D14A","Ortaggi freschi in pieno campo","040","Superfici seminabili","656","POMODORINO DA DESTINARE ALLA TRASFORMAZIONE","000","",14035.695188495309,120]
[1,"D14A","Ortaggi freschi in pieno campo","040","Superfici seminabili","657","POMODORINO DA MENSA","000","",14035.695188495309,120]
[1,"D14A","Ortaggi freschi in pieno campo","040","Superfici seminabili","658","POMODORO ALLUNGATO DA DESTINARE ALLA TRASFORMAZIONE","000","",14035.695188495309,120]
[1,"D14A","Ortaggi freschi in pieno campo","040","Superfici seminabili","659","POMODORO TONDO DA DESTINARE ALLA TRASFORMAZIONE","000","",14035.695188495309,120]
[1,"D14A","Ortaggi freschi in pieno campo","040","Superfici seminabili","664","POMODORO ALLUNGATO DA MENSA","000","",14035.695188495309,120]
[1,"D14A","Ortaggi freschi in pieno campo","040","Superfici seminabili","665","POMODORO TONDO DA MENSA","000","",14035.695188495309,120]
[1,"D14A","Ortaggi freschi in pieno campo","040","Superfici seminabili","680","SCALOGNI","000","",14035.695188495309,120]
[1,"D14A","Ortaggi freschi in pieno campo","040","Superfici seminabili","901","AGLIO","000","",14035.695188495309,120]
[1,"D14A","Ortaggi freschi in pieno campo","040","Superfici seminabili","904","BIETOLA (Compresa  la CHELTENHAM BEET, BARBABIETOLA ROSSA/BIETOLA DA COSTA)","000","",14035.695188495309,120]
[1,"D14A","Ortaggi freschi in pieno campo","040","Superfici seminabili","909","CARCIOFO","050","ANNUALE - NON PERMANENTE",14035.695188495309,120]
[1,"D14A","Ortaggi freschi in pieno campo","040","Superfici seminabili","910","CARDI","000","",14035.695188495309,120]
[1,"D14A","Ortaggi freschi in pieno campo","040","Superfici seminabili","911","CAROTA","000","",14035.695188495309,120]
[1,"D14A","Ortaggi freschi in pieno campo","040","Superfici seminabili","914","CAVOLO","000","",14035.695188495309,120]
[1,"D14A","Ortaggi freschi in pieno campo","040","Superfici seminabili","917","CETRIOLO","000","",14035.695188495309,120]
[1,"D14A","Ortaggi freschi in pieno campo","040","Superfici seminabili","919","CICORIA","000","",14035.695188495309,120]
[1,"D14A","Ortaggi freschi in pieno campo","040","Superfici seminabili","921","CIPOLLA","000","",14035.695188495309,120]
[1,"D14A","Ortaggi freschi in pieno campo","040","Superfici seminabili","924","COCOMERO","000","",14035.695188495309,120]
[1,"D14A","Ortaggi freschi in pieno campo","040","Superfici seminabili","925","FAGIOLINO","000","",14035.695188495309,120]
[1,"D14A","Ortaggi freschi in pieno campo","040","Superfici seminabili","926","FINOCCHIO","000","",14035.695188495309,120]
[1,"D14A","Ortaggi freschi in pieno campo","040","Superfici seminabili","927","FRAGOLA","000","",14035.695188495309,120]
[1,"D14A","Ortaggi freschi in pieno campo","040","Superfici seminabili","930","MELANZANA","000","",14035.695188495309,120]
[1,"D14A","Ortaggi freschi in pieno campo","040","Superfici seminabili","931","MELONE","000","",14035.695188495309,120]
[1,"D14A","Ortaggi freschi in pieno campo","040","Superfici seminabili","932","PEPERONE","000","",14035.695188495309,120]
[1,"D14A","Ortaggi freschi in pieno campo","040","Superfici seminabili","935","RADICCHIO","000","",14035.695188495309,120]
[1,"D14A","Ortaggi freschi in pieno campo","040","Superfici seminabili","936","RAVANELLO","000","",14035.695188495309,120]
[1,"D14A","Ortaggi freschi in pieno campo","040","Superfici seminabili","938","SEDANO","000","",14035.695188495309,120]
[1,"D14A","Ortaggi freschi in pieno campo","040","Superfici seminabili","939","SPINACIO","000","",14035.695188495309,120]
[1,"D14A","Ortaggi freschi in pieno campo","040","Superfici seminabili","940","ZUCCA","000","",14035.695188495309,120]
[1,"D14A","Ortaggi freschi in pieno campo","040","Superfici seminabili","941","ZUCCHINO","000","",14035.695188495309,120]
[1,"D14A","Ortaggi freschi in pieno campo","040","Superfici seminabili","942","CIPOLLINA","000","",14035.695188495309,120]
[1,"D14A","Ortaggi freschi in pieno campo","040","Superfici seminabili","956","SEDANO RAPA","000","",14035.695188495309,120]
[1,"D14A","Ortaggi freschi in pieno campo","040","Superfici seminabili","970","BROCCOLO","000","",14035.695188495309,120]
[1,"D14A","Ortaggi freschi in pieno campo","040","Superfici seminabili","972","BRASSICA CARINATA  (CAVOLO ABISSINO)","000","",14035.695188495309,120]
[1,"D14A","Ortaggi freschi in pieno campo","060","Colture pluriennali","902","ASPARAGO","000","",14035.695188495309,210]
[1,"D14A","Ortaggi freschi in pieno campo","060","Colture pluriennali","909","CARCIOFO","000",null,14035.695188495309,110]
[1,"D14B","Ortaggi freschi in orto industriale   ","040","Superfici seminabili","114","AGRETTO","000","",14198.082879090689,155]
[1,"D14B","Ortaggi freschi in orto industriale   ","040","Superfici seminabili","115","BARBABIETOLA DA ORTO","000","",14198.082879090689,155]
[1,"D14B","Ortaggi freschi in orto industriale   ","040","Superfici seminabili","117","BROCCOLETTO DI RAPA","000","",14198.082879090689,155]
[1,"D14B","Ortaggi freschi in orto industriale   ","040","Superfici seminabili","118","CAVOLFIORE","000","",14198.082879090689,155]
[1,"D14B","Ortaggi freschi in orto industriale   ","040","Superfici seminabili","124","FAGIUOLO FRESCO","000","",14198.082879090689,155]
[1,"D14B","Ortaggi freschi in orto industriale   ","040","Superfici seminabili","125","FAVA FRESCA","000","",14198.082879090689,155]
[1,"D14B","Ortaggi freschi in orto industriale   ","040","Superfici seminabili","127","LATTUGA LATTUGHINO","000","",14198.082879090689,155]
[1,"D14B","Ortaggi freschi in orto industriale   ","040","Superfici seminabili","131","ORTIVE A PIENO CAMPO","000",null,14198.082879090689,155]
[1,"D14B","Ortaggi freschi in orto industriale   ","040","Superfici seminabili","135","PORRO","000","",14198.082879090689,155]
[1,"D14B","Ortaggi freschi in orto industriale   ","040","Superfici seminabili","151","PEPERONCINO PEPERETTA","005","DA MENSA",14198.082879090689,155]
[1,"D14B","Ortaggi freschi in orto industriale   ","040","Superfici seminabili","162","INDIVIA O SCAROLA  ","000","",14198.082879090689,155]
[1,"D14B","Ortaggi freschi in orto industriale   ","040","Superfici seminabili","167","RUCOLA","000","",14198.082879090689,155]
[1,"D14B","Ortaggi freschi in orto industriale   ","040","Superfici seminabili","169","DOLCETTA (GALLINELLA, SONCINO, VALERIANELLA)","000","",14198.082879090689,155]
[1,"D14B","Ortaggi freschi in orto industriale   ","040","Superfici seminabili","219","CIPOLLETTA  CIPOLLA D'INVERNO DA ORTO","000","",14198.082879090689,155]
[1,"D14B","Ortaggi freschi in orto industriale   ","040","Superfici seminabili","250","CARVI - CUMINO DEI PRATI","000",null,14198.082879090689,155]
[1,"D14B","Ortaggi freschi in orto industriale   ","040","Superfici seminabili","252","CUMINO - CUMINO ROMANO","000",null,14198.082879090689,155]
[1,"D14B","Ortaggi freschi in orto industriale   ","040","Superfici seminabili","275","CAVOLO CINESE","000",null,14198.082879090689,155]
[1,"D14B","Ortaggi freschi in orto industriale   ","040","Superfici seminabili","277","CAVOLO RAPA","000","",14198.082879090689,155]
[1,"D14B","Ortaggi freschi in orto industriale   ","040","Superfici seminabili","279","MENTA DOLCE","000","",14198.082879090689,155]
[1,"D14B","Ortaggi freschi in orto industriale   ","040","Superfici seminabili","280","MENTA PIPERITA ","000","",14198.082879090689,155]
[1,"D14B","Ortaggi freschi in orto industriale   ","040","Superfici seminabili","281","MENTUCCIA ","000","",14198.082879090689,155]
[1,"D14B","Ortaggi freschi in orto industriale   ","040","Superfici seminabili","285","PISELLI DA ORTO","000","",14198.082879090689,155]
[1,"D14B","Ortaggi freschi in orto industriale   ","040","Superfici seminabili","306","BORRAGINE","000","",14198.082879090689,155]
[1,"D14B","Ortaggi freschi in orto industriale   ","040","Superfici seminabili","392","ORTICA","000","",14198.082879090689,155]
[1,"D14B","Ortaggi freschi in orto industriale   ","040","Superfici seminabili","412","ROVEJA PISELLO SELVATICO","000","",14198.082879090689,155]
[1,"D14B","Ortaggi freschi in orto industriale   ","040","Superfici seminabili","414","SCORZONERA","000","",14198.082879090689,155]
[1,"D14B","Ortaggi freschi in orto industriale   ","040","Superfici seminabili","415","TARASSACO ","000","",14198.082879090689,155]
[1,"D14B","Ortaggi freschi in orto industriale   ","040","Superfici seminabili","429","RAFANO","000",null,14198.082879090689,155]
[1,"D14B","Ortaggi freschi in orto industriale   ","040","Superfici seminabili","482","OKRA o OCRA o GOMBO  DA ORTO","000","",14198.082879090689,155]
[1,"D14B","Ortaggi freschi in orto industriale   ","040","Superfici seminabili","484","CRESCIONE DEI GIARDINI O CRESCIONE INGLESE","000","",14198.082879090689,155]
[1,"D14B","Ortaggi freschi in orto industriale   ","040","Superfici seminabili","548","CICORIA - RADICI DI CICORIA","000","",14198.082879090689,155]
[1,"D14B","Ortaggi freschi in orto industriale   ","040","Superfici seminabili","652","PISELLI ALLO STATO FRESCO","000","",14198.082879090689,155]
[1,"D14B","Ortaggi freschi in orto industriale   ","040","Superfici seminabili","655","CRAMBE","000","",14198.082879090689,155]
[1,"D14B","Ortaggi freschi in orto industriale   ","040","Superfici seminabili","656","POMODORINO DA DESTINARE ALLA TRASFORMAZIONE","000","",14198.082879090689,155]
[1,"D14B","Ortaggi freschi in orto industriale   ","040","Superfici seminabili","657","POMODORINO DA MENSA","000","",14198.082879090689,155]
[1,"D14B","Ortaggi freschi in orto industriale   ","040","Superfici seminabili","658","POMODORO ALLUNGATO DA DESTINARE ALLA TRASFORMAZIONE","000","",14198.082879090689,155]
[1,"D14B","Ortaggi freschi in orto industriale   ","040","Superfici seminabili","659","POMODORO TONDO DA DESTINARE ALLA TRASFORMAZIONE","000","",14198.082879090689,155]
[1,"D14B","Ortaggi freschi in orto industriale   ","040","Superfici seminabili","664","POMODORO ALLUNGATO DA MENSA","000","",14198.082879090689,155]
[1,"D14B","Ortaggi freschi in orto industriale   ","040","Superfici seminabili","665","POMODORO TONDO DA MENSA","000","",14198.082879090689,155]
[1,"D14B","Ortaggi freschi in orto industriale   ","040","Superfici seminabili","680","SCALOGNI","000","",14198.082879090689,155]
[1,"D14B","Ortaggi freschi in orto industriale   ","040","Superfici seminabili","901","AGLIO","000","",14198.082879090689,155]
[1,"D14B","Ortaggi freschi in orto industriale   ","040","Superfici seminabili","904","BIETOLA (Compresa  la CHELTENHAM BEET, BARBABIETOLA ROSSA/BIETOLA DA COSTA)","000","",14198.082879090689,155]
[1,"D14B","Ortaggi freschi in orto industriale   ","040","Superfici seminabili","910","CARDI","000","",14198.082879090689,155]
[1,"D14B","Ortaggi freschi in orto industriale   ","040","Superfici seminabili","911","CAROTA","000","",14198.082879090689,155]
[1,"D14B","Ortaggi freschi in orto industriale   ","040","Superfici seminabili","914","CAVOLO","000","",14198.082879090689,155]
[1,"D14B","Ortaggi freschi in orto industriale   ","040","Superfici seminabili","917","CETRIOLO","000","",14198.082879090689,155]
[1,"D14B","Ortaggi freschi in orto industriale   ","040","Superfici seminabili","919","CICORIA","000","",14198.082879090689,155]
[1,"D14B","Ortaggi freschi in orto industriale   ","040","Superfici seminabili","921","CIPOLLA","000","",14198.082879090689,155]
[1,"D14B","Ortaggi freschi in orto industriale   ","040","Superfici seminabili","924","COCOMERO","000","",14198.082879090689,155]
[1,"D14B","Ortaggi freschi in orto industriale   ","040","Superfici seminabili","925","FAGIOLINO","000","",14198.082879090689,155]
[1,"D14B","Ortaggi freschi in orto industriale   ","040","Superfici seminabili","926","FINOCCHIO","000","",14198.082879090689,155]
[1,"D14B","Ortaggi freschi in orto industriale   ","040","Superfici seminabili","927","FRAGOLA","000","",14198.082879090689,155]
[1,"D14B","Ortaggi freschi in orto industriale   ","040","Superfici seminabili","930","MELANZANA","000","",14198.082879090689,155]
[1,"D14B","Ortaggi freschi in orto industriale   ","040","Superfici seminabili","931","MELONE","000","",14198.082879090689,155]
[1,"D14B","Ortaggi freschi in orto industriale   ","040","Superfici seminabili","932","PEPERONE","000","",14198.082879090689,155]
[1,"D14B","Ortaggi freschi in orto industriale   ","040","Superfici seminabili","935","RADICCHIO","000","",14198.082879090689,155]
[1,"D14B","Ortaggi freschi in orto industriale   ","040","Superfici seminabili","936","RAVANELLO","000","",14198.082879090689,155]
[1,"D14B","Ortaggi freschi in orto industriale   ","040","Superfici seminabili","938","SEDANO","000","",14198.082879090689,155]
[1,"D14B","Ortaggi freschi in orto industriale   ","040","Superfici seminabili","939","SPINACIO","000","",14198.082879090689,155]
[1,"D14B","Ortaggi freschi in orto industriale   ","040","Superfici seminabili","940","ZUCCA","000","",14198.082879090689,155]
[1,"D14B","Ortaggi freschi in orto industriale   ","040","Superfici seminabili","941","ZUCCHINO","000","",14198.082879090689,155]
[1,"D14B","Ortaggi freschi in orto industriale   ","040","Superfici seminabili","942","CIPOLLINA","000","",14198.082879090689,155]
[1,"D14B","Ortaggi freschi in orto industriale   ","040","Superfici seminabili","956","SEDANO RAPA","000","",14198.082879090689,155]
[1,"D14B","Ortaggi freschi in orto industriale   ","040","Superfici seminabili","970","BROCCOLO","000","",14198.082879090689,155]
[1,"D14B","Ortaggi freschi in orto industriale   ","040","Superfici seminabili","972","BRASSICA CARINATA  (CAVOLO ABISSINO)","000","",14198.082879090689,155]
[1,"D14B","Ortaggi freschi in orto industriale   ","060","Colture pluriennali","902","ASPARAGO","000","",14198.082879090689,155]
[1,"D14B","Ortaggi freschi in orto industriale   ","060","Colture pluriennali","909","CARCIOFO","000",null,14198.082879090689,155]
[1,"D15","Ortaggi freschi in serra","040","Superfici seminabili","114","AGRETTO","000","",38801.341556444342,1000]
[1,"D15","Ortaggi freschi in serra","040","Superfici seminabili","115","BARBABIETOLA DA ORTO","000","",38801.341556444342,1000]
[1,"D15","Ortaggi freschi in serra","040","Superfici seminabili","117","BROCCOLETTO DI RAPA","000","",38801.341556444342,1000]
[1,"D15","Ortaggi freschi in serra","040","Superfici seminabili","118","CAVOLFIORE","000","",38801.341556444342,1000]
[1,"D15","Ortaggi freschi in serra","040","Superfici seminabili","124","FAGIUOLO FRESCO","000","",38801.341556444342,1000]
[1,"D15","Ortaggi freschi in serra","040","Superfici seminabili","125","FAVA FRESCA","000","",38801.341556444342,1000]
[1,"D15","Ortaggi freschi in serra","040","Superfici seminabili","127","LATTUGA LATTUGHINO","000","",38801.341556444342,1000]
[1,"D15","Ortaggi freschi in serra","040","Superfici seminabili","131","ORTIVE A PIENO CAMPO","000",null,38801.341556444342,1000]
[1,"D15","Ortaggi freschi in serra","040","Superfici seminabili","135","PORRO","000","",38801.341556444342,1000]
[1,"D15","Ortaggi freschi in serra","040","Superfici seminabili","151","PEPERONCINO PEPERETTA","005","DA MENSA",38801.341556444342,1000]
[1,"D15","Ortaggi freschi in serra","040","Superfici seminabili","162","INDIVIA O SCAROLA  ","000","",38801.341556444342,1000]
[1,"D15","Ortaggi freschi in serra","040","Superfici seminabili","167","RUCOLA","000","",38801.341556444342,1000]
[1,"D15","Ortaggi freschi in serra","040","Superfici seminabili","169","DOLCETTA (GALLINELLA, SONCINO, VALERIANELLA)","000","",38801.341556444342,1000]
[1,"D15","Ortaggi freschi in serra","040","Superfici seminabili","219","CIPOLLETTA  CIPOLLA D'INVERNO DA ORTO","000","",38801.341556444342,1000]
[1,"D15","Ortaggi freschi in serra","040","Superfici seminabili","249","CORIANDOLO ","000","",38801.341556444342,1000]
[1,"D15","Ortaggi freschi in serra","040","Superfici seminabili","250","CARVI - CUMINO DEI PRATI","000",null,38801.341556444342,1000]
[1,"D15","Ortaggi freschi in serra","040","Superfici seminabili","252","CUMINO - CUMINO ROMANO","000",null,38801.341556444342,1000]
[1,"D15","Ortaggi freschi in serra","040","Superfici seminabili","275","CAVOLO CINESE","000",null,38801.341556444342,1000]
[1,"D15","Ortaggi freschi in serra","040","Superfici seminabili","277","CAVOLO RAPA","000","",38801.341556444342,1000]
[1,"D15","Ortaggi freschi in serra","040","Superfici seminabili","279","MENTA DOLCE","000","",38801.341556444342,1000]
[1,"D15","Ortaggi freschi in serra","040","Superfici seminabili","280","MENTA PIPERITA ","000","",38801.341556444342,1000]
[1,"D15","Ortaggi freschi in serra","040","Superfici seminabili","281","MENTUCCIA ","000","",38801.341556444342,1000]
[1,"D15","Ortaggi freschi in serra","040","Superfici seminabili","285","PISELLI DA ORTO","000","",38801.341556444342,1000]
[1,"D15","Ortaggi freschi in serra","040","Superfici seminabili","306","BORRAGINE","000","",38801.341556444342,1000]
[1,"D15","Ortaggi freschi in serra","040","Superfici seminabili","392","ORTICA","000","",38801.341556444342,1000]
[1,"D15","Ortaggi freschi in serra","040","Superfici seminabili","412","ROVEJA PISELLO SELVATICO","000","",38801.341556444342,1000]
[1,"D15","Ortaggi freschi in serra","040","Superfici seminabili","414","SCORZONERA","000","",38801.341556444342,1000]
[1,"D15","Ortaggi freschi in serra","040","Superfici seminabili","415","TARASSACO ","000","",38801.341556444342,1000]
[1,"D15","Ortaggi freschi in serra","040","Superfici seminabili","429","RAFANO","000",null,38801.341556444342,1000]
[1,"D15","Ortaggi freschi in serra","040","Superfici seminabili","482","OKRA o OCRA o GOMBO  DA ORTO","000","",38801.341556444342,1000]
[1,"D15","Ortaggi freschi in serra","040","Superfici seminabili","484","CRESCIONE DEI GIARDINI O CRESCIONE INGLESE","000","",38801.341556444342,1000]
[1,"D15","Ortaggi freschi in serra","040","Superfici seminabili","548","CICORIA - RADICI DI CICORIA","000","",38801.341556444342,1000]
[1,"D15","Ortaggi freschi in serra","040","Superfici seminabili","652","PISELLI ALLO STATO FRESCO","000","",38801.341556444342,1000]
[1,"D15","Ortaggi freschi in serra","040","Superfici seminabili","655","CRAMBE","000","",38801.341556444342,1000]
[1,"D15","Ortaggi freschi in serra","040","Superfici seminabili","656","POMODORINO DA DESTINARE ALLA TRASFORMAZIONE","000","",38801.341556444342,1000]
[1,"D15","Ortaggi freschi in serra","040","Superfici seminabili","657","POMODORINO DA MENSA","000","",38801.341556444342,1000]
[1,"D15","Ortaggi freschi in serra","040","Superfici seminabili","658","POMODORO ALLUNGATO DA DESTINARE ALLA TRASFORMAZIONE","000","",38801.341556444342,1000]
[1,"D15","Ortaggi freschi in serra","040","Superfici seminabili","659","POMODORO TONDO DA DESTINARE ALLA TRASFORMAZIONE","000","",38801.341556444342,1000]
[1,"D15","Ortaggi freschi in serra","040","Superfici seminabili","664","POMODORO ALLUNGATO DA MENSA","000","",38801.341556444342,1000]
[1,"D15","Ortaggi freschi in serra","040","Superfici seminabili","665","POMODORO TONDO DA MENSA","000","",38801.341556444342,1000]
[1,"D15","Ortaggi freschi in serra","040","Superfici seminabili","680","SCALOGNI","000","",38801.341556444342,1000]
[1,"D15","Ortaggi freschi in serra","040","Superfici seminabili","901","AGLIO","000","",38801.341556444342,1000]
[1,"D15","Ortaggi freschi in serra","040","Superfici seminabili","903","BASILICO","000","",38801.341556444342,1000]
[1,"D15","Ortaggi freschi in serra","040","Superfici seminabili","904","BIETOLA (Compresa  la CHELTENHAM BEET, BARBABIETOLA ROSSA/BIETOLA DA COSTA)","000","",38801.341556444342,1000]
[1,"D15","Ortaggi freschi in serra","040","Superfici seminabili","910","CARDI","000","",38801.341556444342,1000]
[1,"D15","Ortaggi freschi in serra","040","Superfici seminabili","911","CAROTA","000","",38801.341556444342,1000]
[1,"D15","Ortaggi freschi in serra","040","Superfici seminabili","914","CAVOLO","000","",38801.341556444342,1000]
[1,"D15","Ortaggi freschi in serra","040","Superfici seminabili","917","CETRIOLO","000","",38801.341556444342,1000]
[1,"D15","Ortaggi freschi in serra","040","Superfici seminabili","919","CICORIA","000","",38801.341556444342,1000]
[1,"D15","Ortaggi freschi in serra","040","Superfici seminabili","921","CIPOLLA","000","",38801.341556444342,1000]
[1,"D15","Ortaggi freschi in serra","040","Superfici seminabili","924","COCOMERO","000","",38801.341556444342,1000]
[1,"D15","Ortaggi freschi in serra","040","Superfici seminabili","925","FAGIOLINO","000","",38801.341556444342,1000]
[1,"D15","Ortaggi freschi in serra","040","Superfici seminabili","926","FINOCCHIO","000","",38801.341556444342,1000]
[1,"D15","Ortaggi freschi in serra","040","Superfici seminabili","927","FRAGOLA","000","",38801.341556444342,1000]
[1,"D15","Ortaggi freschi in serra","040","Superfici seminabili","930","MELANZANA","000","",38801.341556444342,1000]
[1,"D15","Ortaggi freschi in serra","040","Superfici seminabili","931","MELONE","000","",38801.341556444342,1000]
[1,"D15","Ortaggi freschi in serra","040","Superfici seminabili","932","PEPERONE","000","",38801.341556444342,1000]
[1,"D15","Ortaggi freschi in serra","040","Superfici seminabili","933","PREZZEMOLO","000","",38801.341556444342,1000]
[1,"D15","Ortaggi freschi in serra","040","Superfici seminabili","935","RADICCHIO","000","",38801.341556444342,1000]
[1,"D15","Ortaggi freschi in serra","040","Superfici seminabili","936","RAVANELLO","000","",38801.341556444342,1000]
[1,"D15","Ortaggi freschi in serra","040","Superfici seminabili","938","SEDANO","000","",38801.341556444342,1000]
[1,"D15","Ortaggi freschi in serra","040","Superfici seminabili","939","SPINACIO","000","",38801.341556444342,1000]
[1,"D15","Ortaggi freschi in serra","040","Superfici seminabili","940","ZUCCA","000","",38801.341556444342,1000]
[1,"D15","Ortaggi freschi in serra","040","Superfici seminabili","941","ZUCCHINO","000","",38801.341556444342,1000]
[1,"D15","Ortaggi freschi in serra","040","Superfici seminabili","942","CIPOLLINA","000","",38801.341556444342,1000]
[1,"D15","Ortaggi freschi in serra","040","Superfici seminabili","956","SEDANO RAPA","000","",38801.341556444342,1000]
[1,"D15","Ortaggi freschi in serra","040","Superfici seminabili","963","ORIGANO","000","",38801.341556444342,1000]
[1,"D15","Ortaggi freschi in serra","040","Superfici seminabili","964","MAGGIORANA","000","",38801.341556444342,1000]
[1,"D15","Ortaggi freschi in serra","040","Superfici seminabili","970","BROCCOLO","000","",38801.341556444342,1000]
[1,"D15","Ortaggi freschi in serra","040","Superfici seminabili","972","BRASSICA CARINATA  (CAVOLO ABISSINO)","000","",38801.341556444342,1000]
[1,"D15","Ortaggi freschi in serra","060","Colture pluriennali","902","ASPARAGO","000","",38801.341556444342,1000]
[1,"D15","Ortaggi freschi in serra","060","Colture pluriennali","909","CARCIOFO","000",null,38801.341556444342,1000]
[1,"D16","Fiori e piante ornamentali in piena campo","040","Superfici seminabili","050","ANEMONE","000","",44161,1000]
[1,"D16","Fiori e piante ornamentali in piena campo","040","Superfici seminabili","052","BOCCA DI LEONE","000","",44161,1000]
[1,"D16","Fiori e piante ornamentali in piena campo","040","Superfici seminabili","080","CRISANTEMO","000","",44161,1000]
[1,"D16","Fiori e piante ornamentali in piena campo","040","Superfici seminabili","081","GAROFANO","000","",44161,1000]
[1,"D16","Fiori e piante ornamentali in piena campo","040","Superfici seminabili","099","MARGHERITA","000","",44161,1000]
[1,"D16","Fiori e piante ornamentali in piena campo","040","Superfici seminabili","151","PEPERONCINO PEPERETTA","000","",44161,1000]
[1,"D16","Fiori e piante ornamentali in piena campo","040","Superfici seminabili","153","RANUNCOLO","000","",44161,1000]
[1,"D16","Fiori e piante ornamentali in piena campo","040","Superfici seminabili","155","STATICE","000","",44161,1000]
[1,"D16","Fiori e piante ornamentali in piena campo","040","Superfici seminabili","209","PRATO IN ROTOLO (TAPPETO ERBOSO)","000","",44161,1000]
[1,"D16","Fiori e piante ornamentali in piena campo","040","Superfici seminabili","286","ALTEA ","000","",44161,1000]
[1,"D16","Fiori e piante ornamentali in piena campo","040","Superfici seminabili","328","ELICRISO ","000","",44161,1000]
[1,"D16","Fiori e piante ornamentali in piena campo","040","Superfici seminabili","332","FACELIA","000","",44161,1000]
[1,"D16","Fiori e piante ornamentali in piena campo","040","Superfici seminabili","335","FIORDALISO","000",null,44161,1000]
[1,"D16","Fiori e piante ornamentali in piena campo","040","Superfici seminabili","496","AMARANTO","000",null,44161,1000]
[1,"D16","Fiori e piante ornamentali in piena campo","040","Superfici seminabili","498","NASTURZIO","000",null,44161,1000]
[1,"D16","Fiori e piante ornamentali in piena campo","040","Superfici seminabili","508","PORTULACA o PORCELLANA COMUNE  ","000","",44161,1000]
[1,"D16","Fiori e piante ornamentali in piena campo","040","Superfici seminabili","971","ALCHECHENGI","000","",44161,1000]
[1,"D16","Fiori e piante ornamentali in piena campo","060","Colture pluriennali","023","ORTENSIA","000","",44161,1000]
[1,"D16","Fiori e piante ornamentali in piena campo","060","Colture pluriennali","035","ROSA","000","",44161,1000]
[1,"D16","Fiori e piante ornamentali in piena campo","060","Colture pluriennali","411","ROSA CANINA","000","",44161,1000]
[1,"D16","Fiori e piante ornamentali in piena campo","060","Colture pluriennali","427","PASSIFLORA PLURIENNALE","000","",44161,1000]
[1,"D16","Fiori e piante ornamentali in piena campo","440","Altre colture permanenti","011","STEVIA REBAUDIANA","000","",44161,1000]
[1,"D16","Fiori e piante ornamentali in piena campo","440","Altre colture permanenti","034","PIANTE GRASSE","000","",44161,1000]
[1,"D16","Fiori e piante ornamentali in piena campo","440","Altre colture permanenti","039","GINESTRA","002","FRONDE FIORITE ",44161,1000]
[1,"D16","Fiori e piante ornamentali in piena campo","440","Altre colture permanenti","040","MIMOSA","000","",44161,1000]
[1,"D16","Fiori e piante ornamentali in piena campo","440","Altre colture permanenti","042","PITTOSPORO","000","",44161,1000]
[1,"D16","Fiori e piante ornamentali in piena campo","440","Altre colture permanenti","043","RUSCUS","000","",44161,1000]
[1,"D16","Fiori e piante ornamentali in piena campo","440","Altre colture permanenti","048","VIBURNO","000","",44161,1000]
[1,"D16","Fiori e piante ornamentali in piena campo","440","Altre colture permanenti","315","SAMBUCO","000","",44161,1000]
[1,"D16","Fiori e piante ornamentali in piena campo","440","Altre colture permanenti","319","RUSCO  PUNGITOPO","000","",44161,1000]
[1,"D16","Fiori e piante ornamentali in piena campo","440","Altre colture permanenti","464","GLICINE","000","",44161,1000]
[1,"D16","Fiori e piante ornamentali in piena campo","440","Altre colture permanenti","465","KARCADE'","000","",44161,1000]
[1,"D16","Fiori e piante ornamentali in piena campo","440","Altre colture permanenti","646","PIANTE ORNAMENTALI","000","",44161,1000]
[1,"D16","Fiori e piante ornamentali in piena campo","440","Altre colture permanenti","648","PIANTE ORNAMENTALI DA APPARTAMENTO","000","",44161,1000]
[1,"D16","Fiori e piante ornamentali in piena campo","440","Altre colture permanenti","668","EUCALIPTO","001","FRONDE VERDI",44161,1000]
[1,"D16","Fiori e piante ornamentali in piena campo","440","Altre colture permanenti","902","ASPARAGO","001","FRONDE VERDI",44161,1000]
[1,"D17","Fiori e piante ornamentali in serra","040","Superfici seminabili","092","LILIUM","000","",143748,1000]
[1,"D17","Fiori e piante ornamentali in serra","040","Superfici seminabili","099","MARGHERITA","000","",143748,2000]
[1,"D17","Fiori e piante ornamentali in serra","040","Superfici seminabili","151","PEPERONCINO PEPERETTA","000","",143748,2000]
[1,"D17","Fiori e piante ornamentali in serra","040","Superfici seminabili","153","RANUNCOLO","000","",143748,2000]
[1,"D17","Fiori e piante ornamentali in serra","040","Superfici seminabili","155","STATICE","000","",143748,2000]
[1,"D17","Fiori e piante ornamentali in serra","040","Superfici seminabili","209","PRATO IN ROTOLO (TAPPETO ERBOSO)","000","",143748,2000]
[1,"D17","Fiori e piante ornamentali in serra","040","Superfici seminabili","456","ALOE","000",null,143748,1000]
[1,"D17","Fiori e piante ornamentali in serra","040","Superfici seminabili","498","NASTURZIO","000",null,143748,2000]
[1,"D17","Fiori e piante ornamentali in serra","040","Superfici seminabili","508","PORTULACA o PORCELLANA COMUNE  ","000","",143748,2000]
[1,"D17","Fiori e piante ornamentali in serra","060","Colture pluriennali","007","ARALIA","000","",143748,2000]
[1,"D17","Fiori e piante ornamentali in serra","060","Colture pluriennali","008","ASPIDISTRA","000","",143748,2000]
[1,"D17","Fiori e piante ornamentali in serra","060","Colture pluriennali","013","CALLA","000","",143748,2000]
[1,"D17","Fiori e piante ornamentali in serra","060","Colture pluriennali","017","GERBERA","000","",143748,2000]
[1,"D17","Fiori e piante ornamentali in serra","060","Colture pluriennali","018","ORCHIDEA","000","",143748,2000]
[1,"D17","Fiori e piante ornamentali in serra","060","Colture pluriennali","023","ORTENSIA","000","",143748,2000]
[1,"D17","Fiori e piante ornamentali in serra","060","Colture pluriennali","031","PEONIA","000","",143748,2000]
[1,"D17","Fiori e piante ornamentali in serra","060","Colture pluriennali","033","PHILODENDRO","000","",143748,2000]
[1,"D17","Fiori e piante ornamentali in serra","060","Colture pluriennali","035","ROSA","000","",143748,2000]
[1,"D17","Fiori e piante ornamentali in serra","060","Colture pluriennali","036","STRELITZIA","000","",143748,2000]
[1,"D17","Fiori e piante ornamentali in serra","060","Colture pluriennali","037","GLADIOLO","000","",143748,2000]
[1,"D17","Fiori e piante ornamentali in serra","060","Colture pluriennali","120","POINSETTIA (STELLA DI NATALE)","000","",143748,2000]
[1,"D17","Fiori e piante ornamentali in serra","060","Colture pluriennali","160","AGAPANTO","000","",143748,2000]
[1,"D17","Fiori e piante ornamentali in serra","060","Colture pluriennali","164","ALSTROEMERIA","000","",143748,2000]
[1,"D17","Fiori e piante ornamentali in serra","060","Colture pluriennali","338","GIAGGIOLO (IRIS) PALLIDA","000","",143748,2000]
[1,"D17","Fiori e piante ornamentali in serra","060","Colture pluriennali","340","GIAGGIOLO O GIGLIO  BIANCO  IRIS FIORENTINA","000","",143748,2000]
[1,"D17","Fiori e piante ornamentali in serra","060","Colture pluriennali","411","ROSA CANINA","000","",143748,2000]
[1,"D17","Fiori e piante ornamentali in serra","060","Colture pluriennali","427","PASSIFLORA PLURIENNALE","000","",143748,2000]
[1,"D17","Fiori e piante ornamentali in serra","440","Altre colture permanenti","011","STEVIA REBAUDIANA","000","",143748,2000]
[1,"D17","Fiori e piante ornamentali in serra","440","Altre colture permanenti","034","PIANTE GRASSE","000","",143748,2000]
[1,"D17","Fiori e piante ornamentali in serra","440","Altre colture permanenti","040","MIMOSA","000","",143748,2000]
[1,"D17","Fiori e piante ornamentali in serra","440","Altre colture permanenti","042","PITTOSPORO","000","",143748,2000]
[1,"D17","Fiori e piante ornamentali in serra","440","Altre colture permanenti","043","RUSCUS","000","",143748,2000]
[1,"D17","Fiori e piante ornamentali in serra","440","Altre colture permanenti","048","VIBURNO","000","",143748,2000]
[1,"D17","Fiori e piante ornamentali in serra","440","Altre colture permanenti","315","SAMBUCO","000","",143748,2000]
[1,"D17","Fiori e piante ornamentali in serra","440","Altre colture permanenti","319","RUSCO  PUNGITOPO","000","",143748,2000]
[1,"D17","Fiori e piante ornamentali in serra","440","Altre colture permanenti","465","KARCADE'","000","",143748,2000]
[1,"D17","Fiori e piante ornamentali in serra","440","Altre colture permanenti","646","PIANTE ORNAMENTALI","000","",143748,2000]
[1,"D17","Fiori e piante ornamentali in serra","440","Altre colture permanenti","648","PIANTE ORNAMENTALI DA APPARTAMENTO","000","",143748,2000]
[1,"D17","Fiori e piante ornamentali in serra","440","Altre colture permanenti","668","EUCALIPTO","001","FRONDE VERDI",143748,2000]
[1,"D17","Fiori e piante ornamentali in serra","440","Altre colture permanenti","902","ASPARAGO","001","FRONDE VERDI",143748,2000]
[1,"D18A","Prati avvicendati (medica, sulla, trifoglio, lupinella, ecc.)  ","040","Superfici seminabili","046","LOIETTO LOGLIO DA FORAGGIO","054","PRATO PASCOLO IN PUREZZA AVVICENDATO  - NON PERMANENTE",504.21042959756466,18]
[1,"D18A","Prati avvicendati (medica, sulla, trifoglio, lupinella, ecc.)  ","040","Superfici seminabili","051","LUPOLINA - DA FORAGGIO","054","PRATO PASCOLO IN PUREZZA AVVICENDATO  - NON PERMANENTE",504.21042959756466,18]
[1,"D18A","Prati avvicendati (medica, sulla, trifoglio, lupinella, ecc.)  ","040","Superfici seminabili","079","VECCE - DA FORAGGIO","054","PRATO PASCOLO IN PUREZZA AVVICENDATO  - NON PERMANENTE",504.21042959756466,18]
[1,"D18A","Prati avvicendati (medica, sulla, trifoglio, lupinella, ecc.)  ","040","Superfici seminabili","152","TRIFOGLIO - DA FORAGGIO","054","PRATO PASCOLO IN PUREZZA AVVICENDATO  - NON PERMANENTE",504.21042959756466,18]
[1,"D18A","Prati avvicendati (medica, sulla, trifoglio, lupinella, ecc.)  ","040","Superfici seminabili","215","MOCO","000","",504.21042959756466,18]
[1,"D18A","Prati avvicendati (medica, sulla, trifoglio, lupinella, ecc.)  ","040","Superfici seminabili","271","VECCIA SATIVA","054","PRATO PASCOLO IN PUREZZA AVVICENDATO  - NON PERMANENTE",504.21042959756466,18]
[1,"D18A","Prati avvicendati (medica, sulla, trifoglio, lupinella, ecc.)  ","040","Superfici seminabili","272","VECCIA VILLOSA","054","PRATO PASCOLO IN PUREZZA AVVICENDATO  - NON PERMANENTE",504.21042959756466,18]
[1,"D18A","Prati avvicendati (medica, sulla, trifoglio, lupinella, ecc.)  ","040","Superfici seminabili","336","PRATO POLIFITA","051","AVVICENDATO - NON PERMANENTE",504.21042959756466,18]
[1,"D18A","Prati avvicendati (medica, sulla, trifoglio, lupinella, ecc.)  ","040","Superfici seminabili","562","ERBA MEDICA - DA FORAGGIO","054","PRATO PASCOLO IN PUREZZA AVVICENDATO  - NON PERMANENTE",504.21042959756466,18]
[1,"D18A","Prati avvicendati (medica, sulla, trifoglio, lupinella, ecc.)  ","040","Superfici seminabili","581","GINESTRINO","054","PRATO PASCOLO IN PUREZZA AVVICENDATO  - NON PERMANENTE",504.21042959756466,18]
[1,"D18A","Prati avvicendati (medica, sulla, trifoglio, lupinella, ecc.)  ","040","Superfici seminabili","600","PRATO PASCOLO DI LEGUMINOSE","051","AVVICENDATO - NON PERMANENTE",504.21042959756466,18]
[1,"D18A","Prati avvicendati (medica, sulla, trifoglio, lupinella, ecc.)  ","040","Superfici seminabili","612","LUPINELLA - DA FORAGGIO","054","PRATO PASCOLO IN PUREZZA AVVICENDATO  - NON PERMANENTE",504.21042959756466,18]
[1,"D18A","Prati avvicendati (medica, sulla, trifoglio, lupinella, ecc.)  ","040","Superfici seminabili","700","PRATO PASCOLO MISTO","051","AVVICENDATO - NON PERMANENTE",504.21042959756466,18]
[1,"D18A","Prati avvicendati (medica, sulla, trifoglio, lupinella, ecc.)  ","040","Superfici seminabili","840","SULLA - DA FORAGGIO","054","PRATO PASCOLO IN PUREZZA AVVICENDATO  - NON PERMANENTE",504.21042959756466,18]
[1,"D18A","Prati avvicendati (medica, sulla, trifoglio, lupinella, ecc.)  ","040","Superfici seminabili","862","FIENO GRECO","054","PRATO PASCOLO IN PUREZZA AVVICENDATO  - NON PERMANENTE",504.21042959756466,18]
[1,"D18A","Prati avvicendati (medica, sulla, trifoglio, lupinella, ecc.)  ","040","Superfici seminabili","898","PRATO PASCOLO DI GRAMINACEE","051","AVVICENDATO - NON PERMANENTE",504.21042959756466,18]
[1,"D18B","Erbai di altri cereali da foraggio diversi da mais da foraggio","040","Superfici seminabili","045","SPELTA - DA FORAGGIO","053","ERBAIO IN PUREZZA, ANNUALE - NON PERMANENTE",719.44396367937463,18]
[1,"D18B","Erbai di altri cereali da foraggio diversi da mais da foraggio","040","Superfici seminabili","046","LOIETTO LOGLIO DA FORAGGIO","053","ERBAIO IN PUREZZA, ANNUALE - NON PERMANENTE",719.44396367937463,18]
[1,"D18B","Erbai di altri cereali da foraggio diversi da mais da foraggio","040","Superfici seminabili","053","PANICO - DA FORAGGIO","053","ERBAIO IN PUREZZA, ANNUALE - NON PERMANENTE",719.44396367937463,18]
[1,"D18B","Erbai di altri cereali da foraggio diversi da mais da foraggio","040","Superfici seminabili","093","TRITICALE - DA FORAGGIO","053","ERBAIO IN PUREZZA, ANNUALE - NON PERMANENTE",719.44396367937463,18]
[1,"D18B","Erbai di altri cereali da foraggio diversi da mais da foraggio","040","Superfici seminabili","244","TRITORDEUM - INSILATO","000",null,719.44396367937463,16]
[1,"D18B","Erbai di altri cereali da foraggio diversi da mais da foraggio","040","Superfici seminabili","426","TRITORDEUM - DA FORAGGIO","000",null,719.44396367937463,18]
[1,"D18B","Erbai di altri cereali da foraggio diversi da mais da foraggio","040","Superfici seminabili",537,"AVENA - DA FORAGGIO","053","ERBAIO IN PUREZZA, ANNUALE - NON PERMANENTE",719.44396367937463,18]
[1,"D18B","Erbai di altri cereali da foraggio diversi da mais da foraggio","040","Superfici seminabili","578","FRUMENTO SEGALATO - DA FORAGGIO","053","ERBAIO IN PUREZZA, ANNUALE - NON PERMANENTE",719.44396367937463,18]
[1,"D18B","Erbai di altri cereali da foraggio diversi da mais da foraggio","040","Superfici seminabili","588","GRANO (FRUMENTO) TENERO - DA FORAGGIO","053","ERBAIO IN PUREZZA, ANNUALE - NON PERMANENTE",719.44396367937463,18]
[1,"D18B","Erbai di altri cereali da foraggio diversi da mais da foraggio","040","Superfici seminabili","594","GRANO (FRUMENTO) DURO - DA FORAGGIO","053","ERBAIO IN PUREZZA, ANNUALE - NON PERMANENTE",719.44396367937463,18]
[1,"D18B","Erbai di altri cereali da foraggio diversi da mais da foraggio","040","Superfici seminabili","599","GRANO SARACENO - DA FORAGGIO","053","ERBAIO IN PUREZZA, ANNUALE - NON PERMANENTE",719.44396367937463,18]
[1,"D18B","Erbai di altri cereali da foraggio diversi da mais da foraggio","040","Superfici seminabili","625","MIGLIO - DA FORAGGIO","053","ERBAIO IN PUREZZA, ANNUALE - NON PERMANENTE",719.44396367937463,18]
[1,"D18B","Erbai di altri cereali da foraggio diversi da mais da foraggio","040","Superfici seminabili","678","SCAGLIOLA - DA FORAGGIO","053","ERBAIO IN PUREZZA, ANNUALE - NON PERMANENTE",719.44396367937463,18]
[1,"D18B","Erbai di altri cereali da foraggio diversi da mais da foraggio","040","Superfici seminabili","684","SEGALA - DA FORAGGIO","053","ERBAIO IN PUREZZA, ANNUALE - NON PERMANENTE",719.44396367937463,18]
[1,"D18B","Erbai di altri cereali da foraggio diversi da mais da foraggio","040","Superfici seminabili","693","SORGO DA FORAGGIO","053","ERBAIO IN PUREZZA, ANNUALE - NON PERMANENTE",719.44396367937463,18]
[1,"D18B","Erbai di altri cereali da foraggio diversi da mais da foraggio","040","Superfici seminabili","871","ORZO - DA FORAGGIO","053","ERBAIO IN PUREZZA, ANNUALE - NON PERMANENTE",719.44396367937463,18]
[1,"D18B","Erbai di altri cereali da foraggio diversi da mais da foraggio","040","Superfici seminabili","897","ERBAIO DI GRAMINACEE ","050","ANNUALE - NON PERMANENTE",719.44396367937463,18]
[1,"D18C","Erbaio di mais da foraggio","040","Superfici seminabili",604,"GRANTURCO (MAIS) - DA FORAGGIO","053","ERBAIO IN PUREZZA, ANNUALE - NON PERMANENTE",945.46091817783804,18]
[1,"D18D","Erbaio di leguminose da foraggio","040","Superfici seminabili","030","CICERCHIA - DA FORAGGIO","053","ERBAIO IN PUREZZA, ANNUALE - NON PERMANENTE",516.46769931841231,18]
[1,"D18D","Erbaio di leguminose da foraggio","040","Superfici seminabili","078","SERRADELLA","053","ERBAIO IN PUREZZA, ANNUALE - NON PERMANENTE",516.46769931841231,18]
[1,"D18D","Erbaio di leguminose da foraggio","040","Superfici seminabili","079","VECCE - DA FORAGGIO","053","ERBAIO IN PUREZZA, ANNUALE - NON PERMANENTE",516.46769931841231,18]
[1,"D18D","Erbaio di leguminose da foraggio","040","Superfici seminabili","088","VIGNA CINESE","053","ERBAIO IN PUREZZA, ANNUALE - NON PERMANENTE",516.46769931841231,18]
[1,"D18D","Erbaio di leguminose da foraggio","040","Superfici seminabili","150","TARTUFO DI PRATO","000","",516.46769931841231,18]
[1,"D18D","Erbaio di leguminose da foraggio","040","Superfici seminabili","152","TRIFOGLIO - DA FORAGGIO","053","ERBAIO IN PUREZZA, ANNUALE - NON PERMANENTE",516.46769931841231,18]
[1,"D18D","Erbaio di leguminose da foraggio","040","Superfici seminabili","271","VECCIA SATIVA","053","ERBAIO IN PUREZZA, ANNUALE - NON PERMANENTE",516.46769931841231,18]
[1,"D18D","Erbaio di leguminose da foraggio","040","Superfici seminabili","272","VECCIA VILLOSA","053","ERBAIO IN PUREZZA, ANNUALE - NON PERMANENTE",516.46769931841231,18]
[1,"D18D","Erbaio di leguminose da foraggio","040","Superfici seminabili","575","FAVE E FAVETTE - DA FORAGGIO","053","ERBAIO IN PUREZZA, ANNUALE - NON PERMANENTE",516.46769931841231,18]
[1,"D18D","Erbaio di leguminose da foraggio","040","Superfici seminabili","581","GINESTRINO","053","ERBAIO IN PUREZZA, ANNUALE - NON PERMANENTE",516.46769931841231,18]
[1,"D18D","Erbaio di leguminose da foraggio","040","Superfici seminabili","609","LINO - DA FORAGGIO","000",null,516.46769931841231,18]
[1,"D18D","Erbaio di leguminose da foraggio","040","Superfici seminabili","615","LUPINO - DA FORAGGIO","053","ERBAIO IN PUREZZA, ANNUALE - NON PERMANENTE",516.46769931841231,18]
[1,"D18D","Erbaio di leguminose da foraggio","040","Superfici seminabili","651","PISELLI - DA FORAGGIO","053","ERBAIO IN PUREZZA, ANNUALE - NON PERMANENTE",516.46769931841231,18]
[1,"D18D","Erbaio di leguminose da foraggio","040","Superfici seminabili","690","SOIA - DA FORAGGIO","053","ERBAIO IN PUREZZA, ANNUALE - NON PERMANENTE",516.46769931841231,18]
[1,"D18D","Erbaio di leguminose da foraggio","040","Superfici seminabili","699","ERBAIO MISTO ","050","ANNUALE - NON PERMANENTE",516.46769931841231,18]
[1,"D18D","Erbaio di leguminose da foraggio","040","Superfici seminabili","800","ERBAIO DI LEGUMINOSE ","050","ANNUALE - NON PERMANENTE",516.46769931841231,18]
[1,"D18D","Erbaio di leguminose da foraggio","040","Superfici seminabili","840","SULLA - DA FORAGGIO","053","ERBAIO IN PUREZZA, ANNUALE - NON PERMANENTE",516.46769931841231,18]
[1,"D18D","Erbaio di leguminose da foraggio","040","Superfici seminabili","862","FIENO GRECO","053","ERBAIO IN PUREZZA, ANNUALE - NON PERMANENTE",516.46769931841231,18]
[1,"D19","Sementi e piantine per seminativi (sementi da prato, ecc.)","040","Superfici seminabili","005","GIRASOLE - SEMI","000","",6000,15]
[1,"D19","Sementi e piantine per seminativi (sementi da prato, ecc.)","040","Superfici seminabili","113","AGLIO PER LA PRODUZIONE DI SEME","000","",6000,210]
[1,"D19","Sementi e piantine per seminativi (sementi da prato, ecc.)","040","Superfici seminabili","116","BASILICO PER LA PRODUZIONE DI SEME","000","",6000,120]
[1,"D19","Sementi e piantine per seminativi (sementi da prato, ecc.)","040","Superfici seminabili","119","CAVOLFIORE PER LA PRODUZIONE DI SEME","000","",6000,120]
[1,"D19","Sementi e piantine per seminativi (sementi da prato, ecc.)","040","Superfici seminabili","121","FAGIOLINO PER LA PRODUZIONE DI SEME","000","",6000,120]
[1,"D19","Sementi e piantine per seminativi (sementi da prato, ecc.)","040","Superfici seminabili","123","FAGIOLO PER LA PRODUZIONE DI SEME","000","",6000,120]
[1,"D19","Sementi e piantine per seminativi (sementi da prato, ecc.)","040","Superfici seminabili","126","FINOCCHIO PER LA PRODUZIONE DI SEME","000","",6000,120]
[1,"D19","Sementi e piantine per seminativi (sementi da prato, ecc.)","040","Superfici seminabili","128","LATTUGA LATTUGHINO PER LA PRODUZIONE DI SEME","000","",6000,120]
[1,"D19","Sementi e piantine per seminativi (sementi da prato, ecc.)","040","Superfici seminabili","129","MELANZANA PER LA PRODUZIONE DI SEME","000","",6000,120]
[1,"D19","Sementi e piantine per seminativi (sementi da prato, ecc.)","040","Superfici seminabili","130","MELONE PER LA PRODUZIONE DI SEME","000","",6000,150]
[1,"D19","Sementi e piantine per seminativi (sementi da prato, ecc.)","040","Superfici seminabili","133","PEPERONE PER LA PRODUZIONE DI SEME","000","",6000,120]
[1,"D19","Sementi e piantine per seminativi (sementi da prato, ecc.)","040","Superfici seminabili","134","POMODORO PER LA PRODUZIONE DI SEME","000","",6000,120]
[1,"D19","Sementi e piantine per seminativi (sementi da prato, ecc.)","040","Superfici seminabili","136","PORRO PER LA PRODUZIONE DI SEME","000","",6000,120]
[1,"D19","Sementi e piantine per seminativi (sementi da prato, ecc.)","040","Superfici seminabili","137","RADICCHIO PER LA PRODUZIONE DI SEME","000","",6000,120]
[1,"D19","Sementi e piantine per seminativi (sementi da prato, ecc.)","040","Superfici seminabili","141","RAVANELLO PER LA PRODUZIONE DI SEME","000","",6000,120]
[1,"D19","Sementi e piantine per seminativi (sementi da prato, ecc.)","040","Superfici seminabili","142","SCALOGNO PER LA PRODUZIONE DI SEME","000","",6000,120]
[1,"D19","Sementi e piantine per seminativi (sementi da prato, ecc.)","040","Superfici seminabili","145","SEDANO PER LA PRODUZIONE DI SEME","000","",6000,120]
[1,"D19","Sementi e piantine per seminativi (sementi da prato, ecc.)","040","Superfici seminabili","146","SPINACIO PER LA PRODUZIONE DI SEME","000","",6000,120]
[1,"D19","Sementi e piantine per seminativi (sementi da prato, ecc.)","040","Superfici seminabili","147","ZUCCA PER LA PRODUZIONE DI SEME","000","",6000,120]
[1,"D19","Sementi e piantine per seminativi (sementi da prato, ecc.)","040","Superfici seminabili","148","ZUCCHINO PER LA PRODUZIONE DI SEME","000","",6000,120]
[1,"D19","Sementi e piantine per seminativi (sementi da prato, ecc.)","040","Superfici seminabili","222","ANETO PER LA PRODUZIONE DI SEME ","000","",6000,12]
[1,"D19","Sementi e piantine per seminativi (sementi da prato, ecc.)","040","Superfici seminabili","223","AVENA PER LA PRODUZIONE DI SEME","000","",6000,12]
[1,"D19","Sementi e piantine per seminativi (sementi da prato, ecc.)","040","Superfici seminabili","225","COLZA PER LA PRODUZIONE DI SEME","000",null,6000,15]
[1,"D19","Sementi e piantine per seminativi (sementi da prato, ecc.)","040","Superfici seminabili","226","CORIANDOLO PER LA PRODUZIONE DI SEME ","000","",6000,120]
[1,"D19","Sementi e piantine per seminativi (sementi da prato, ecc.)","040","Superfici seminabili","229","GRANO (FRUMENTO) DURO PER LA PRODUZIONE DI SEME  ","000","",6000,12]
[1,"D19","Sementi e piantine per seminativi (sementi da prato, ecc.)","040","Superfici seminabili","230","GRANO (FRUMENTO) TENERO PER LA PRODUZIONE DI SEME ","000","",6000,12]
[1,"D19","Sementi e piantine per seminativi (sementi da prato, ecc.)","040","Superfici seminabili","231","GRANTURCO (MAIS) PER LA PRODUZIONE DI SEME ","000","",6000,20]
[1,"D19","Sementi e piantine per seminativi (sementi da prato, ecc.)","040","Superfici seminabili","232","INDIVIA O SCAROLA  PER LA PRODUZIONE DI SEME","000","",6000,120]
[1,"D19","Sementi e piantine per seminativi (sementi da prato, ecc.)","040","Superfici seminabili","233","ORZO PER LA PRODUZIONE DI SEME ","000","",6000,12]
[1,"D19","Sementi e piantine per seminativi (sementi da prato, ecc.)","040","Superfici seminabili","234","RUCOLA PER LA PRODUZIONE DI SEME ","000","",6000,120]
[1,"D19","Sementi e piantine per seminativi (sementi da prato, ecc.)","040","Superfici seminabili","235","SEGALA PER LA PRODUZIONE DI SEME ","000","",6000,120]
[1,"D19","Sementi e piantine per seminativi (sementi da prato, ecc.)","040","Superfici seminabili","236","SORGO PER LA PRODUZIONE DI SEME ","000","",6000,15]
[1,"D19","Sementi e piantine per seminativi (sementi da prato, ecc.)","040","Superfici seminabili","237","TRITICALE PER LA PRODUZIONE DI SEME ","000","",6000,18]
[1,"D19","Sementi e piantine per seminativi (sementi da prato, ecc.)","040","Superfici seminabili","238","FARRO PER LA PRODUZIONE DI SEME","000",null,6000,12]
[1,"D19","Sementi e piantine per seminativi (sementi da prato, ecc.)","040","Superfici seminabili","239","BROCCOLETTO DI RAPA DA SEME","000","",6000,120]
[1,"D19","Sementi e piantine per seminativi (sementi da prato, ecc.)","040","Superfici seminabili","247","DOLCETTA PER LA PRODUZIONE DI SEME (GALLINELLA, SONCINO, VALERIANELLA)","000","",6000,120]
[1,"D19","Sementi e piantine per seminativi (sementi da prato, ecc.)","040","Superfici seminabili","248","FAGIOLO D'EGITTO PER LA PRODUZIONE DI SEME ","000","",6000,120]
[1,"D19","Sementi e piantine per seminativi (sementi da prato, ecc.)","040","Superfici seminabili","251","CARVI - CUMINO DEI PRATI PER LA PRODUZIONE DI SEME","000",null,6000,15]
[1,"D19","Sementi e piantine per seminativi (sementi da prato, ecc.)","040","Superfici seminabili","253","CUMINO - CUMINO ROMANO PER LA PRODUZIONE DI SEME","000",null,6000,120]
[1,"D19","Sementi e piantine per seminativi (sementi da prato, ecc.)","040","Superfici seminabili","254","FESTUCA INDURITA PER LA PRODUZIONE DI SEME","000",null,6000,16]
[1,"D19","Sementi e piantine per seminativi (sementi da prato, ecc.)","040","Superfici seminabili","255","FESTUCA  A FOGLIE CAPILLARI PER LA PRODUZIONE DI SEME","000",null,6000,16]
[1,"D19","Sementi e piantine per seminativi (sementi da prato, ecc.)","040","Superfici seminabili","256","FLEOLO BULBOSO PER LA PRODUZIONE DI SEME","000","",6000,16]
[1,"D19","Sementi e piantine per seminativi (sementi da prato, ecc.)","040","Superfici seminabili","257","FAGIOLO DALL'OCCHIO PER LA PRODUZIONE DI SEME","000","",6000,120]
[1,"D19","Sementi e piantine per seminativi (sementi da prato, ecc.)","040","Superfici seminabili","258","FAGIOLO DI LIMA PER LA PRODUZIONE DI SEME","000","",6000,120]
[1,"D19","Sementi e piantine per seminativi (sementi da prato, ecc.)","040","Superfici seminabili","260","FAGIOLO DI SPAGNA PER LA PRODUZIONE DI SEME","000",null,6000,120]
[1,"D19","Sementi e piantine per seminativi (sementi da prato, ecc.)","040","Superfici seminabili","261","AVENA  ALTISSIMA PER LA PRODUZIONE DI SEME","000",null,6000,12]
[1,"D19","Sementi e piantine per seminativi (sementi da prato, ecc.)","040","Superfici seminabili","266","CARTAMO PER LA PRODUZIONE DI SEME","000","",6000,15]
[1,"D19","Sementi e piantine per seminativi (sementi da prato, ecc.)","040","Superfici seminabili","267","GRANTURCO (MAIS) DOLCE PER LA PRODUZIONE DI SEME","000","",6000,20]
[1,"D19","Sementi e piantine per seminativi (sementi da prato, ecc.)","040","Superfici seminabili","269","GRANTURCO (MAIS)DA POPCORN PER LA PRODUZIONE DI SEME","000","",6000,20]
[1,"D19","Sementi e piantine per seminativi (sementi da prato, ecc.)","040","Superfici seminabili","273","CARDI PER LA PRODUZIONE DI SEME","000","",6000,120]
[1,"D19","Sementi e piantine per seminativi (sementi da prato, ecc.)","040","Superfici seminabili","274","COCOMERO PER LA PRODUZIONE DI SEME","000","",6000,150]
[1,"D19","Sementi e piantine per seminativi (sementi da prato, ecc.)","040","Superfici seminabili","276","CAVOLO CINESE PER LA PRODUZIONE DI SEME","000",null,6000,120]
[1,"D19","Sementi e piantine per seminativi (sementi da prato, ecc.)","040","Superfici seminabili","278","CAVOLO RAPA DA SEME","000","",6000,120]
[1,"D19","Sementi e piantine per seminativi (sementi da prato, ecc.)","040","Superfici seminabili","282","CAVOLO BROCCOLO PER LA PRODUZIONE DI SEME","000","",6000,120]
[1,"D19","Sementi e piantine per seminativi (sementi da prato, ecc.)","040","Superfici seminabili","284","BRASSICA CARINATA  (CAVOLO ABISSINO) DA SEME","000","",6000,110]
[1,"D19","Sementi e piantine per seminativi (sementi da prato, ecc.)","040","Superfici seminabili","350","AGROSTIDE PER LA PRODUZIONE DI SEME (SP. AGROSTIS CANINA L.)","000","",6000,12]
[1,"D19","Sementi e piantine per seminativi (sementi da prato, ecc.)","040","Superfici seminabili","351","AGROSTIDE PER LA PRODUZIONE DI SEME (SP. AGROSTIS GIGANTEA ROTH.)","000","",6000,12]
[1,"D19","Sementi e piantine per seminativi (sementi da prato, ecc.)","040","Superfici seminabili","352","AGROSTIDE PER LA PRODUZIONE DI SEME (SP. AGROSTIS STOLONIFERA L.)","000","",6000,12]
[1,"D19","Sementi e piantine per seminativi (sementi da prato, ecc.)","040","Superfici seminabili","353","AGROSTIDE PER LA PRODUZIONE DI SEME (SP. AGROSTIS CAPILLARIS L.)","000","",6000,12]
[1,"D19","Sementi e piantine per seminativi (sementi da prato, ecc.)","040","Superfici seminabili","354","CODA DI VOLPE PER LA PRODUZIONE DI SEME (SP. ARRHENATHERUM ELEATIUS L.)","000","",6000,120]
[1,"D19","Sementi e piantine per seminativi (sementi da prato, ecc.)","040","Superfici seminabili","355","ERBA MAZZOLINA PER LA PRODUZIONE DI SEME (SP. DACTYLIS GLOMERATA L.)","000","",6000,18]
[1,"D19","Sementi e piantine per seminativi (sementi da prato, ecc.)","040","Superfici seminabili","357","ERBA MEDICA PER LA PRODUZIONE DI SEME (SP. MEDICAGO SATIVA L. (VARIETA'))","000","",6000,18]
[1,"D19","Sementi e piantine per seminativi (sementi da prato, ecc.)","040","Superfici seminabili","358","FAVETTE PER LA PRODUZIONE DI SEME (SP. VICIA FABA L.)","000","",6000,16]
[1,"D19","Sementi e piantine per seminativi (sementi da prato, ecc.)","040","Superfici seminabili","359","FESTUCA PER LA PRODUZIONE DI SEME (SP. FESTUCA ARUNDINACEA SCHREB.)","000","",6000,16]
[1,"D19","Sementi e piantine per seminativi (sementi da prato, ecc.)","040","Superfici seminabili","360","FESTUCA PER LA PRODUZIONE DI SEME (SP. FESTUCA OVINA L.)","000","",6000,16]
[1,"D19","Sementi e piantine per seminativi (sementi da prato, ecc.)","040","Superfici seminabili","361","FESTUCA PER LA PRODUZIONE DI SEME (SP. FESTUCA PRATENSIS HUDS.)","000","",6000,16]
[1,"D19","Sementi e piantine per seminativi (sementi da prato, ecc.)","040","Superfici seminabili","362","FESTUCA PER LA PRODUZIONE DI SEME (SP. FESTUCA RUBRA L.)","000","",6000,16]
[1,"D19","Sementi e piantine per seminativi (sementi da prato, ecc.)","040","Superfici seminabili","363","FESTUCA PER LA PRODUZIONE DI SEME (SP. FESTULOLIUM)","000","",6000,16]
[1,"D19","Sementi e piantine per seminativi (sementi da prato, ecc.)","040","Superfici seminabili","364","FLEOLO (CODA DI TOPO) PER LA PRODUZIONE DI SEME (SP. PHLEUM BERTOLINI (DC))","000","",6000,16]
[1,"D19","Sementi e piantine per seminativi (sementi da prato, ecc.)","040","Superfici seminabili","365","FLEOLO (CODA DI TOPO) PER LA PRODUZIONE DI SEME (SP. PHLEUM PRATENSE L.)","000","",6000,16]
[1,"D19","Sementi e piantine per seminativi (sementi da prato, ecc.)","040","Superfici seminabili","366","LINO PER LA PRODUZIONE DI SEME (SP. LINUM USITATISSIMUM L. (LINO TESSILE))","000","",6000,20]
[1,"D19","Sementi e piantine per seminativi (sementi da prato, ecc.)","040","Superfici seminabili","368","LOIETTO PER LA PRODUZIONE DI SEME (SP. LOLIUM MULTIFLORUM LAM.)","000","",6000,18]
[1,"D19","Sementi e piantine per seminativi (sementi da prato, ecc.)","040","Superfici seminabili","369","LOIETTO PER LA PRODUZIONE DI SEME (SP. LOLIUM X BOUCHEANUM KUNT.)","000","",6000,18]
[1,"D19","Sementi e piantine per seminativi (sementi da prato, ecc.)","040","Superfici seminabili","370","LOIETTO PER LA PRODUZIONE DI SEME (SP. LOLIUM PERENNE L.)","000","",6000,18]
[1,"D19","Sementi e piantine per seminativi (sementi da prato, ecc.)","040","Superfici seminabili","371","LUPINELLA PER LA PRODUZIONE DI SEME (SP. ONOBRICHIS VICIIFOLIA SCOP.)","000","",6000,18]
[1,"D19","Sementi e piantine per seminativi (sementi da prato, ecc.)","040","Superfici seminabili","372","LUPOLINA PER LA PRODUZIONE DI SEME (SP. MEDICAGO LUPOLINA L.)","000","",6000,18]
[1,"D19","Sementi e piantine per seminativi (sementi da prato, ecc.)","040","Superfici seminabili","373","PISELLI PER LA PRODUZIONE DI SEME (SP. PISUM SATIVUM L.)","000","",6000,120]
[1,"D19","Sementi e piantine per seminativi (sementi da prato, ecc.)","040","Superfici seminabili","374","POA PER LA PRODUZIONE DI SEME (SP. POA NEMORALIS L. )","000","",6000,120]
[1,"D19","Sementi e piantine per seminativi (sementi da prato, ecc.)","040","Superfici seminabili","375","POA PER LA PRODUZIONE DI SEME (SP. POA PRATENSIS L.)","000","",6000,120]
[1,"D19","Sementi e piantine per seminativi (sementi da prato, ecc.)","040","Superfici seminabili","376","POA PER LA PRODUZIONE DI SEME (SP. POA PALUSTRIS E POA TRIVIALIS L.)","000","",6000,120]
[1,"D19","Sementi e piantine per seminativi (sementi da prato, ecc.)","040","Superfici seminabili","377","SPELTA PER LA PRODUZIONE DI SEME (SP. TRITICUM SPELTA L.)","000","",6000,12]
[1,"D19","Sementi e piantine per seminativi (sementi da prato, ecc.)","040","Superfici seminabili","378","SULLA PER LA PRODUZIONE DI SEME (SP. HEDYSARUM CORONARIUM L.)","000","",6000,18]
[1,"D19","Sementi e piantine per seminativi (sementi da prato, ecc.)","040","Superfici seminabili","379","TRIFOGLIO PER LA PRODUZIONE DI SEME (SP. TRIFOLIUM ALEXANDRINUM L.)","000","",6000,18]
[1,"D19","Sementi e piantine per seminativi (sementi da prato, ecc.)","040","Superfici seminabili","381","TRIFOGLIO PER LA PRODUZIONE DI SEME (SP. TRIFOLIUM HYBRIDUM L.)","000","",6000,18]
[1,"D19","Sementi e piantine per seminativi (sementi da prato, ecc.)","040","Superfici seminabili","383","TRIFOGLIO PER LA PRODUZIONE DI SEME (SP. TRIFOLIUM INCARNATUM L.)","000","",6000,18]
[1,"D19","Sementi e piantine per seminativi (sementi da prato, ecc.)","040","Superfici seminabili","384","TRIFOGLIO PER LA PRODUZIONE DI SEME (SP. TRIFOLIUM PRATENSE L.)","000","",6000,18]
[1,"D19","Sementi e piantine per seminativi (sementi da prato, ecc.)","040","Superfici seminabili","385","TRIFOGLIO PER LA PRODUZIONE DI SEME (SP. TRIFOLIUM REPENS L.)","000","",6000,18]
[1,"D19","Sementi e piantine per seminativi (sementi da prato, ecc.)","040","Superfici seminabili","388","TRIFOGLIO PER LA PRODUZIONE DI SEME (SP. TRIFOLIUM RESUPINATUM L.)","000","",6000,18]
[1,"D19","Sementi e piantine per seminativi (sementi da prato, ecc.)","040","Superfici seminabili","390","VECCIA PER LA PRODUZIONE DI SEME (SP. VICIA VILLOSA ROTH.)","000","",6000,18]
[1,"D19","Sementi e piantine per seminativi (sementi da prato, ecc.)","040","Superfici seminabili","403","FLEOLO BULBOSO - DA SEME","000",null,6000,16]
[1,"D19","Sementi e piantine per seminativi (sementi da prato, ecc.)","040","Superfici seminabili","409","CIPOLLETTA  CIPOLLA D'INVERNO DA SEME","000","",6000,210]
[1,"D19","Sementi e piantine per seminativi (sementi da prato, ecc.)","040","Superfici seminabili","431","RAFANO - DA SEME","000",null,6000,120]
[1,"D19","Sementi e piantine per seminativi (sementi da prato, ecc.)","040","Superfici seminabili","434","FESTUCA  A FOGLIE CAPILLARI - DA SEME","000",null,6000,16]
[1,"D19","Sementi e piantine per seminativi (sementi da prato, ecc.)","040","Superfici seminabili","437","SENAPE BRUNA - DA SEME","000",null,6000,40]
[1,"D19","Sementi e piantine per seminativi (sementi da prato, ecc.)","040","Superfici seminabili","439","SENAPE NERA - DA SEME","000",null,6000,40]
[1,"D19","Sementi e piantine per seminativi (sementi da prato, ecc.)","040","Superfici seminabili","440","FESTUCA INDURITA - DA SEME","000",null,6000,16]
[1,"D19","Sementi e piantine per seminativi (sementi da prato, ecc.)","040","Superfici seminabili","446","POA ANNUA - DA SEME","000",null,6000,120]
[1,"D19","Sementi e piantine per seminativi (sementi da prato, ecc.)","040","Superfici seminabili","448","TRITORDEUM PER LA PRODUZIONE DI SEME ","000","",6000,18]
[1,"D19","Sementi e piantine per seminativi (sementi da prato, ecc.)","040","Superfici seminabili","449","CRISANTEMO PER LA PRODUZIONE DI SEME","000","",6000,210]
[1,"D19","Sementi e piantine per seminativi (sementi da prato, ecc.)","040","Superfici seminabili","469","OKRA o OCRA o GOMBO  PER LA PRODUZIONE DI SEME","000","",6000,18]
[1,"D19","Sementi e piantine per seminativi (sementi da prato, ecc.)","040","Superfici seminabili","486","CRESCIONE DEI GIARDINI O CRESCIONE INGLESE PER LA PRODUZIONE DI SEME","000","",6000,120]
[1,"D19","Sementi e piantine per seminativi (sementi da prato, ecc.)","040","Superfici seminabili","846","CANAPA PER LA PRODUZIONE DI SEME (SP. CANNABIS SATIVA L.)","000","",6000,12]
[1,"D19","Sementi e piantine per seminativi (sementi da prato, ecc.)","040","Superfici seminabili","905","BIETOLA (Compresa  la CHELTENHAM BEET, BARBABIETOLA ROSSA/BIETOLA DA COSTA)DA ORTO PER LA PRODUZIONE DI SEME","000","",6000,91]
[1,"D19","Sementi e piantine per seminativi (sementi da prato, ecc.)","040","Superfici seminabili","906","BARBABIETOLA DA ZUCCHERO PER LA PRODUZIONE DI SEME","000","",6000,21]
[1,"D19","Sementi e piantine per seminativi (sementi da prato, ecc.)","040","Superfici seminabili","907","BARBABIETOLA DA ORTO PER LA PRODUZIONE DI SEME","000","",6000,21]
[1,"D19","Sementi e piantine per seminativi (sementi da prato, ecc.)","040","Superfici seminabili","908","BARBABIETOLA - DA FORAGGIO PER LA PRODUZIONE DI SEME","000","",6000,21]
[1,"D19","Sementi e piantine per seminativi (sementi da prato, ecc.)","040","Superfici seminabili","912","CAROTA IBRIDA PER LA PRODUZIONE DI SEME","000","",6000,120]
[1,"D19","Sementi e piantine per seminativi (sementi da prato, ecc.)","040","Superfici seminabili","913","CAROTA PER LA PRODUZIONE DI SEME","000","",6000,120]
[1,"D19","Sementi e piantine per seminativi (sementi da prato, ecc.)","040","Superfici seminabili","915","CAVOLO PER LA PRODUZIONE DI SEME","000","",6000,120]
[1,"D19","Sementi e piantine per seminativi (sementi da prato, ecc.)","040","Superfici seminabili","916","CAVOLO IBRIDO PER LA PRODUZIONE DI SEME","000","",6000,120]
[1,"D19","Sementi e piantine per seminativi (sementi da prato, ecc.)","040","Superfici seminabili","918","CETRIOLO PER LA PRODUZIONE DI SEME","000","",6000,120]
[1,"D19","Sementi e piantine per seminativi (sementi da prato, ecc.)","040","Superfici seminabili","920","CICORIA PER LA PRODUZIONE DI SEME","000","",6000,120]
[1,"D19","Sementi e piantine per seminativi (sementi da prato, ecc.)","040","Superfici seminabili","922","CIPOLLA PER LA PRODUZIONE DI SEME","000","",6000,210]
[1,"D19","Sementi e piantine per seminativi (sementi da prato, ecc.)","040","Superfici seminabili","923","CIPOLLA IBRIDA PER LA PRODUZIONE DI SEME","000","",6000,210]
[1,"D19","Sementi e piantine per seminativi (sementi da prato, ecc.)","040","Superfici seminabili","934","PREZZEMOLO PER LA PRODUZIONE DI SEME","000","",6000,150]
[1,"D20","Altri colture per seminativi (compresi affitti sotto l’anno)","040","Superfici seminabili","400","SUPERFICI SEMINABILI - COLTURE DA DEFINIRE","000","",1182.9825402949245,12]
[1,"D20","Altri colture per seminativi (compresi affitti sotto l’anno)","400","Pioppeti ed altre coltivazioni arboree da legno a breve rotazione","179","ONTANO","000","",1182.9825402949245,18]
[1,"D20","Altri colture per seminativi (compresi affitti sotto l’anno)","400","Pioppeti ed altre coltivazioni arboree da legno a breve rotazione","183","OLMO","000","",1182.9825402949245,18]
[1,"D20","Altri colture per seminativi (compresi affitti sotto l’anno)","400","Pioppeti ed altre coltivazioni arboree da legno a breve rotazione","188","PAULOWNIA TOMENTOSA","000","",1182.9825402949245,18]
[1,"D20","Altri colture per seminativi (compresi affitti sotto l’anno)","400","Pioppeti ed altre coltivazioni arboree da legno a breve rotazione","191","PLATANO","000","",1182.9825402949245,18]
[1,"D20","Altri colture per seminativi (compresi affitti sotto l’anno)","400","Pioppeti ed altre coltivazioni arboree da legno a breve rotazione","300","PIOPPO BIANCO","000",null,1182.9825402949245,18]
[1,"D20","Altri colture per seminativi (compresi affitti sotto l’anno)","400","Pioppeti ed altre coltivazioni arboree da legno a breve rotazione","301","PIOPPO NERO","000",null,1182.9825402949245,18]
[1,"D20","Altri colture per seminativi (compresi affitti sotto l’anno)","400","Pioppeti ed altre coltivazioni arboree da legno a breve rotazione","302","PIOPPO TREMULO","000","",1182.9825402949245,18]
[1,"D20","Altri colture per seminativi (compresi affitti sotto l’anno)","400","Pioppeti ed altre coltivazioni arboree da legno a breve rotazione","323","ONTANO NAPOLETANO","000","",1182.9825402949245,18]
[1,"D20","Altri colture per seminativi (compresi affitti sotto l’anno)","400","Pioppeti ed altre coltivazioni arboree da legno a breve rotazione","491","PIOPPI A ROTAZIONE RAPIDA","000","",1182.9825402949245,18]
[1,"D20","Altri colture per seminativi (compresi affitti sotto l’anno)","400","Pioppeti ed altre coltivazioni arboree da legno a breve rotazione","667","SALICE","000","",1182.9825402949245,18]
[1,"D20","Altri colture per seminativi (compresi affitti sotto l’anno)","400","Pioppeti ed altre coltivazioni arboree da legno a breve rotazione","669","ROBINIA","000","",1182.9825402949245,18]
[1,"D23","Tabacco","040","Superfici seminabili","025","TABACCO","000","",7731.6509682023361,180]
[1,"D24","Luppolo","440","Altre colture permanenti","076","LUPPOLO","000","",13600,40]
[1,"D26","Colza e ravizzone","040","Superfici seminabili","224","COLZA IBRIDA PER LA PRODUZIONE DI SEME ","000",null,376.73078576388855,15]
[1,"D26","Colza e ravizzone","040","Superfici seminabili","241","COLZA - SEMI","000",null,376.73078576388855,15]
[1,"D26","Colza e ravizzone","040","Superfici seminabili","242","RAVIZZONE - SEMI","000",null,376.73078576388855,15]
[1,"D27","Girasole","040","Superfici seminabili","227","GIRASOLE PER LA PRODUZIONE DI SEME ","000","",490.60209412585726,15]
[1,"D28","Soia","040","Superfici seminabili","004","SOIA - FAVE","000","",909.18836304190268,15]
[1,"D29","Semi di lino  (per olio di lino)","040","Superfici seminabili","367","LINO PER LA PRODUZIONE DI SEME (SP. LINUM USITATISSIMUM L. (LINO OLEOSO))","000","",2082.8999999999996,20]
[1,"D29","Semi di lino  (per olio di lino)","040","Superfici seminabili","610","LINO - SEMI","000","",2082.8999999999996,20]
[1,"D30","Altre oleaginose erbacee","040","Superfici seminabili","101","PAPAVERO","000","",3196.2464179742324,15]
[1,"D30","Altre oleaginose erbacee","040","Superfici seminabili","149","SESAMO DA FORAGGIO","000","",3196.2464179742324,15]
[1,"D30","Altre oleaginose erbacee","040","Superfici seminabili","436","SENAPE BRUNA","000",null,3196.2464179742324,15]
[1,"D30","Altre oleaginose erbacee","040","Superfici seminabili","438","SENAPE NERA","000",null,3196.2464179742324,15]
[1,"D30","Altre oleaginose erbacee","040","Superfici seminabili","630","ARACHIDI","000","",3196.2464179742324,15]
[1,"D30","Altre oleaginose erbacee","040","Superfici seminabili","686","SENAPE","000","",3196.2464179742324,15]
[1,"D30","Altre oleaginose erbacee","040","Superfici seminabili","687","SESAMO","000","",3196.2464179742324,15]
[1,"D30","Altre oleaginose erbacee","040","Superfici seminabili","842","RICINO","000","",3196.2464179742324,15]
[1,"D31","Lino","040","Superfici seminabili","055","LINO DA FIBRA","000","",1135,20]
[1,"D32","Canapa","040","Superfici seminabili","056","CANAPA GREGGIA O MACERATA","000","",794.96374248288134,12]
[1,"D33","Altre colture tessili","040","Superfici seminabili","662","COTONE","000","",1135,12]
[1,"D33","Altre colture tessili","040","Superfici seminabili","711","CARDO DEI LANAIOLI  O CARDO TESSILE","000","",1135,12]
[1,"D34","Piante aromatiche, medicinali e spezie","040","Superfici seminabili","066","CALENDULA","000","",20000,40]
[1,"D34","Piante aromatiche, medicinali e spezie","040","Superfici seminabili","216","LIQUIRIZIA","000","",20000,40]
[1,"D34","Piante aromatiche, medicinali e spezie","040","Superfici seminabili","221","ANETO ","000","",20000,40]
[1,"D34","Piante aromatiche, medicinali e spezie","040","Superfici seminabili","288","ANGELICA ","000","",20000,40]
[1,"D34","Piante aromatiche, medicinali e spezie","040","Superfici seminabili","289","ANICE COMUNE  ","000","",20000,40]
[1,"D34","Piante aromatiche, medicinali e spezie","040","Superfici seminabili","291","ARNICA ","000","",20000,40]
[1,"D34","Piante aromatiche, medicinali e spezie","040","Superfici seminabili","294","BASILICO SANTO ","000",null,20000,40]
[1,"D34","Piante aromatiche, medicinali e spezie","040","Superfici seminabili","295","ARTEMISIA ","000","",20000,40]
[1,"D34","Piante aromatiche, medicinali e spezie","040","Superfici seminabili","296","ASSENZIO","000","",20000,40]
[1,"D34","Piante aromatiche, medicinali e spezie","040","Superfici seminabili","297","BARDANA","000","",20000,40]
[1,"D34","Piante aromatiche, medicinali e spezie","040","Superfici seminabili","324","CAMOMILLA","000","",20000,40]
[1,"D34","Piante aromatiche, medicinali e spezie","040","Superfici seminabili","325","CAMOMILLA ROMANA","000","",20000,40]
[1,"D34","Piante aromatiche, medicinali e spezie","040","Superfici seminabili","326","CARDO MARIANO (SILYBUM MARIANUM)","000","",20000,40]
[1,"D34","Piante aromatiche, medicinali e spezie","040","Superfici seminabili","327","CENTAUREA MINORE ","000","",20000,40]
[1,"D34","Piante aromatiche, medicinali e spezie","040","Superfici seminabili","329","ENULA ","000","",20000,40]
[1,"D34","Piante aromatiche, medicinali e spezie","040","Superfici seminabili","330","EQUISETO ","000","",20000,40]
[1,"D34","Piante aromatiche, medicinali e spezie","040","Superfici seminabili","331","ESCOLZIA","000","",20000,40]
[1,"D34","Piante aromatiche, medicinali e spezie","040","Superfici seminabili","334","FILIPENDULA,  ULMARIA","000",null,20000,40]
[1,"D34","Piante aromatiche, medicinali e spezie","040","Superfici seminabili","337","GALEGA O CAPRAGGINE","000",null,20000,40]
[1,"D34","Piante aromatiche, medicinali e spezie","040","Superfici seminabili","342","GRINDELIA","000",null,20000,40]
[1,"D34","Piante aromatiche, medicinali e spezie","040","Superfici seminabili","344","IPERICO","000","",20000,40]
[1,"D34","Piante aromatiche, medicinali e spezie","040","Superfici seminabili","345","ISSOPO ","000","",20000,40]
[1,"D34","Piante aromatiche, medicinali e spezie","040","Superfici seminabili","348","MALVA","000","",20000,40]
[1,"D34","Piante aromatiche, medicinali e spezie","040","Superfici seminabili","349","MARRUBIO O ROBBIO","000","",20000,40]
[1,"D34","Piante aromatiche, medicinali e spezie","040","Superfici seminabili","393","PARTENIO","000","",20000,40]
[1,"D34","Piante aromatiche, medicinali e spezie","040","Superfici seminabili","394","PASSIFLORA ANNUALE","000","",20000,40]
[1,"D34","Piante aromatiche, medicinali e spezie","040","Superfici seminabili","396","PIANTAGGINE LANCEOLATA O LINGUA DI CANE","000","",20000,40]
[1,"D34","Piante aromatiche, medicinali e spezie","040","Superfici seminabili","397","PIANTAGGINE MAGGIORE O LINGUA D'OCA","000","",20000,40]
[1,"D34","Piante aromatiche, medicinali e spezie","040","Superfici seminabili","398","PSILLO O PLANTAGO OVATA","000","",20000,40]
[1,"D34","Piante aromatiche, medicinali e spezie","040","Superfici seminabili","399","PILOSELLA ","000",null,20000,40]
[1,"D34","Piante aromatiche, medicinali e spezie","040","Superfici seminabili","413","SANTOREGGIA MONTANA ","000","",20000,40]
[1,"D34","Piante aromatiche, medicinali e spezie","040","Superfici seminabili","416","VALERIANA","000","",20000,40]
[1,"D34","Piante aromatiche, medicinali e spezie","040","Superfici seminabili","417","VERBENA OFFICINALE","000","",20000,40]
[1,"D34","Piante aromatiche, medicinali e spezie","040","Superfici seminabili","418","VERGA D'ORO (SOLIDAGO VIRGA AUREA L.)","000","",20000,40]
[1,"D34","Piante aromatiche, medicinali e spezie","040","Superfici seminabili","419","VIOLA TRICOLOR","000","",20000,40]
[1,"D34","Piante aromatiche, medicinali e spezie","040","Superfici seminabili","421","ZENZERO ","000","",20000,40]
[1,"D34","Piante aromatiche, medicinali e spezie","040","Superfici seminabili","445","LAVANDA","000",null,20000,40]
[1,"D34","Piante aromatiche, medicinali e spezie","040","Superfici seminabili","457","ECHINACEA PALLIDA","000",null,20000,40]
[1,"D34","Piante aromatiche, medicinali e spezie","040","Superfici seminabili","458","ECHINACEA ANGUSTIFOLIA","000",null,20000,40]
[1,"D34","Piante aromatiche, medicinali e spezie","040","Superfici seminabili","467","ACHILLEA","000","",20000,40]
[1,"D34","Piante aromatiche, medicinali e spezie","040","Superfici seminabili","483","CENTELLA","000","",20000,40]
[1,"D34","Piante aromatiche, medicinali e spezie","040","Superfici seminabili","488","ECHINACEA PURPUREA","000",null,20000,40]
[1,"D34","Piante aromatiche, medicinali e spezie","040","Superfici seminabili","489","CIMICIFUGA","000",null,20000,40]
[1,"D34","Piante aromatiche, medicinali e spezie","040","Superfici seminabili","507","PIANTE AROMATICHE E MEDICINALI E SPEZIE","000","",20000,40]
[1,"D34","Piante aromatiche, medicinali e spezie","040","Superfici seminabili","622","MELILOTO","000",null,20000,40]
[1,"D34","Piante aromatiche, medicinali e spezie","040","Superfici seminabili","951","TIMO","000","",20000,40]
[1,"D34","Piante aromatiche, medicinali e spezie","040","Superfici seminabili","952","ZAFFERANO","000","",20000,380]
[1,"D34","Piante aromatiche, medicinali e spezie","040","Superfici seminabili","961","MELISSA","000","",20000,40]
[1,"D34","Piante aromatiche, medicinali e spezie","040","Superfici seminabili","962","MENTA","000","",20000,40]
[1,"D34","Piante aromatiche, medicinali e spezie","040","Superfici seminabili","965","ROSMARINO","000","",20000,40]
[1,"D34","Piante aromatiche, medicinali e spezie","040","Superfici seminabili","966","SALVIA","000","",20000,40]
[1,"D34","Piante aromatiche, medicinali e spezie","060","Colture pluriennali","879","RABARBARO","000","",20000,40]
[1,"D34","Piante aromatiche, medicinali e spezie","440","Altre colture permanenti","010","FETTUCCIA D'ACQUA (PHALARIS ARUNDICEA)","000","",20000,40]
[1,"D34","Piante aromatiche, medicinali e spezie","440","Altre colture permanenti","287","AMAMELIDE","000","",20000,40]
[1,"D34","Piante aromatiche, medicinali e spezie","440","Altre colture permanenti","292","ARONIA NERA","000","",20000,40]
[1,"D34","Piante aromatiche, medicinali e spezie","440","Altre colture permanenti","317","GINEPRO","000","",20000,40]
[1,"D34","Piante aromatiche, medicinali e spezie","440","Altre colture permanenti","318","MIRTO","000","",20000,40]
[1,"D34","Piante aromatiche, medicinali e spezie","440","Altre colture permanenti","321","ACCA SELLOWIANA O FEJIOIA SELLOWIANA","000","",20000,40]
[1,"D34","Piante aromatiche, medicinali e spezie","440","Altre colture permanenti","322","LIPPIA CITRIODORA O CEDRINA O LIMONCINA (ALOYSIA CITRODORA)","000","",20000,40]
[1,"D34","Piante aromatiche, medicinali e spezie","440","Altre colture permanenti","485","ALLORO","000","",20000,40]
[1,"D34","Piante aromatiche, medicinali e spezie","440","Altre colture permanenti","968","CAPPERO","000","",20000,40]
[1,"D35","Altre piante industriali","040","Superfici seminabili","083","TOPINAMBUR","000","",1200,20]
[1,"D35","Altre piante industriali","040","Superfici seminabili","343","GUALDO","000","",1200,20]
[1,"D35","Altre piante industriali","040","Superfici seminabili","455","ROBBIA DEI TINTORI","000",null,1200,20]
[1,"D35","Altre piante industriali","040","Superfici seminabili","462","GUADERELLA o LUTEOLA","000",null,1200,20]
[1,"D35","Altre piante industriali","040","Superfici seminabili","487","CANNA DA ZUCCHERO","000","",1200,20]
[1,"D35","Altre piante industriali","040","Superfici seminabili","539","CARTAMO","000","",1200,20]
[1,"D35","Altre piante industriali","040","Superfici seminabili","654","KENAF","000","",1200,20]
[1,"D9A","Piselli, fave, favette e lupini dolci","040","Superfici seminabili","020","PISELLI ALLO STATO SECCO","000","",1774.8820012480962,16]
[1,"D9A","Piselli, fave, favette e lupini dolci","040","Superfici seminabili","574","FAVE E FAVETTE ALLO STATO SECCO","000","",1774.8820012480962,16]
[1,"D9A","Piselli, fave, favette e lupini dolci","040","Superfici seminabili","618","LUPINI - SEMI DI LUPINI DOLCI","000","",1774.8820012480962,16]
[1,"D9B","Legumi diversi da piselli, fave, favette e lupini dolci","040","Superfici seminabili","029","CICERCHIA","000","",1535.3868760374057,16]
[1,"F01","Prati permanenti e pascoli","080","Prati e pascoli seminabili, esclusi i pascoli magri  (superficie non avvicendata per almeno 5 anni)","046","LOIETTO LOGLIO DA FORAGGIO","055","PRATO PASCOLO IN PUREZZA  NON AVVICENDATO PER ALMENO 5 ANNI - PERMANENTE",393.13482227427647,18]
[1,"F01","Prati permanenti e pascoli","080","Prati e pascoli seminabili, esclusi i pascoli magri  (superficie non avvicendata per almeno 5 anni)","051","LUPOLINA - DA FORAGGIO","055","PRATO PASCOLO IN PUREZZA  NON AVVICENDATO PER ALMENO 5 ANNI - PERMANENTE",393.13482227427647,18]
[1,"F01","Prati permanenti e pascoli","080","Prati e pascoli seminabili, esclusi i pascoli magri  (superficie non avvicendata per almeno 5 anni)","079","VECCE - DA FORAGGIO","055","PRATO PASCOLO IN PUREZZA  NON AVVICENDATO PER ALMENO 5 ANNI - PERMANENTE",393.13482227427647,18]
[1,"F01","Prati permanenti e pascoli","080","Prati e pascoli seminabili, esclusi i pascoli magri  (superficie non avvicendata per almeno 5 anni)","152","TRIFOGLIO - DA FORAGGIO","055","PRATO PASCOLO IN PUREZZA  NON AVVICENDATO PER ALMENO 5 ANNI - PERMANENTE",393.13482227427647,18]
[1,"F01","Prati permanenti e pascoli","080","Prati e pascoli seminabili, esclusi i pascoli magri  (superficie non avvicendata per almeno 5 anni)","271","VECCIA SATIVA","055","PRATO PASCOLO IN PUREZZA  NON AVVICENDATO PER ALMENO 5 ANNI - PERMANENTE",393.13482227427647,18]
[1,"F01","Prati permanenti e pascoli","080","Prati e pascoli seminabili, esclusi i pascoli magri  (superficie non avvicendata per almeno 5 anni)","272","VECCIA VILLOSA","055","PRATO PASCOLO IN PUREZZA  NON AVVICENDATO PER ALMENO 5 ANNI - PERMANENTE",393.13482227427647,18]
[1,"F01","Prati permanenti e pascoli","080","Prati e pascoli seminabili, esclusi i pascoli magri  (superficie non avvicendata per almeno 5 anni)","336","PRATO POLIFITA","052","NON AVVICENDATO PER ALMENO 5 ANNI (SFALCIATO) - PERMANENTE",393.13482227427647,18]
[1,"F01","Prati permanenti e pascoli","080","Prati e pascoli seminabili, esclusi i pascoli magri  (superficie non avvicendata per almeno 5 anni)","562","ERBA MEDICA - DA FORAGGIO","055","PRATO PASCOLO IN PUREZZA  NON AVVICENDATO PER ALMENO 5 ANNI - PERMANENTE",393.13482227427647,18]
[1,"F01","Prati permanenti e pascoli","080","Prati e pascoli seminabili, esclusi i pascoli magri  (superficie non avvicendata per almeno 5 anni)","581","GINESTRINO","055","PRATO PASCOLO IN PUREZZA  NON AVVICENDATO PER ALMENO 5 ANNI - PERMANENTE",393.13482227427647,18]
[1,"F01","Prati permanenti e pascoli","080","Prati e pascoli seminabili, esclusi i pascoli magri  (superficie non avvicendata per almeno 5 anni)","600","PRATO PASCOLO DI LEGUMINOSE","052","NON AVVICENDATO PER ALMENO 5 ANNI (SFALCIATO) - PERMANENTE",393.13482227427647,18]
[1,"F01","Prati permanenti e pascoli","080","Prati e pascoli seminabili, esclusi i pascoli magri  (superficie non avvicendata per almeno 5 anni)","612","LUPINELLA - DA FORAGGIO","055","PRATO PASCOLO IN PUREZZA  NON AVVICENDATO PER ALMENO 5 ANNI - PERMANENTE",393.13482227427647,18]
[1,"F01","Prati permanenti e pascoli","080","Prati e pascoli seminabili, esclusi i pascoli magri  (superficie non avvicendata per almeno 5 anni)","700","PRATO PASCOLO MISTO","052","NON AVVICENDATO PER ALMENO 5 ANNI (SFALCIATO) - PERMANENTE",393.13482227427647,18]
[1,"F01","Prati permanenti e pascoli","080","Prati e pascoli seminabili, esclusi i pascoli magri  (superficie non avvicendata per almeno 5 anni)","840","SULLA - DA FORAGGIO","055","PRATO PASCOLO IN PUREZZA  NON AVVICENDATO PER ALMENO 5 ANNI - PERMANENTE",393.13482227427647,18]
[1,"F01","Prati permanenti e pascoli","080","Prati e pascoli seminabili, esclusi i pascoli magri  (superficie non avvicendata per almeno 5 anni)","862","FIENO GRECO","055","PRATO PASCOLO IN PUREZZA  NON AVVICENDATO PER ALMENO 5 ANNI - PERMANENTE",393.13482227427647,18]
[1,"F01","Prati permanenti e pascoli","080","Prati e pascoli seminabili, esclusi i pascoli magri  (superficie non avvicendata per almeno 5 anni)","898","PRATO PASCOLO DI GRAMINACEE","052","NON AVVICENDATO PER ALMENO 5 ANNI (SFALCIATO) - PERMANENTE",393.13482227427647,18]
[1,"F02","Pascoli magri","560","pascolo polifita (tipo alpeggi)","065","PASCOLO POLIFITA (TIPO ALPEGGI)","009","PASCOLO MAGRO NON AVVICENDATO PER ALMENO 5 ANNI - PERMANENTE",141.70562659075273,5]
[1,"F02","Pascoli magri","560","pascolo polifita (tipo alpeggi)","460","PRATI ARIDI - FORMAZIONI ERBOSE CON ORCHIDEE","009","PASCOLO MAGRO NON AVVICENDATO PER ALMENO 5 ANNI - PERMANENTE",141.70562659075273,5]
[1,"F02","Pascoli magri","560","pascolo polifita (tipo alpeggi)","461","MOLINIETI - MOLINIA CAERULEA","009","PASCOLO MAGRO NON AVVICENDATO PER ALMENO 5 ANNI - PERMANENTE",141.70562659075273,5]
[1,"F02","Pascoli magri","600","pascolo polifita (tipo alpeggi) con roccia affiorante tara 20%","063","PASCOLO POLIFITA (TIPO ALPEGGI) CON ROCCIA AFFIORANTE TARA 20%","009","PASCOLO MAGRO NON AVVICENDATO PER ALMENO 5 ANNI - PERMANENTE",141.70562659075273,5]
[1,"F02","Pascoli magri","640","pascolo polifita (tipo alpeggi) con roccia affiorante tara 50%","064","PASCOLO POLIFITA (TIPO ALPEGGI) CON ROCCIA AFFIORANTE TARA 50%","009","PASCOLO MAGRO NON AVVICENDATO PER ALMENO 5 ANNI - PERMANENTE",141.70562659075273,5]
[1,"F02","Pascoli magri","680","pascolo arborato (bosco alto fusto e cespugliato) tara 20%","103","PASCOLO ARBORATO - CESPUGLIATO TARA 20%","009","PASCOLO MAGRO NON AVVICENDATO PER ALMENO 5 ANNI - PERMANENTE",141.70562659075273,5]
[1,"F02","Pascoli magri","720","pascolo arborato (bosco ceduo) tara 50%","054","PASCOLO ARBORATO - TARA 50%","009","PASCOLO MAGRO NON AVVICENDATO PER ALMENO 5 ANNI - PERMANENTE",141.70562659075273,5]
[1,"F02","Pascoli magri",721,"pascolo pratiche tradizionali","218","PASCOLO CON PRATICHE TRADIZIONALI ","009","PASCOLO MAGRO NON AVVICENDATO PER ALMENO 5 ANNI – PERMANENTE – coefficiente di riduzione 50%",141.70562659075273,5]
[1,"F02","Pascoli magri",722,"superficie agricola mantenuta naturalmente ","380","PRATI PERMANENTI NATURALI CON VINCOLI AMBIENTALI - TARA 20%","009","PASCOLO MAGRO NON AVVICENDATO PER ALMENO 5 ANNI - PERMANENTE",141.70562659075273,5]
[1,"F02","Pascoli magri",722,"superficie agricola mantenuta naturalmente ","382","PRATI PERMANENTI NATURALI CON VINCOLI AMBIENTALI - TARA 50%","009","PASCOLO MAGRO NON AVVICENDATO PER ALMENO 5 ANNI - PERMANENTE",141.70562659075273,5]
[1,"F02","Pascoli magri",722,"superficie agricola mantenuta naturalmente ","391","PRATI PERMANENTI NATURALI CON VINCOLI AMBIENTALI","009","PASCOLO MAGRO NON AVVICENDATO PER ALMENO 5 ANNI - PERMANENTE",141.70562659075273,5]
[1,"G01A","Frutta fresca di origine temperata","060","Colture pluriennali","177","GELSO","000","",7760.3280390016962,40]
[1,"G01A","Frutta fresca di origine temperata","060","Colture pluriennali","304","BIANCOSPINO","000","",7760.3280390016962,40]
[1,"G01A","Frutta fresca di origine temperata","100","Colture permanenti (arboree)","993","COLTIVAZIONI ARBOREE SPECIALIZZATE","000","",7760.3280390016962,100]
[1,"G01A","Frutta fresca di origine temperata","100","Colture permanenti (arboree)","994","ARBORETO CONSOCIABILE (CON COLTIVAZIONI ERBACEE)","000","",7760.3280390016962,40]
[1,"G01A","Frutta fresca di origine temperata","100","Colture permanenti (arboree)","996","COLTIVAZIONI ARBOREE PROMISCUE (PIU' SPECIE ARBOREE)","000","",7760.3280390016962,100]
[1,"G01A","Frutta fresca di origine temperata","280","Pere","451","PERE DA TAVOLA","000","",7760.3280390016962,125]
[1,"G01A","Frutta fresca di origine temperata","280","Pere","452","PERE DA SIDRO","000","",7760.3280390016962,125]
[1,"G01A","Frutta fresca di origine temperata","280","Pere","802","PERO","000","",7760.3280390016962,125]
[1,"G01A","Frutta fresca di origine temperata","280","Pere","895","PERE DA TRASFORMAZIONE","000","",7760.3280390016962,125]
[1,"G01A","Frutta fresca di origine temperata","320","Pesche e percoche","801","PESCA DA TAVOLA","000","",7760.3280390016962,125]
[1,"G01A","Frutta fresca di origine temperata","320","Pesche e percoche","803","PESCA DA TRASFORMAZIONE","000","",7760.3280390016962,125]
[1,"G01A","Frutta fresca di origine temperata","320","Pesche e percoche","804","PESCA NETTARINA","000","",7760.3280390016962,125]
[1,"G01A","Frutta fresca di origine temperata","360","Altri fruttiferi","044","MELO","000","",7760.3280390016962,125]
[1,"G01A","Frutta fresca di origine temperata","360","Altri fruttiferi","171","CORBEZZOLO","000","",7760.3280390016962,130]
[1,"G01A","Frutta fresca di origine temperata","360","Altri fruttiferi","176","SORBO DA MENSA","000","",7760.3280390016962,125]
[1,"G01A","Frutta fresca di origine temperata","360","Altri fruttiferi","213","LYCIUM BARBARUM (GOJI)","000","",7760.3280390016962,100]
[1,"G01A","Frutta fresca di origine temperata","360","Altri fruttiferi","228","GIUGGIOLO","000","",7760.3280390016962,125]
[1,"G01A","Frutta fresca di origine temperata","360","Altri fruttiferi","305","BIRICOCCOLO SUSINCOCCO   ","000","",7760.3280390016962,100]
[1,"G01A","Frutta fresca di origine temperata","360","Altri fruttiferi","408","MELOGRANO","000","",7760.3280390016962,125]
[1,"G01A","Frutta fresca di origine temperata","360","Altri fruttiferi","441","MELE DA TAVOLA","000","",7760.3280390016962,125]
[1,"G01A","Frutta fresca di origine temperata","360","Altri fruttiferi","442","MELE DA SIDRO","000","",7760.3280390016962,125]
[1,"G01A","Frutta fresca di origine temperata","360","Altri fruttiferi","468","CILIEGIO ACIDO (MARASCA,VISCIOLA,AMARENA)","000",null,7760.3280390016962,130]
[1,"G01A","Frutta fresca di origine temperata","360","Altri fruttiferi","472","FICO","000","",7760.3280390016962,125]
[1,"G01A","Frutta fresca di origine temperata","360","Altri fruttiferi","476","NESPOLO","000","",7760.3280390016962,100]
[1,"G01A","Frutta fresca di origine temperata","360","Altri fruttiferi","479","VISCIOLE","000","",7760.3280390016962,130]
[1,"G01A","Frutta fresca di origine temperata","360","Altri fruttiferi","499","PRUGNOLO","000","",7760.3280390016962,125]
[1,"G01A","Frutta fresca di origine temperata","360","Altri fruttiferi","661","COTOGNO","000","",7760.3280390016962,125]
[1,"G01A","Frutta fresca di origine temperata","360","Altri fruttiferi","671","ALBICOCCO","000","",7760.3280390016962,125]
[1,"G01A","Frutta fresca di origine temperata","360","Altri fruttiferi","672","CILIEGIO","000","",7760.3280390016962,130]
[1,"G01A","Frutta fresca di origine temperata","360","Altri fruttiferi","673","SUSINO","000","",7760.3280390016962,125]
[1,"G01A","Frutta fresca di origine temperata","360","Altri fruttiferi","896","MELE DA TRASFORMAZIONE","000","",7760.3280390016962,125]
[1,"G01A","Frutta fresca di origine temperata","360","Altri fruttiferi","950","PRUGNE DA DESTINARE ALLA TRASFORMAZIONE","000","",7760.3280390016962,125]
[1,"G01A","Frutta fresca di origine temperata","360","Altri fruttiferi","969","AZZERUOLO","000","",7760.3280390016962,100]
[1,"G01B","Frutta di origine subtropicale","360","Altri fruttiferi","404","BABACO","000","",9942.8643733827266,100]
[1,"G01B","Frutta di origine subtropicale","360","Altri fruttiferi","405","AVOCADO","000","",9942.8643733827266,100]
[1,"G01B","Frutta di origine subtropicale","360","Altri fruttiferi","407","FICODINDIA","000","",9942.8643733827266,125]
[1,"G01B","Frutta di origine subtropicale","360","Altri fruttiferi","471","LOTO (KAKI)","000","",9942.8643733827266,100]
[1,"G01B","Frutta di origine subtropicale","360","Altri fruttiferi","831","ACTINIDIA (KIWI)","000","",9942.8643733827266,100]
[1,"G01B","Frutta di origine subtropicale","360","Altri fruttiferi","958","ANANASSI","000","",9942.8643733827266,100]
[1,"G01B","Frutta di origine subtropicale","360","Altri fruttiferi","959","GUAIAVE, MANGO E MANGOSTANO","000","",9942.8643733827266,100]
[1,"G01C","Frutta per frutta a guscio","120","Frutta a guscio","071","NOCCIOLE DA MENSA","000",null,1067.5711255991657,40]
[1,"G01C","Frutta per frutta a guscio","120","Frutta a guscio","072","MANDORLE","000","",1067.5711255991657,40]
[1,"G01C","Frutta per frutta a guscio","120","Frutta a guscio","073","NOCI COMUNI DA MENSA","000","",1067.5711255991657,40]
[1,"G01C","Frutta per frutta a guscio","120","Frutta a guscio","074","PISTACCHI","000","",1067.5711255991657,40]
[1,"G01C","Frutta per frutta a guscio","120","Frutta a guscio","075","CARRUBE","000","",1067.5711255991657,40]
[1,"G01C","Frutta per frutta a guscio","120","Frutta a guscio","170","FRUTTA A GUSCIO - SPECIE NON DEFINITA","000","",1067.5711255991657,40]
[1,"G01C","Frutta per frutta a guscio","120","Frutta a guscio","542","CASTAGNO DA MENSA","000",null,1067.5711255991657,40]
[1,"G01D","Piccoli frutti","060","Colture pluriennali","473","LAMPONE","000","",12859.425305566599,100]
[1,"G01D","Piccoli frutti","060","Colture pluriennali","474","MORE","000","",12859.425305566599,100]
[1,"G01D","Piccoli frutti","060","Colture pluriennali","475","MIRTILLI ROSSI, MIRTILLI NERI ED ALTRI FRUTTI DEL GENERE \"VACCINIUM\"","000","",12859.425305566599,100]
[1,"G01D","Piccoli frutti","060","Colture pluriennali","477","RIBES NERO","000","",12859.425305566599,100]
[1,"G01D","Piccoli frutti","060","Colture pluriennali","480","RIBES BIANCO (UVA SPINA)","000","",12859.425305566599,100]
[1,"G01D","Piccoli frutti","060","Colture pluriennali","481","RIBES ROSSO","000","",12859.425305566599,100]
[1,"G01D","Piccoli frutti","440","Altre colture permanenti","466","UVA URSINA","000","",12859.425305566599,100]
[1,"G01D","Piccoli frutti","440","Altre colture permanenti","501","TARTUFO","000","",12859.425305566599,100]
[1,"G02","Agrumeti","240","Agrumi","200","AGRUMI (SPECIE NON DEFINITA)","000","",3660.4339285714154,125]
[1,"G02","Agrumeti","240","Agrumi","201","ARANCIO","000","",3660.4339285714154,125]
[1,"G02","Agrumeti","240","Agrumi","202","MANDARINO","000","",3660.4339285714154,125]
[1,"G02","Agrumeti","240","Agrumi","203","CLEMENTINO","000","",3660.4339285714154,125]
[1,"G02","Agrumeti","240","Agrumi","204","LIMONE","000","",3660.4339285714154,125]
[1,"G02","Agrumeti","240","Agrumi","205","POMPELMO","000","",3660.4339285714154,125]
[1,"G02","Agrumeti","240","Agrumi","206","TANGELO MAPO","000","",3660.4339285714154,125]
[1,"G02","Agrumeti","240","Agrumi","207","SATSUMA","001","",3660.4339285714154,125]
[1,"G02","Agrumeti","240","Agrumi","220","QUMQUAT","000","",3660.4339285714154,125]
[1,"G02","Agrumeti","240","Agrumi","243","CEDRO DA MENSA","000",null,3660.4339285714154,125]
[1,"G02","Agrumeti","240","Agrumi","402","CHINOTTO","000",null,3660.4339285714154,125]
[1,"G02","Agrumeti","240","Agrumi","432","BERGAMOTTO","000","",3660.4339285714154,125]
[1,"G02","Agrumeti","240","Agrumi","435","LIMETTE","000","",3660.4339285714154,125]
[1,"G03A","Oliveti per olive da tavola","160","Olivo","102","OLIVE DA TAVOLA","000","",1936.6205185659371,87]
[1,"G03B","Oliveti per olive da olio","160","Olivo","100","OLIVO","000","",2325.7385400593457,90]
[1,"G03B","Oliveti per olive da olio","160","Olivo","111","OLIVE DA OLIO","000","",2325.7385400593457,90]
[1,"G04A","Vigneti per uva da vino di qualità (DOP e IGP)","200","Vite","161","VITE","000","",10098.670123456823,75]
[1,"G04A","Vigneti per uva da vino di qualità (DOP e IGP)","210","Vite da vino","086","SELVATICO DA INNESTARE DESTINATO A VINO","000","",10098.670123456823,75]
[1,"G04A","Vigneti per uva da vino di qualità (DOP e IGP)","210","Vite da vino","087","VIGNETO SPERIMENTALE PER UVA DA VINO","000","",10098.670123456823,75]
[1,"G04A","Vigneti per uva da vino di qualità (DOP e IGP)","210","Vite da vino","163","UVA DA VINO","000","",10098.670123456823,75]
[1,"G04A","Vigneti per uva da vino di qualità (DOP e IGP)","220","Vite da mensa","166","UVA DA TRASFORMAZIONE","000","",10098.670123456823,75]
[1,"G04A","Vigneti per uva da vino di qualità (DOP e IGP)","220","Vite da mensa","186","SELVATICO DA INNESTARE DESTINATO A UVA DA TAVOLA","000","",10098.670123456823,120]
[1,"G04A","Vigneti per uva da vino di qualità (DOP e IGP)","220","Vite da mensa","187","VIGNETO SPERIMENTALE PER UVA DA TAVOLA","000","",10098.670123456823,120]
[1,"G04A","Vigneti per uva da vino di qualità (DOP e IGP)","220","Vite da mensa","849","UVA DA MENSA","000","",10098.670123456823,120]
[1,"G04B","Vigneti per uva da vino comune","200","Vite","161","VITE","000","",10627.631179425458,75]
[1,"G04B","Vigneti per uva da vino comune","210","Vite da vino","086","SELVATICO DA INNESTARE DESTINATO A VINO","000","",10627.631179425458,75]
[1,"G04B","Vigneti per uva da vino comune","210","Vite da vino","087","VIGNETO SPERIMENTALE PER UVA DA VINO","000","",10627.631179425458,75]
[1,"G04B","Vigneti per uva da vino comune","210","Vite da vino","163","UVA DA VINO","000","",10627.631179425458,75]
[1,"G04B","Vigneti per uva da vino comune","220","Vite da mensa","166","UVA DA TRASFORMAZIONE","000","",10627.631179425458,75]
[1,"G04C","Vigneti per uva da tavola","220","Vite da mensa","186","SELVATICO DA INNESTARE DESTINATO A UVA DA TAVOLA","000","",5607.858398393917,120]
[1,"G04C","Vigneti per uva da tavola","220","Vite da mensa","187","VIGNETO SPERIMENTALE PER UVA DA TAVOLA","000","",5607.858398393917,120]
[1,"G04C","Vigneti per uva da tavola","220","Vite da mensa","849","UVA DA MENSA","000","",5607.858398393917,120]
[1,"G05","Vivai (semenzai e piantonai)","740","Vivaio","084","PIANTAMADRE DI PORTAINNESTI","000","",40879.642995452581,315]
[1,"G05","Vivai (semenzai e piantonai)","740","Vivaio","085","PIANTE MADRI PER MARZE","000","",40879.642995452581,315]
[1,"G05","Vivai (semenzai e piantonai)","740","Vivaio","184","BARBATELLE INNESTATE","000","",40879.642995452581,315]
[1,"G05","Vivai (semenzai e piantonai)","740","Vivaio","185","BARBATELLE DA INNESTARE","000","",40879.642995452581,315]
[1,"G05","Vivai (semenzai e piantonai)","740","Vivaio",503,"VIVAI ORTICOLI","000","",40879.642995452581,315]
[1,"G05","Vivai (semenzai e piantonai)","740","Vivaio","551","VIVAI FLORICOLI","000","",40879.642995452581,2000]
[1,"G05","Vivai (semenzai e piantonai)","740","Vivaio","552","VIVAI FRUTTICOLI","000","",40879.642995452581,315]
[1,"G05","Vivai (semenzai e piantonai)","740","Vivaio","553","VIVAI VITICOLI","000","",40879.642995452581,315]
[1,"G05","Vivai (semenzai e piantonai)","740","Vivaio","554","VIVAI OLIVICOLI","000","",40879.642995452581,315]
[1,"G05","Vivai (semenzai e piantonai)","740","Vivaio","555","VIVAI FORESTALI","000","",40879.642995452581,315]
[1,"G05","Vivai (semenzai e piantonai)","740","Vivaio","556","VIVAI - ALTRI","000","",40879.642995452581,315]
[1,"G06","Altre colture permanenti","440","Altre colture permanenti","039","GINESTRA","000","",1523.75,18]
[1,"G06","Altre colture permanenti","440","Altre colture permanenti","112","CANNA CINESE (MISCANTHUS SINENSIS)","000","",1523.75,18]
[1,"G06","Altre colture permanenti","440","Altre colture permanenti","316","OLIVELLO O OLIVELLO SPINOSO ","000","",1523.75,18]
[1,"G06","Altre colture permanenti","440","Altre colture permanenti","320","CISTO BIANCO","000","",1523.75,18]
[1,"G06","Altre colture permanenti","440","Altre colture permanenti","422","BAMBU","000",null,1523.75,18]
[1,"G06","Altre colture permanenti","440","Altre colture permanenti","424","BAMBU GIGANTE","000",null,1523.75,18]
[1,"G06","Altre colture permanenti","440","Altre colture permanenti","653","ARUNDO DONAX","000","",1523.75,18]
[1,"G07","Colture permanenti in serra (frutteti sotto serra, ecc.)","220","Vite da mensa","166","UVA DA TRASFORMAZIONE","000","",23200,75]
[1,"G07","Colture permanenti in serra (frutteti sotto serra, ecc.)","220","Vite da mensa","187","VIGNETO SPERIMENTALE PER UVA DA TAVOLA","000","",23200,120]
[1,"G07","Colture permanenti in serra (frutteti sotto serra, ecc.)","220","Vite da mensa","849","UVA DA MENSA","000","",23200,120]
[1,"G07","Colture permanenti in serra (frutteti sotto serra, ecc.)","240","Agrumi","200","AGRUMI (SPECIE NON DEFINITA)","000","",23200,125]
[1,"G07","Colture permanenti in serra (frutteti sotto serra, ecc.)","240","Agrumi","201","ARANCIO","000","",23200,125]
[1,"G07","Colture permanenti in serra (frutteti sotto serra, ecc.)","240","Agrumi","202","MANDARINO","000","",23200,125]
[1,"G07","Colture permanenti in serra (frutteti sotto serra, ecc.)","240","Agrumi","203","CLEMENTINO","000","",23200,125]
[1,"G07","Colture permanenti in serra (frutteti sotto serra, ecc.)","240","Agrumi","204","LIMONE","000","",23200,125]
[1,"G07","Colture permanenti in serra (frutteti sotto serra, ecc.)","240","Agrumi","205","POMPELMO","000","",23200,125]
[1,"G07","Colture permanenti in serra (frutteti sotto serra, ecc.)","240","Agrumi","206","TANGELO MAPO","000","",23200,125]
[1,"G07","Colture permanenti in serra (frutteti sotto serra, ecc.)","240","Agrumi","207","SATSUMA","001","",23200,125]
[1,"G07","Colture permanenti in serra (frutteti sotto serra, ecc.)","240","Agrumi","220","QUMQUAT","000","",23200,125]
[1,"G07","Colture permanenti in serra (frutteti sotto serra, ecc.)","240","Agrumi","243","CEDRO DA MENSA","000",null,23200,125]
[1,"G07","Colture permanenti in serra (frutteti sotto serra, ecc.)","240","Agrumi","402","CHINOTTO","000",null,23200,125]
[1,"G07","Colture permanenti in serra (frutteti sotto serra, ecc.)","240","Agrumi","432","BERGAMOTTO","000","",23200,125]
[1,"G07","Colture permanenti in serra (frutteti sotto serra, ecc.)","240","Agrumi","435","LIMETTE","000","",23200,125]
[1,"G07","Colture permanenti in serra (frutteti sotto serra, ecc.)","280","Pere","451","PERE DA TAVOLA","000","",23200,125]
[1,"G07","Colture permanenti in serra (frutteti sotto serra, ecc.)","280","Pere","452","PERE DA SIDRO","000","",23200,125]
[1,"G07","Colture permanenti in serra (frutteti sotto serra, ecc.)","280","Pere","802","PERO","000","",23200,125]
[1,"G07","Colture permanenti in serra (frutteti sotto serra, ecc.)","280","Pere","895","PERE DA TRASFORMAZIONE","000","",23200,125]
[1,"G07","Colture permanenti in serra (frutteti sotto serra, ecc.)","320","Pesche e percoche","801","PESCA DA TAVOLA","000","",23200,125]
[1,"G07","Colture permanenti in serra (frutteti sotto serra, ecc.)","320","Pesche e percoche","803","PESCA DA TRASFORMAZIONE","000","",23200,125]
[1,"G07","Colture permanenti in serra (frutteti sotto serra, ecc.)","320","Pesche e percoche","804","PESCA NETTARINA","000","",23200,125]
[1,"G07","Colture permanenti in serra (frutteti sotto serra, ecc.)","360","Altri fruttiferi","044","MELO","000","",23200,125]
[1,"G07","Colture permanenti in serra (frutteti sotto serra, ecc.)","360","Altri fruttiferi","404","BABACO","000","",23200,100]
[1,"G07","Colture permanenti in serra (frutteti sotto serra, ecc.)","360","Altri fruttiferi","405","AVOCADO","000","",23200,100]
[1,"G07","Colture permanenti in serra (frutteti sotto serra, ecc.)","360","Altri fruttiferi","441","MELE DA TAVOLA","000","",23200,125]
[1,"G07","Colture permanenti in serra (frutteti sotto serra, ecc.)","360","Altri fruttiferi","471","LOTO (KAKI)","000","",23200,100]
[1,"G07","Colture permanenti in serra (frutteti sotto serra, ecc.)","360","Altri fruttiferi","479","VISCIOLE","000","",23200,130]
[1,"G07","Colture permanenti in serra (frutteti sotto serra, ecc.)","360","Altri fruttiferi","671","ALBICOCCO","000","",23200,125]
[1,"G07","Colture permanenti in serra (frutteti sotto serra, ecc.)","360","Altri fruttiferi","672","CILIEGIO","000","",23200,130]
[1,"G07","Colture permanenti in serra (frutteti sotto serra, ecc.)","360","Altri fruttiferi","673","SUSINO","000","",23200,125]
[1,"G07","Colture permanenti in serra (frutteti sotto serra, ecc.)","360","Altri fruttiferi","831","ACTINIDIA (KIWI)","000","",23200,100]
[1,"G07","Colture permanenti in serra (frutteti sotto serra, ecc.)","360","Altri fruttiferi","896","MELE DA TRASFORMAZIONE","000","",23200,125]
[1,"G07","Colture permanenti in serra (frutteti sotto serra, ecc.)","360","Altri fruttiferi","958","ANANASSI","000","",23200,100]
[1,"G07","Colture permanenti in serra (frutteti sotto serra, ecc.)","360","Altri fruttiferi","959","GUAIAVE, MANGO E MANGOSTANO","000","",23200,100]
[1,"I02","Funghi coltivati sotto copertura  (superficie di base)","440","Altre colture permanenti","J02","FUNGHI","000","",33656,300]
[2,"J01","Equini in complesso (di tutte le età)","10001","Equini","J01a","Cavalli","000",null,517.78341103609887,5]
[2,"J01","Equini in complesso (di tutte le età)","10001","Equini","J01b","Stalloni","000",null,517.78341103609887,5]
[2,"J01","Equini in complesso (di tutte le età)","10001","Equini","J01c","Giumente","000",null,517.78341103609887,5]
[2,"J01","Equini in complesso (di tutte le età)","10001","Equini","J01d","Asini, Muli","000",null,517.78341103609887,5]
[2,"J01","Equini in complesso (di tutte le età)","10001","Equini","J01e","Bardotti, Puledri","000",null,517.78341103609887,5]
[2,"J02","Bovini maschi e femmine meno di 1 anno  ","10002","Bovini/bufalini","J02a","Vitelli/e meno di 6 mesi, Vitelli/e da 6 a 12 mesi","000",null,1223.4043478828748,6]
[2,"J02","Bovini maschi e femmine meno di 1 anno  ","10002","Bovini/bufalini","J02b","Bufali fino a 6 mesi, bufali da 6 e 12 mesi","000",null,1223.4043478828748,6]
[2,"J03","Bovini maschi da 1 a meno di 2 anni","10002","Bovini/bufalini","J03a","Bovini maschi da 1 a meno di 2 anni","000",null,586.65611080753513,7]
[2,"J03","Bovini maschi da 1 a meno di 2 anni","10002","Bovini/bufalini","J03b","Bufali maschi da 1 a 2 anni","000",null,586.65611080753513,7]
[2,"J04","Bovini femmine da 1 a meno di 2 anni","10002","Bovini/bufalini","J04a","Bovini femmine da 1 a meno di 2 anni","000",null,459.25777351042808,6]
[2,"J04","Bovini femmine da 1 a meno di 2 anni","10002","Bovini/bufalini","J04b","Bufali femmine da 1 a 2 anni","000",null,459.25777351042808,6]
[2,"J05","Bovini maschi di 2 anni e più","10002","Bovini/bufalini","J05a","Bovini maschi di 2 anni e più","000",null,609.36834018758964,7]
[2,"J05","Bovini maschi di 2 anni e più","10002","Bovini/bufalini","J05b","Bufali maschi di 2 anni e più","000",null,609.36834018758964,7]
[2,"J06","Giovenche di 2 anni e più","10002","Bovini/bufalini","J06a","Giovenche di 2 anni e più","000",null,483.05202891819761,7]
[2,"J06","Giovenche di 2 anni e più","10002","Bovini/bufalini","J06b","Bovine femmine di 2 anni e più","000",null,483.05202891819761,7]
[2,"J06","Giovenche di 2 anni e più","10002","Bovini/bufalini","J06c","Bufabli femmine di 2 anni e più","000",null,483.05202891819761,7]
[2,"J07","Vacche lattifere","10002","Bovini/bufalini","J07a","Vacche lattifere","000",null,1120.0722191636023,13]
[2,"J07","Vacche lattifere","10002","Bovini/bufalini","J07b","Bufale da latte","000",null,1120.0722191636023,13]
[2,"J08","Altre vacche (vacche nutrici, vacche da riforma)","10002","Bovini/bufalini","J08a","Vacche nutrici","000",null,644.96318797014646,7]
[2,"J08","Altre vacche (vacche nutrici, vacche da riforma)","10002","Bovini/bufalini","J08b","Vacche da riforma","000",null,644.96318797014646,7]
[2,"J09A","Pecore","10003","Ovini","J09A","Pecore in produzione","000",null,265.11776961544825,4]
[2,"J09B","Altri ovini (arieti, agnelli)","10003","Ovini","J09Ba","Agnelli","000",null,130.48864517978936,4]
[2,"J09B","Altri ovini (arieti, agnelli)","10003","Ovini","J09Bb","Ariente","000",null,130.48864517978936,4]
[2,"J09B","Altri ovini (arieti, agnelli)","10003","Ovini","J09Bc","Pecore da rimonta","000",null,265.11776961544825,4]
[2,"J10A","Capre (compresi caprioli e danini)","10004","Caprini","J10Aa","Capre da produzione","000",null,223.73419121372785,5]
[2,"J10A","Capre (compresi caprioli e danini)","10004","Caprini","J10Ab","Caprioli e daini","000",null,223.73419121372785,5]
[2,"J10B","Altri caprini","10004","Caprini","J10Ba","Capretti","000",null,59.732810238235672,5]
[2,"J10B","Altri caprini","10004","Caprini","J10Bb","Capre da rimonta","000",null,59.732810238235672,5]
[2,"J10B","Altri caprini","10004","Caprini","J10Bc","Becchi","000",null,59.732810238235672,5]
[2,"J10B","Altri caprini","10004","Caprini","J10Bd","Altri animali da lana (Alpaca)","000",null,59.732810238235672,5]
[2,"J11","Lattonzoli < 20 Kg   ","10005","Suini","J11","Lattonzoli","000",null,327.43994801800443,7]
[2,"J12","Scrofe da riproduzione > 50 Kg","10005","Suini","J12a","Scrofe","000",null,1828.1319921655338,12]
[2,"J12","Scrofe da riproduzione > 50 Kg","10005","Suini","J12b","Suini grassi","000",null,1828.1319921655338,12]
[2,"J13","Altri suini (verri e suini da ingrasso > 20 Kg)","10005","Suini","J13a","Scrofette","000",null,609.44974544944841,6]
[2,"J13","Altri suini (verri e suini da ingrasso > 20 Kg)","10005","Suini","J13b","Magroni","000",null,609.44974544944841,6]
[2,"J13","Altri suini (verri e suini da ingrasso > 20 Kg)","10005","Suini","J13c","Magroncelli","000",null,609.44974544944841,6]
[2,"J14","Polli da carne – broilers","10006","Avicoli","J14a","Polli da carne","000",null,2091.0615337665613,3]
[2,"J14","Polli da carne – broilers","10006","Avicoli","J14b","Broilers","000",null,2091.0615337665613,3]
[2,"J14","Polli da carne – broilers","10006","Avicoli","J14c","Galletti, Galli e capponi","000",null,2091.0615337665613,3]
[2,"J15","Galline ovaiole ","10006","Avicoli","J15a","Galline per uova da cova","000",null,3331.6350503659842,3]
[2,"J15","Galline ovaiole ","10006","Avicoli","J15b","Galline per uova da consumo","000",null,3331.6350503659842,3]
[2,"J15","Galline ovaiole ","10006","Avicoli","J15c","Pollastre per uova da cova","000",null,3331.6350503659842,3]
[2,"J15","Galline ovaiole ","10006","Avicoli","J15d","Pollastre per uova da consumo","000",null,3331.6350503659842,3]
[2,"J16A","Tacchini","10006","Avicoli","J16Aa","Tacchini da ingrasso","000",null,5975.9113979452413,2]
[2,"J16A","Tacchini","10006","Avicoli","J16Ab","Tacchini da riproduzione","000",null,5975.9113979452413,2]
[2,"J16A","Tacchini","10006","Avicoli","J16Ac","Tacchine allievi","000",null,5975.9113979452413,2]
[2,"J16B","Anatre ","10006","Avicoli","J16Ba","Anatre","000",null,1677.9953563204908,2]
[2,"J16B","Oche","10006","Avicoli","J16Bb","Oche","000",null,1677.9953563204908,2]
[2,"J16C","Struzzi","10006","Avicoli","J16Ca","Struzzi da ingrasso","000",null,1142.2380045149112,600]
[2,"J16C","Struzzi","10006","Avicoli","J16Cb","Struzzi da riproduzione","000",null,1142.2380045149112,600]
[2,"J16C","Struzzi","10006","Avicoli","J16Cc","Struzzi allievi","000",null,1142.2380045149112,600]
[2,"J16D","Altro pollame","10006","Avicoli","J16Da","Faraone","000",null,1142.2380045149112,600]
[2,"J16D","Altro pollame","10006","Avicoli","J16Db","Fagiani","000",null,1142.2380045149112,600]
[2,"J16D","Altro pollame","10006","Avicoli","J16Dc","Piccioni, Colombi, Pernici, Starne, Guaglie","000",null,1142.2380045149112,600]
[2,"J16D","Altro pollame","10006","Avicoli","J16Dd","Colombi","000",null,1142.2380045149112,600]
[2,"J16D","Altro pollame","10006","Avicoli","J16De","Pernici","000",null,1142.2380045149112,600]
[2,"J16D","Altro pollame","10006","Avicoli","J16Df","Starne","000",null,1142.2380045149112,600]
[2,"J16D","Altro pollame","10006","Avicoli","J16Dg","Guaglie","000",null,1142.2380045149112,600]
[2,"J16D","Altro pollame","10006","Avicoli","J16Dh","Altri volatili","000",null,1142.2380045149112,600]
[2,"J17","Coniglie fattrici","10007","Cunicoli","J17a","Conigli da ingrasso","000",null,64.223907486880421,2]
[2,"J17","Coniglie fattrici","10007","Cunicoli","J17b","Coniglie fattrici","000",null,64.223907486880421,2]
[2,"J18","Api","10008","Api","j18a","Api","000",null,44,5]
[2,"Z90","Lumache",10100,"Elicicoltura","Z90","Lumache","000",null,45000,200]

{"sheet":"Produzioni standard","index":32,"n_rows":98,"n_cols":8,"rows_kept":98,"cut":false,"hidden":true,"merged":[]}
["FADN_REGION","NUTS2","Regione_P.A.","COD_PRODUCT","Rubrica_RICA","Descrizione_Rubrica","SOC_EUR","UM"]
[292,"ITF1      ","Abruzzo","C1110T","D01","Frumento tenero e spelta",1012,"EUR_per_ha"]
[292,"ITF1      ","Abruzzo","C1120T","D02","Frumento duro",1312,"EUR_per_ha"]
[292,"ITF1      ","Abruzzo","C1200T","D03","Segale",522,"EUR_per_ha"]
[292,"ITF1      ","Abruzzo","C1300T","D04","Orzo",727,"EUR_per_ha"]
[292,"ITF1      ","Abruzzo","C1400T","D05","Avena",518,"EUR_per_ha"]
[292,"ITF1      ","Abruzzo","C1500T","D06","Mais",1530,"EUR_per_ha"]
[292,"ITF1      ","Abruzzo","C2000T","D07","Riso",1172,"EUR_per_ha"]
[292,"ITF1      ","Abruzzo","C1600T_C1700T_C1900T","D08","Altri cereali da granella (sorgo, miglio, panico, farro, ecc.)",1238,"EUR_per_ha"]
[292,"ITF1      ","Abruzzo","P0000T","D09","Leguminose da granella - totale",2176,"EUR_per_ha"]
[292,"ITF1      ","Abruzzo","P1000T","D09A","Legumonose da granella (piselli, fave e favette, lupini dolci)",1636,"EUR_per_ha"]
[292,"ITF1      ","Abruzzo","R1000T","D10","Patate (comprese le patate primaticce e da semina)",13257,"EUR_per_ha"]
[292,"ITF1      ","Abruzzo","R2000T","D11","Barbabietola da zucchero",1805,"EUR_per_ha"]
[292,"ITF1      ","Abruzzo","R9000T","D12","Piante sarchiate foraggere",3808,"EUR_per_ha"]
[292,"ITF1      ","Abruzzo","V0000_S0000T","D14","Orticole - all'aperto ",21983,"EUR_per_ha"]
[292,"ITF1      ","Abruzzo","V0000_S0000TO","D14A","Orticole - all'aperto - in pieno campo",21842,"EUR_per_ha"]
[292,"ITF1      ","Abruzzo","V0000_S0000TK","D14B","Orticole - all'aperto - in orto industriale",22124,"EUR_per_ha"]
[292,"ITF1      ","Abruzzo","V0000_S0000S","D15","Orticole - in serra",33138,"EUR_per_ha"]
[292,"ITF1      ","Abruzzo","N0000T","D16","Fiori e piante ornamentali - all'aperto",98670,"EUR_per_ha"]
[292,"ITF1      ","Abruzzo","N0000S","D17","Fiori e piante ornamentali - in serra",187154,"EUR_per_ha"]
[292,"ITF1      ","Abruzzo","G0000T","D18","Piante raccolte verdi",973,"EUR_per_ha"]
[292,"ITF1      ","Abruzzo","G1000T","D18A","Prati avvicendati (medica, sulla, trifoglio, lupinella, ecc.)",721,"EUR_per_ha"]
[292,"ITF1      ","Abruzzo","G9100T_G9900T","D18B","Altre foraggere avvicendate",444,"EUR_per_ha"]
[292,"ITF1      ","Abruzzo","G3000T","D18C","Altre foraggere: Mais verde",1501,"EUR_per_ha"]
[292,"ITF1      ","Abruzzo","G2000T","D18D","Altre foraggere: Leguminose",467,"EUR_per_ha"]
[292,"ITF1      ","Abruzzo","E0000T","D19","Semi e piantine seminativi",5363,"EUR_per_ha"]
[292,"ITF1      ","Abruzzo","ARA99T_ARA09S","D20","Altre colture per seminativi",1145,"EUR_per_ha"]
[292,"ITF1      ","Abruzzo","Q0000T","D21","Terreni a riposto o a set-aside senza aiuto","                 -   ","EUR_per_ha"]
[292,"ITF1      ","Abruzzo","I3000T","D23","Tabacco",6370,"EUR_per_ha"]
[292,"ITF1      ","Abruzzo","I4000T","D24","Luppolo",10175,"EUR_per_ha"]
[292,"ITF1      ","Abruzzo","I1150_2300T","D25","Cotone",1400,"EUR_per_ha"]
[292,"ITF1      ","Abruzzo","I1110T","D26","Colza e ravizzone",335,"EUR_per_ha"]
[292,"ITF1      ","Abruzzo","I1120T","D27","Girasole",524,"EUR_per_ha"]
[292,"ITF1      ","Abruzzo","I1130T","D28","Soia",995,"EUR_per_ha"]
[292,"ITF1      ","Abruzzo","I1140T","D29","Lino da olio",1803,"EUR_per_ha"]
[292,"ITF1      ","Abruzzo","I1190T","D30","Altre oleaginose erbacee",2015,"EUR_per_ha"]
[292,"ITF1      ","Abruzzo","I2100T","D31","Lino da fibra",1371,"EUR_per_ha"]
[292,"ITF1      ","Abruzzo","I2200T","D32","Canapa",1169,"EUR_per_ha"]
[292,"ITF1      ","Abruzzo","I2900T","D33","Altre colture tessili",1152,"EUR_per_ha"]
[292,"ITF1      ","Abruzzo","I5000T","D34","Piante aromatiche, medicinali e da condimento",31296,"EUR_per_ha"]
[292,"ITF1      ","Abruzzo","I6000T_I9000T","D35","Altre piante industriali",1600,"EUR_per_ha"]
[292,"ITF1      ","Abruzzo","J0000T","F00","Prati e pascoli - totali",228,"EUR_per_ha"]
[292,"ITF1      ","Abruzzo","J1000T","F01","Prati permanenti e pascoli",344,"EUR_per_ha"]
[292,"ITF1      ","Abruzzo","J2000T","F02","Pascoli magri",135,"EUR_per_ha"]
[292,"ITF1      ","Abruzzo","J3000TE","F03","Prati e pascoli permanenti non in uso","                 -   ","EUR_per_ha"]
[292,"ITF1      ","Abruzzo","K0000T_UAA09S","F04","Orti familiari","                 -   ","EUR_per_ha"]
[292,"ITF1      ","Abruzzo","F0000T","G01","Frutteti e Bacche (piccoli frutti) - totali",20806,"EUR_per_ha"]
[292,"ITF1      ","Abruzzo","F1000T","G01A","Frutteti - di origine temperata",13602,"EUR_per_ha"]
[292,"ITF1      ","Abruzzo","F2000T","G01B","Frutteti - di origine sub-tropicale",12435,"EUR_per_ha"]
[292,"ITF1      ","Abruzzo","F4000T","G01C","Frutteti - frutta a guscio",2412,"EUR_per_ha"]
[292,"ITF1      ","Abruzzo","F3000T","G01D","Bacche (piccoli frutti)",10190,"EUR_per_ha"]
[292,"ITF1      ","Abruzzo","F1100T","G01E","Pomacee",18058,"EUR_per_ha"]
[292,"ITF1      ","Abruzzo","F1200T","G01F","Drupacee",11969,"EUR_per_ha"]
[292,"ITF1      ","Abruzzo","T0000T","G02","Agrumeti",6552,"EUR_per_ha"]
[292,"ITF1      ","Abruzzo","O1000T","G03","Oliveti - totali",7062,"EUR_per_ha"]
[292,"ITF1      ","Abruzzo","O1100T","G03A","Oliveti - per olive da tavola",1654,"EUR_per_ha"]
[292,"ITF1      ","Abruzzo","O1910T","G03B","Oliveti - per olive da olio (olio)",2488,"EUR_per_ha"]
[292,"ITF1      ","Abruzzo","W1000T","G04","Vigneti - totali",12229,"EUR_per_ha"]
[292,"ITF1      ","Abruzzo","W1110T","G04A","Vigneti - per uva da vino di qualità DOP",11878,"EUR_per_ha"]
[292,"ITF1      ","Abruzzo","W1190T","G04B","Vigneti - per uva da vino comune",8300,"EUR_per_ha"]
[292,"ITF1      ","Abruzzo","W1200T","G04C","Vigneti - per uva da tavola",9921,"EUR_per_ha"]
[292,"ITF1      ","Abruzzo","W1300T","G04D","Vigneti per uva passa",12250,"EUR_per_ha"]
[292,"ITF1      ","Abruzzo","W1120T","G04E","Vigneti - per uva da vino di qualità IGP",11878,"EUR_per_ha"]
[292,"ITF1      ","Abruzzo","W1100T","G04F","Vigneti da vino",10624,"EUR_per_ha"]
[292,"ITF1      ","Abruzzo","L0000T","G05","Vivai",45622,"EUR_per_ha"]
[292,"ITF1      ","Abruzzo","X0000T","G06","Altre colture permanenti - Alberi di Natale",1860,"EUR_per_ha"]
[292,"ITF1      ","Abruzzo","PECR9_H9000T","G06","Altre colture permanenti",1860,"EUR_per_ha"]
[292,"ITF1      ","Abruzzo","PECRS","G07","Colture permanenti in serra (Frutteti - di or.temp.)",26594,"EUR_per_ha"]
[292,"ITF1      ","Abruzzo","U1000","I02","Funghi coltivati sotto copertura (100 mq) - 7,2 raccolti",38556,"EUR_per_100_m2"]
[292,"ITF1","Abruzzo","C_1","J01","Equini","                 -   ","EUR_per_capo"]
[292,"ITF1      ","Abruzzo","A2010","J02","Bovini maschi e femmine meno di 1 anno",1244,"EUR_per_capo"]
[292,"ITF1      ","Abruzzo","A2120","J03","Bovini maschi da 1 a meno di 2 anni",598,"EUR_per_capo"]
[292,"ITF1      ","Abruzzo","A2220","J04","Bovini femmine da 1 a meno di 2 anni",468,"EUR_per_capo"]
[292,"ITF1      ","Abruzzo","A2130","J05","Bovini maschii d 2 anni e più",610,"EUR_per_capo"]
[292,"ITF1      ","Abruzzo","A2230","J06","Giovenche di 2 anni e più anni",456,"EUR_per_capo"]
[292,"ITF1      ","Abruzzo","A2300F","J07","Vacche da latte",1692,"EUR_per_capo"]
[292,"ITF1      ","Abruzzo","A2300G","J08","Altre vacche (vacche nutrici, vacche da riforma)",748,"EUR_per_capo"]
[292,"ITF1      ","Abruzzo","A4100","J09","Ovini - totali",181,"EUR_per_capo"]
[292,"ITF1      ","Abruzzo","A4110K","J09A","Pecore",349,"EUR_per_capo"]
[292,"ITF1      ","Abruzzo","A4120","J09B","Ovini - altri (arieti e agnelli)",136,"EUR_per_capo"]
[292,"ITF1      ","Abruzzo","A4200","J10","Caprini - totali",172,"EUR_per_capo"]
[292,"ITF1      ","Abruzzo","A4210K","J10A","Capre",378,"EUR_per_capo"]
[292,"ITF1      ","Abruzzo","A4220","J10B","Caprini - altri",68,"EUR_per_capo"]
[292,"ITF1      ","Abruzzo","A3110","J11","Suini - lattonzoli < 20 Kg",446,"EUR_per_capo"]
[292,"ITF1      ","Abruzzo","A3120","J12","Suini - scrofe da riproduzione > 50 Kg",1883,"EUR_per_capo"]
[292,"ITF1      ","Abruzzo","A3130","J13","Suini - altri (verri e suini da ingrasso > 20 Kg)",827,"EUR_per_capo"]
[292,"ITF1      ","Abruzzo","A5140","J14","Polli da carne (broilers)",2068,"EUR_per_100_capi"]
[292,"ITF1      ","Abruzzo","A5110O","J15","Galline ovaiole",3058,"EUR_per_100_capi"]
[292,"ITF1      ","Abruzzo","A5000X5100","J16","Altro pollame - totale",9676,"EUR_per_100_capi"]
[292,"ITF1      ","Abruzzo","A5230","J16A","Tacchini",5420,"EUR_per_100_capi"]
[292,"ITF1      ","Abruzzo","A5220","J16B","Oche",2893,"EUR_per_100_capi"]
[292,"ITF1      ","Abruzzo","A5210","J16B","Anatre",3156,"EUR_per_100_capi"]
[292,"ITF1      ","Abruzzo","A5410","J16C","Struzzi",52500,"EUR_per_100_capi"]
[292,"ITF1      ","Abruzzo","A5240_5300","J16D","Altro pollame (faraone, ecc.)",1110,"EUR_per_100_capi"]
[292,"ITF1      ","Abruzzo","A6111","J17","Conigli - fattrici",71,"EUR_per_capo"]
[292,"ITF1      ","Abruzzo","A6710R","J18","Api (alveare)",237,"EUR_per_alveare"]
[292,"ITF1      ","Abruzzo","A2300","J19","Vacche",1246,"EUR_per_capo"]
[292,"ITF1      ","Abruzzo","A2410","J20","Bufale",1692,"EUR_per_capo"]

{"sheet":"Codici ed effetti","index":33,"n_rows":40,"n_cols":7,"rows_kept":40,"cut":false,"hidden":true,"merged":[[0,0,0,6],[1,4,1,6],[1,0,1,3]]}
["TABELLA DI CORRISPONDENZA TRA TIPOLOGIA DI INVESTIMENTI ED EFFETTI"]
["Tipologia",null,null,null,"Effetti"]
["Categoria","Codice","Descrizione","Codice","A-Qualità dell'ambiente","B - Rendimento economico","C - Qualità delle produzioni"]
[1,1,"Acquisto terreni",1,null,"x"]
[2,2,"Sistemazioni idraulico agrarie",2,"x","x"]
[2,3,"Drenaggi e opere di canalizzazione dell'acqua",3,"x","x"]
[2,4,"Impianti per la gestione efficiente dell'acqua di irrigazione",4,"x"]
[2,5,"Impianti e/o bacini per fitodepurazione",5,"x"]
[2,6,"Recinzioni",6,null,"x"]
[2,7,"Viabilità aziendale",7,null,"x"]
[2,8,"Spianamenti, terrazzamenti e simili",8,null,"x"]
[2,9,"Strutture per la gestione dei pascoli e prati-pascoli",9,"x","x"]
[2,10,"Impianti di colture arboree e arbustive pluriennali frutticole, floricole e officinali e miglioramento di quelle esistenti",10,null,"x"]
[2,11,"Impianti di colture arboree come fasce tampone  (frangivento, frangisole)",11,"x"]
[3,12,"Impianti per la produzione di energia da fonti rinnovabili per autoconsumo",12,"x","x"]
[4,13,"Costruzione, ristrutturazione, ampliamento e ammodernamento dei fabbricati per produzioni vegetali",13,null,"x","x"]
[4,14,"Costruzione, ristrutturazione, ampliamento e ammodernamento dei fabbricati per produzioni zootecniche",14,null,"x","x"]
[4,15,"Costruzione, ristrutturazione, ampliamento e ammodernamento dei fabbricati per trasformazione e/o commercializzazione dei prodotti agricoli (all. I Trattato)",15,null,"x","x"]
[4,16,"Strutture di stoccaggio finalizzate anche al miglioramento della qualità del prodotto",16,"x","x"]
[4,17,"Impianti per lo stoccaggio, il trattamento e utilizzo agronomico delle acque di vegetazione, delle acque reflue e di lavorazione e degli affluenti zootecnici",17,"x","x"]
[4,18,"Miglioramento dell'efficienza energetica di impianti e immobili produttivi",18,"x","x"]
[5,19,"Investimenti per l'adeguamento ai requisiti resi obbligatori da specifiche norme comunitarie di nuove introduzione",19,null,null,"x"]
[6,20,"Macchine, impianti e attrezzature per operazioni colturali",20,null,"x","x"]
[6,21,"Macchine, impianti e attrezzature per la gestione degli allevamenti",21,null,"x","x"]
[6,22,"Macchine, impianti e attrezzature per servizi aziendali diversi",22,null,"x","x"]
[6,23,"Macchine, impianti e attrezzature per il prelievo e la distribuzione dell'acqua (esclusi quelli previsti dall'art. 46 del Reg. CE 1305/2013)",23,"x","x"]
[6,24,"Macchine, impianti e attrezzature per l'agricoltura conservativa (agricoltura blu)",24,"x"]
[6,25,"Macchine, impianti e attrezzature per l'agricoltura 4.0",25,"x","x"]
[6,26,"Investimenti volti a proteggere le coltivazioni dagli effetti negativi degli eventi meteorici estremi",26,null,"x","x"]
[6,27,"Acquisto di tecnologie ed attrezzature  ICT ( sistemi integrati e connessi riconducibili ad Agricoltura 4.0, ivi inclusa la zootecnia 4.0)",27,"x","x"]
[7,28,"Acquisizione di brevetti, licenze, diritti d'autore, marchi commerciali",28,null,"x"]
[8,29,"Spese generali per la realizzazione dell'Investimento",29]
[9,30,"Realizzazione di impianti di colture arboree micronizzate",30,null,"x","x"]
[9,31,"Acquisto di riproduttori di specie animali iscritte ai libri genealogici",31,null,null,"x"]
[9,32,"Acquisto di animali da ingrasso",32,null,"x"]
[9,33,"Manutenzione ordinaria e straordinaria degli immobili, degli impianti e delle attrezzature",33,"x","x","x"]
[9,34,"Partecipazione a corsi di formazione professionale",34,"x","x","x"]
[9,35,"Partecipazione a corsi di consulenza aziendale ",35,null,"x"]
[9,36,"Spese per progettazione, studi e analisi ai fini dell'attuazione del PSA",36]
[9,37,"Altre tipologie di spese non ricomprese nelle voci precedenti",37]

{"sheet":"Categoria investimenti","index":34,"n_rows":10,"n_cols":2,"rows_kept":10,"cut":false,"hidden":true,"merged":[]}
["Codice","Categoria degli investimenti"]
[1,"Terreni"]
[2,"Miglioramenti fondiari"]
[3,"Impianti produzione energia"]
[4,"Beni Immobili produttivi"]
[5,"Investimenti per nuove norme comunitarie"]
[6,"Macchine, Impianti e attrezzature"]
[7,"Investimenti Immateriali"]
[8,"Spese generali"]
[9,"Altre tipologie di attività per lo sviluppo del PSA"]